{"text_format":"1","workbook":"xlsx","n_sheets":15,"sheets":["HOME","Applicant Info","Checklist","Terms & Conditions","Multi-Facility","Income Qualifier Directory","Lighting SOW","Lighting","HVAC","Food Service","Appliances","Heat Pump Water Heaters","Windows","Pool Pumps","Custom"],"not_rendered":{"charts":0,"images":34,"macros":1,"external_links":7,"defined_names":389,"comments":4,"pivot_tables":0},"unopened":[],"bounds":{"document_bytes":16777216,"sheet_cells":100000,"rows_first":2000,"rows_last":500,"rows_between":2000,"halvings":0,"cell_chars":16384,"cell_head_chars":4096},"cells_cut":0,"cells_raw":0,"read":"whole","date_system":"1900"}

{"sheet":"HOME","index":0,"n_rows":16,"n_cols":8,"rows_kept":16,"cut":false,"hidden":false,"merged":[[11,1,13,4],[13,9,13,12],[0,0,1,1],[5,0,5,3],[13,6,13,8],[15,1,16,4],[1,2,1,8],[0,2,0,8],[2,0,2,8],[6,1,7,4],[9,1,9,4],[3,4,3,5],[3,7,3,8],[3,1,3,2],[6,6,6,8],[14,6,14,8],[7,6,8,8],[9,6,9,8],[10,6,10,8],[11,6,11,8],[12,6,12,8]]}
[null,null,"2024 Multifamily Retrofit Rebate Application v1"]
[null,null,"PNM Business Energy Efficiency Programs"]
["Why improve energy efficiency?"]
[null,"Improves profitability by cutting operating costs",null,null,"Distinguishes your business as an energy efficiency advocate within our community",null,null,"Qualifies your project for rebates that can help cover upgrade costs"]
[]
["         Application Process",null,null,null,null,null,"Contact Our Team"]
["1.","Submit a Pre-Notification Application to \nreserve funding (if required).",null,null,null,null,"Address:"]
[null,null,null,null,null,null,"320 Gold Avenue SW, Suite 500\nAlbuquerque, NM 87102\n"]
[]
["2.","Install qualified technology.",null,null,null,null,"Main Phone:"]
[null,null,null,null,null,null,"(505) 938-9400"]
["3.","Complete, sign, and submit a Final \nApplication with all required documentation \nwithin 6 months of project completion.",null,null,null,null,"Email:"]
[null,null,null,null,null,null,"energyefficiency@pnm.com"]
[null,null,null,null,null,null,"Website:"]
[null,null,null,null,null,null,"www.pnmenergyefficiency.com"]
["4.","The incentive check will be sent 4 to 6 \nweeks after approval of the Final Application."]

{"sheet":"Applicant Info","index":1,"n_rows":87,"n_cols":17,"rows_kept":87,"cut":false,"hidden":false,"merged":[[67,0,67,4],[44,6,44,10],[52,9,52,10],[52,0,52,4],[52,5,52,8],[63,0,63,4],[62,0,62,4],[64,0,64,4],[60,0,60,10],[53,0,53,4],[51,0,51,10],[66,7,66,10],[65,7,65,10],[53,9,53,10],[65,0,65,4],[49,4,49,5],[48,4,48,10],[49,0,49,3],[47,0,47,3],[48,0,48,3],[47,4,47,10],[85,5,85,6],[5,2,5,3],[9,0,9,10],[18,0,18,5],[35,0,35,3],[41,7,42,10],[34,4,34,10],[24,6,24,10],[30,0,30,3],[35,9,35,10],[33,0,33,10],[35,4,35,5],[19,0,19,5],[26,8,26,10],[32,4,32,5],[32,0,32,3],[21,6,21,10],[25,6,25,10],[21,0,21,5],[28,0,28,3],[23,6,23,10],[22,6,22,10],[7,2,7,3],[0,3,0,8],[3,0,3,5],[3,6,3,8],[32,8,32,10],[29,6,29,7],[31,0,31,3],[31,4,31,5],[31,6,31,7],[30,4,30,10],[20,6,20,10],[7,0,7,1],[10,0,10,5],[0,9,0,10],[6,7,6,8],[5,7,5,8],[10,6,10,8],[28,4,28,10],[29,0,29,3],[27,4,27,10],[22,0,22,5],[23,0,23,5],[20,0,20,5],[7,7,7,8],[16,2,16,3],[85,7,85,8],[35,6,35,8],[38,0,38,3],[38,4,38,5],[27,0,27,3],[34,0,34,3],[24,0,24,5],[43,4,43,10],[43,0,43,3],[46,3,46,5],[39,0,39,10],[36,0,36,3],[36,4,36,10],[38,6,38,7],[37,0,37,3],[37,4,37,10],[44,0,44,5],[46,6,46,7],[45,0,45,5],[45,6,45,10],[29,4,29,5],[25,0,25,5],[26,3,26,5],[78,7,78,8],[79,7,79,8],[80,7,80,8],[81,7,81,8],[84,7,84,8],[46,8,46,10],[74,1,74,4],[49,6,49,7],[63,5,63,6],[74,7,74,8],[56,0,56,10],[61,0,61,10],[50,8,50,10],[67,7,67,10],[53,5,53,8],[64,5,65,6],[59,0,59,10],[55,0,55,10],[66,0,66,4],[62,7,62,10],[26,6,26,7],[63,7,63,10],[64,7,64,10],[50,4,50,5],[57,0,57,10],[58,0,58,10],[74,5,74,6],[86,7,86,8],[86,5,86,6],[78,5,78,6],[79,5,79,6],[80,5,80,6],[81,5,81,6],[84,5,84,6],[82,5,82,6],[82,7,82,8],[83,5,83,6],[83,7,83,8],[86,1,86,4],[75,5,75,6],[75,7,75,8],[76,5,76,6],[76,7,76,8],[77,5,77,6],[77,7,77,8]]}
[null,null,null,"APPLICANT INFORMATION",null,null,null,null,null,"For office use only:"]
[null,null,null,null,null,null,null,null,null,"Application #","Revision #"]
[]
["Application Type:",null,null,null,null,null,"Check ONE box below:"]
[]
[null,null,"Retrofit",null,null,null,null,"Pre-Notification",null,"Date",null,null,null,null,null,{"$f":"IF(G6>0,\"Yes\",)","v":0}]
[null,null,null,null,null,null,null,"or"]
[null,null,"Number of Units -->",null,null,null,null,"Final Application",null,"Date",null,null,null,null,"New pre notification checkbox flag:",false]
[null,null,null,null,null,null,null,null,null,null,null,null,null,null,null,false]
["Customer Information",null,null,null,null,null,null,null,null,null,null,null,null,null,"Multifacility checkbox flag:",false]
["PNM Account Number where measures installed* ",null,null,null,null,null,null,null,null,null,null,null,null,null,"SOW Checkbox",false]
[null,null,null,null,null,null,null,null,null,null,null,null,null,null,null,true]
[null,null,"This Application represents multiple accounts / premises",null,null,null,"Enter number of Accounts / Premises ------->",null,null,null,null,null,null,{"$f":"is","v":{"$error":"#NAME?"}},"IQ Checkbox",false]
[null,null,"2. If yes: Complete Multi-Facility Worksheet -------> CLICK HERE"]
[null,null,"This project includes lighting measures as part of the scope"]
[null,null,"Scope  of Work is REQUIRED for Lighting measures ----> Click Here"]
[null,null,"Low Income Qualifier"]
[null,null,"Check if your property qualifies for a Low Income  Bonus----> Click here "]
["Building Type*"]
[{"$f":"M21","v":"Multifamily "},null,null,null,null,null,null,null,null,null,null,null,"Business Type",null,"Tax Status",null,"State"]
["Name of Property Owner/Ownership Group as listed on W9*",null,null,null,null,null,"Property Name Exactly as it Appears on Your Utility Bill*",null,null,null,null,null,"Multifamily ",null,"Corporation (Inc, PC, etc.)",null,"AL"]
[null,null,null,null,null,null,null,null,null,null,null,null,null,null,"Government Agency",null,"AK"]
["Name of Property Manager*",null,null,null,null,null,"Name of Multifamily Property*",null,null,null,null,null,null,null,"Individual",null,"AZ"]
[null,null,null,null,null,null,null,null,null,null,null,null,null,null,"Partnership",null,"AR"]
["Name of Contact Person*",null,null,null,null,null,"Title*",null,null,null,null,null,null,null,"Exempt",null,"CA"]
[null,null,null,null,null,null,null,null,null,null,null,null,null,null,null,null,"CO"]
["Telephone #*",null,null,null,null,null,"Fax #",null,null,null,null,null,null,null,null,null,"CT"]
["Email Address*",null,null,null,null,null,null,null,null,null,null,null,null,null,null,null,"DE"]
["Address Where Measures Installed*",null,null,null,null,null,null,null,null,null,null,null,null,null,null,null,"FL"]
["City Where Measures Installed*",null,null,null,null,null,"State*",null,{"$f":"IF(E30=\"\",\"\",\"NM\")","v":""},"Zip*",null,null,null,null,null,null,"GA"]
["Mailing Address*",null,null,null,null,null,null,null,null,null,null,null,null,null,null,null,"HI"]
["City*",null,null,null,null,null,"State*",null,null,"Zip*",null,null,null,null,null,null,"ID"]
["Taxpayer ID Number (SSN/FEIN)*",null,null,null,null,null,"Tax Status*",null,null,null,null,null,null,null,null,null,"IL"]
["Contractor Information",null,null,null,null,null,null,null,null,null,null,null,null,null,null,null,"IN"]
["Contracting Company*",null,null,null,null,null,null,null,null,null,null,null,null,null,null,null,"IA"]
["Contractor Name*",null,null,null,null,null,"Contractor Phone Number*",null,null,null,null,null,null,null,null,null,"KS"]
["Contractor Email Address*",null,null,null,null,null,null,null,null,null,null,null,null,null,null,null,"KY"]
["Contractor Mailing Address*",null,null,null,null,null,null,null,null,null,null,null,null,null,null,null,"LA"]
["City*",null,null,null,null,null,"State*",null,null,"Zip*",null,null,null,null,null,null,"ME"]
["Third Party Payment Release",null,null,null,null,null,null,null,null,null,null,null,null,null,null,null,"MD"]
[null,null,null,null,null,null,null,null,null,null,null,null,null,null,null,null,"MA"]
[null,null,"I request that the incentive check be sent to the third party below",null,null,null,null,"Check here if the third party payee is the contractor (Contractor must be a PNM Authorized Contractor to be eligible for third party payment)",null,null,null,null,null,null,null,null,"MI"]
[null,null,null,null,null,null,null,null,null,null,null,null,null,null,null,null,"MN"]
["Name of Third Party*",null,null,null,null,null,null,null,null,null,null,null,null,null,null,null,"MS"]
["Name of Third Party Contact Person*",null,null,null,null,null,"Title*",null,null,null,null,null,null,null,null,null,"MO"]
[null,null,null,null,null,null,null,null,null,null,null,null,null,null,null,null,"MT"]
["Third Party Phone #*",null,null,null,null,null,"Fax #",null,null,null,null,null,null,null,null,null,"NE"]
["Third Party Email Address*",null,null,null,null,null,null,null,null,null,null,null,null,null,null,null,"NV"]
["Third Party Mailing Address*",null,null,null,null,null,null,null,null,null,null,null,null,null,null,null,"NH"]
["Third Party City*",null,null,null,null,null,"State*",null,null,"Zip*",null,null,null,null,null,null,"NJ"]
["Third Party Taxpayer ID # (SSN/FEIN)*",null,null,null,null,null,"Tax Status*",null,null,null,null,null,null,null,null,null,"NM"]
["Incentive Summary",null,null,null,null,null,null,null,null,null,null,null,null,null,null,null,"NY"]
["Total Incentive Requested",null,null,null,null,"Total Project Cost  PRE-TAX * REQUIRED *",null,null,null,{"$f":"IF(AND(P8=TRUE,P9=TRUE),\"Project Completion Date\",IF(P8=TRUE, \"Estimated Project Completion Date\", \"Project Completion Date\"))","v":"Project Completion Date"},null,null,null,null,null,null,"NC"]
[{"$f":"MIN(IF($P$13=TRUE,H87,F87), F54*0.5,400000)","v":0},null,null,null,null,null,null,null,null,null,null,null,null,null,null,null,"ND"]
[null,null,null,null,null,null,null,null,null,null,null,null,null,null,null,null,"OH"]
["AGREEMENT AND AUTHORIZATION",null,null,null,null,null,null,null,null,null,null,null,null,null,null,null,"OK"]
["     I understand that in the event funds are reserved based on a pre-notification, the payment of incentives will be based upon the Final Application and program terms and conditions, and that the PNM Business Energy Efficiency program is subject to change or cancellation at any time and without notice. PNM is not responsible for any lost, late, stolen, ineligible, illegible, misdirected or postage-due mail. All completed submissions become the property of PNM and will not be returned. PNM makes no guarantees about the availability of products or rebate forms. By participating in the PNM Business Energy Efficiency program, customers agree to waive any claims and release PNM from any liability for damages of any kind. Rebates are funded by a charge on PNM electric customer bills.",null,null,null,null,null,null,null,null,null,null,null,null,null,null,null,"OR"]
[{"$f":"\"     I,  \" &IF(ISBLANK(A22),\"[Property owner]\",A22)& \" , certify that \" &IF(ISBLANK(G24),\"[Multifamily property]\",G24)& \" qualifies as a ''Low-Income/Affordable Housing'' community in the State of New Mexico. \" &IF(ISBLANK(G24),\"[Multifamily property]\",G24)& \" participates in at least one of the following programs to qualify for the Low-Income Bonus provided by the PNM Business Energy Efficiency Programs:\"","v":"     I,  [Property owner] , certify that [Multifamily property] qualifies as a ''Low-Income/Affordable Housing'' community in the State of New Mexico. [Multifamily property] participates in at least one of the following programs to qualify for the Low-Income Bonus provided by the PNM Business Energy Efficiency Programs:"},null,null,null,null,null,null,null,null,null,null,null,null,null,null,null,"PA"]
["     For a property to be considered multifamily, it must consist of five or more attached dwelling units or a complex consisting of two or more buildings with four or more dwelling units within each building. \n\nFor a multifamily property to be considered “Income Qualified” in this program, it must be listed on the MFA Housing New Mexico website. The Income Qualified Directory is also available on a tab in this document. ",null,null,null,null,null,null,null,null,null,null,null,null,null,null,null,"RI"]
[{"$f":"\"     The signature on this application authorizes \" &IF(ISBLANK(A24),\"[Property manager]\",A24)& \" to act on behalf of \" &IF(ISBLANK(A22),\"[Property owner]\",A22)& \" with the PNM Business Energy Efficiency Program. \" &A22& \" hereby designates, appoints and empowers \" &A24& \" to communicate and sign on behalf of \" &A22& \" in the PNM Business Energy Efficiency Program.\"","v":"     The signature on this application authorizes [Property manager] to act on behalf of [Property owner] with the PNM Business Energy Efficiency Program.  hereby designates, appoints and empowers  to communicate and sign on behalf of  in the PNM Business Energy Efficiency Program."},null,null,null,null,null,null,null,null,null,null,null,null,null,null,null,"SC"]
["     I have read and understand the program requirements, measure specifications, and Terms & Conditions set forth in this application and agree to abide by those requirements. Furthermore, I concur that I must meet all eligibility criteria in order to be paid under this program.",null,null,null,null,null,null,null,null,null,null,null,null,null,null,null,"SD"]
["     As an eligible customer, I verify that the signature below is my own and that the information is correct. I am requesting consideration for participation under this program. By signing this agreement I attest that I understand and agree to abide by all Program terms and conditions.",null,null,null,null,null,null,null,null,null,null,null,null,null,null,null,"TN"]
["Customer Signature (PNM Customer)",null,null,null,null,null,null,"Third Party Signature",null,null,null,null,null,null,null,null,"TX"]
[null,null,null,null,null,"Please sign by hand or via DocuSign®",null,null,null,null,null,null,null,null,null,null,"UT"]
["Print Customer Name",null,null,null,null,null,null,"Print Third Party Name",null,null,null,null,null,null,null,null,"VT"]
[null,null,null,null,null,null,null,null,null,null,null,null,null,null,null,null,"VA"]
["Date",null,null,null,null,null,null,"Date",null,null,null,null,null,null,null,null,"WA"]
[null,null,null,null,null,null,null,null,null,null,null,null,null,null,null,null,"WI"]
[null,null,null,null,null,null,null,null,null,null,null,null,null,null,null,null,"WV"]
[null,null,null,null,null,null,null,null,null,null,null,null,null,null,null,null,"WY"]
[]
[]
[]
[]
[null,"For Office Use Only",null,null,null,{"$f":"IF($P$13=TRUE,\"Low Income Bonus\",\"Total Incentive\")","v":"Total Incentive"},null,"Total Incentive"]
[null,"Interior Retrofits Incentive",null,null,null,{"$f":"Lighting!N16","v":0},null,{"$f":"Lighting!N17","v":0},null,null,null,null,{"$f":"(H79-F79)","v":0}]
[null,"LED Replacing HID Incentive",null,null,null,{"$f":"Lighting!J27","v":0},null,{"$f":"Lighting!L31","v":""},null,null,null,null,0]
[null,"LED Replacing T5, T8, or T12 Incentive",null,null,null,{"$f":"Lighting!J76","v":0},null,{"$f":"Lighting!L76","v":""},null,null,null,null,{"$f":"(#REF!-#REF!)","v":{"$error":"#REF!"}}]
[null,"Existing LED Controls Incentive",null,null,null,{"$f":"Lighting!F121","v":0},null,{"$f":"Lighting!H121","v":0},null,null,null,null,{"$f":"(H81-F81)","v":0}]
[null,"HVAC Incentive",null,null,null,{"$f":"SUM(HVAC!I54,HVAC!I82,HVAC!G90,HVAC!H98,HVAC!H109)","v":0},null,{"$f":"HVAC!I112","v":0},null,null,null,null,{"$f":"(H82-F82)","v":0}]
[null,"Food Service Incentive",null,null,null,{"$f":"SUM('Food Service'!J11:K11,'Food Service'!J24:K24,'Food Service'!J32:K32,'Food Service'!J43:K43)","v":0},null,{"$f":"'Food Service'!J46","v":0},null,null,null,null,{"$f":"(H85-F85)","v":0}]
[null,"Appliances Incentive",null,null,null,{"$f":"SUM(Appliances!F11,Appliances!F22,Appliances!F29,Appliances!F37,Appliances!F45,Appliances!F53)","v":0},null,{"$f":"Appliances!F56","v":0},null,null,null,null,{"$f":"(#REF!-#REF!)","v":{"$error":"#REF!"}}]
[null,"Heat Pump Water Heaters Incentive",null,null,null,{"$f":"'Heat Pump Water Heaters'!J19","v":0},null,{"$f":"'Heat Pump Water Heaters'!J20","v":0},null,null,null,null,{"$f":"(#REF!-#REF!)","v":{"$error":"#REF!"}}]
[null,"Window Replacement Incentive",null,null,null,{"$f":"Windows!J17","v":0},null,{"$f":"Windows!J18","v":0},null,null,null,null,{"$f":"(#REF!-#REF!)","v":{"$error":"#REF!"}}]
[null,"Pool Pumps Incentive",null,null,null,{"$f":"'Pool Pumps'!J9","v":0},null,{"$f":"'Pool Pumps'!J10","v":0}]
[null,"Custom Incentive",null,null,null,{"$f":"Custom!I51","v":0},null,{"$f":"Custom!I52","v":0},null,null,null,null,{"$f":"(H87-F87)","v":0}]
[null,"Total------>",null,null,null,{"$f":"SUM(F76:G86)","v":0},null,{"$f":"SUM(H76:I86)","v":0}]

{"sheet":"Checklist","index":2,"n_rows":43,"n_cols":3,"rows_kept":43,"cut":false,"hidden":false,"merged":[[5,1,5,2],[6,1,6,2],[7,1,7,2],[8,1,8,2],[0,0,0,3],[2,1,2,2],[3,0,3,2],[1,0,1,2],[4,0,4,2],[12,0,12,2],[9,0,9,2],[28,0,28,2],[24,0,24,2],[21,0,21,2],[17,0,17,2],[22,1,22,2],[27,1,27,2],[23,1,23,2],[18,1,18,2],[10,1,10,2],[11,1,11,2],[13,1,13,2],[14,1,14,2],[40,1,40,2],[41,1,41,2],[42,1,42,2],[30,1,30,2],[25,1,25,2],[26,1,26,2],[34,1,34,2],[39,0,39,2],[38,1,38,2],[31,1,31,2],[32,1,32,2],[33,1,33,2],[35,1,35,2],[37,1,37,2],[36,0,36,2],[29,0,29,2]]}
["APPLICATION CHECKLIST"]
["1) Verify"]
[null,"Submit application within 6 months of project completion, and include the following components:"]
["2) Application Information Form"]
["CUSTOMER INFORMATION"]
[null,"Customer name is the same as it appears on PNM bills."]
[null,"PNM account number is complete and accurate (NOTE: New Construction account information may not be available for Pre-Notification, but is required for the Final Application.)"]
[null,"Taxpayer ID is complete and accurate."]
[null,"First-time customers/payees MUST submit IRS From W-9 with application."]
["CONTRACTOR INFORMATION"]
[null,"Provide complete contact information for project contractor. (We may need to contact your contractor to verify any project details.)"]
[null,"If the job is completed by in-house staff, list Contractor as \"done-in-house.\""]
["INCENTIVE CHECK INFORMATION"]
[null,"Complete contact information and taxpayer ID."]
[null,"Indicate whether the customer or a third party should receive the check. If a third party is to receive the check:"]
[null,null,"Customer must check box indicating third party payment."]
[null,null,"Both the customer and third party must sign the Agreement Form."]
["3) Total Incentives Required"]
[null,"Fill out the following sections:"]
[null,null,"Total Project Cost (pre-tax)"]
[null,null,"Project Completion Date"]
["4) Terms & Conditions of Applications"]
[null,"Customer must read and agree with the Terms & Conditions of the PNM Business Energy Efficiency Program."]
[null,"If a third party is applying on behalf of the customer, customer must sign the Agreement Form, allowing the third party to sign the application on the customer's behalf."]
["5) Incentive Worksheets"]
[null,"Complete the incentive worksheet for each application measure (e.g., lighting, HVAC, refrigeration). Calculations are included where required (e.g., occupancy sensors)."]
[null,"Ensure the measures installed meet the Specifications for those measures, per the Specifications section at the bottom of those measure tabs."]
[null,"Lighting Retrofit Scope of Work From is REQUIRED for all lighting projects (see the 'Lighting SOW' tab) to ensure faster inspection and verification of installed items."]
["6) Additional Documentation"]
["COST ESTIMATE / INVOICES"]
[null,"For Pre-Notification, submit cost estimate or purchase order with your appllication."]
[null,"For Final application, submit invoices dated no more than 6 months prior to rebate application date."]
[null,"List the installation address, on invoices, cost estimate, or purchase order (must be in PNM service territory)."]
[null,"Ensure invoice, cost estimate, or purchase order shows correct model numbers for each measure installed."]
[null,"Ensure invoices indicate payment by the customer (e.g., shows zero balance due, stamped paid, or check number, and paid date are included)."]
[null,"Submit copies of cancelled checks. Total of cancelled checks must match total of invoices (Total Project Cost)."]
["SPECIFICATION SHEETS"]
[null,"Provide a manufacturer's specification sheet for each measure installed (e.g., lamp, ballast, controls, refrigerator, freezer, ice machine, etc.)"]
[null,"Ensure specification sheets include all program eligibility requirements for the measure (e.g., CRI of lamps, ballast factors, IPLV for AC units, etc.). Note: AHRI (Air-conditioning, Heating, and Refrigeration Institute) offers a helpful website for cooling specifications at www.ahridirectory.org."]
["7) Submit Application"]
[null,"Submit completed application to PNM Business Energy Efficiency Program via email (preferred), fax, or postal mail. All contact information is on the HOME tab of this document."]
[null,"If submitting via email, pring a hard copy of the AGREEMENT section of the Applicant Info tab, sign, scan, and email. If using DocuSign® please attach both the completed Excel application and the signed Docusign® PDF. Preferred file type for the completed application is in Excel, while supporting documents are preferred as PDFs."]
[null,"Print a full, final hard copy of all pages of your application for your records."]

{"sheet":"Terms & Conditions","index":3,"n_rows":1,"n_cols":4,"rows_kept":1,"cut":false,"hidden":false,"merged":[]}
[null,null,null,"TERMS & CONDITIONS"]

{"sheet":"Multi-Facility","index":4,"n_rows":401,"n_cols":7,"rows_kept":401,"cut":false,"hidden":false,"merged":[[4,3,4,4],[5,1,5,2],[7,0,7,4],[0,1,0,3]]}
[null,"LIGHTING MULTIPLE FACILITY WORKSHEET"]
["Use this worksheet ONLY if installing the SAME measure in facilities with different service addresses and unique account numbers."]
["If a project encompasses multiple buildings at the same premise, this worksheet is not required."]
["For official use only","Pre-Notification Date:",{"$f":"IF(ISBLANK('Applicant Info'!$K$6),\" \",'Applicant Info'!$K$6)","v":" "},"Final Application Date:",{"$f":"IF(ISBLANK('Applicant Info'!$K$8),\" \",'Applicant Info'!$K$8)","v":" "}]
["Application #",{"$f":"IF('Applicant Info'!J3=\"\",\"\",'Applicant Info'!J3)","v":""},"Business Name:",{"$f":"IF(ISBLANK('Applicant Info'!$A$22),\" \",'Applicant Info'!$A$22)","v":" "}]
["Prepared by:",{"$f":"IF(ISBLANK('Applicant Info'!$A$26),\" \",'Applicant Info'!$A$26)","v":" "},null,"Contact #:",{"$f":"'Applicant Info'!$D$27","v":0}]
[]
["Project Locations "]
["Service Address","Account #","Replacement Equipment Type 1","Replacement Equipment Type 2","Replacement Equipment Qty","Existing Equipment Description","Existing Equipment Qty"]
[]
[]
[]
[]
[]
[]
[]
[]
[]
[]
[]
[]
[]
[]
[]
[]
[]
[]
[]
[]
[]
[]
[]
[]
[]
["Total",null,null,null,{"$f":"SUM(E10:E34)","v":0},null,{"$f":"SUM(G10:G34)","v":0}]
[]
[]
[]
[]
[]
[]
[]
[]
[]
[]
[]
[]
[]
[]
[]
[]
[]
[]
[]
[]
[]
[]
[]
[]
[]
[]
[]
[]
[]
[]
[]
[]
[]
[]
[]
[]
[]
[]
[]
[]
[]
[]
[]
[]
[]
[]
[]
[]
[]
[]
[]
[]
[]
[]
[]
[]
[]
[]
[]
[]
[]
[]
[]
[]
[]
[]
[]
[]
[]
[]
[]
[]
[]
[]
[]
[]
[]
[]
[]
[]
[]
[]
[]
[]
[]
[]
[]
[]
[]
[]
[]
[]
[]
[]
[]
[]
[]
[]
[]
[]
[]
[]
[]
[]
[]
[]
[]
[]
[]
[]
[]
[]
[]
[]
[]
[]
[]
[]
[]
[]
[]
[]
[]
[]
[]
[]
[]
[]
[]
[]
[]
[]
[]
[]
[]
[]
[]
[]
[]
[]
[]
[]
[]
[]
[]
[]
[]
[]
[]
[]
[]
[]
[]
[]
[]
[]
[]
[]
[]
[]
[]
[]
[]
[]
["Measure Type 1"]
["Interior_Lighting"]
["Exterior_Lighting"]
["_24_7_Lighting"]
["Plug_Load_Controls"]
["Custom"]
["HVAC"]
["Envelope"]
["Refrigeration"]
["Food_Service_Equipment"]
["Motors"]
["VSDs"]
[]
["Measure Type 1","Measure Type 2","Unit","Incentive",null,"Measure Type 1"]
["24/7 Lighting","T8, T5 or LED Replacing HID Lamp Only","Watts Reduced",0.25,null,"Interior Lighting"]
["24/7 Lighting","T8, T5 or LED Replacing HID, Entire Fixture","Watts Reduced",0.5,null,"Exterior Lighting"]
["24/7 Lighting","T8, T5 or LED Replacing HID, Retrofit Kit","Watts Reduced",0.3,null,"24/7 Lighting"]
["24/7 Lighting","LED Replacing T5, T8 or T12, Lamp Only","Watts Reduced",0.25,null,"HVAC"]
["24/7 Lighting","LED Replacing T5, T8 or T12, Entire Fixture","Watts Reduced",0.5,null,"Envelope"]
["24/7 Lighting","LED Replacing T5, T8 or T12, Retrofit Kit","Watts Reduced",0.3,null,"Refrigeration"]
["24/7 Lighting","Controls for Existing LED Fixtures","Watts Controlled",0.5,null,"Food Service Equipment"]
["Exterior Lighting","T8, T5 or LED Replacing HID, Lamp Only","Watts Reduced",0.2,null,"Plug Load Controls"]
["Exterior Lighting","T8, T5 or LED Replacing HID, Entire Fixture","Watts Reduced",0.4,null,"Motors"]
["Exterior Lighting","T8, T5 or LED Replacing HID, Retrofit Kit","Watts Reduced",0.25,null,"VSDs"]
["Exterior Lighting","LED Replacing T5, T8 or T12, Lamp Only","Watts Reduced",0.2]
["Exterior Lighting","LED Replacing T5, T8 or T12, Entire Fixture","Watts Reduced",0.4]
["Exterior Lighting","LED Replacing T5, T8 or T12, Retrofit Kit","Watts Reduced",0.25]
["Exterior Lighting","Controls for Existing LED Fixtures","Watts Controlled",0.4]
["Interior Lighting","20W or less LED Lamp replacing Incandescent Lamp ≤ 100W","Lamp",8]
["Interior Lighting","20W or less LED Lamp replacing CFL Lamp ≤ 42W","Lamp",4]
["Interior Lighting","Controls  Occupancy Sensors","Watts Controlled",0.12]
["Interior Lighting","Controls  Daylighting Sensor Controls","Watts Controlled",0.09]
["Interior Lighting","T8, T5 or LED Replacing HID, Lamp Only","Watts Reduced",0.15]
["Interior Lighting","T8, T5 or LED Replacing HID, Entire Fixture","Watts Reduced",0.3]
["Interior Lighting","T8, T5 or LED Replacing HID, Retrofit Kit","Watts Reduced",0.2]
["Interior Lighting","LED Replacing T5, T8 or T12, Lamp Only","Watts Reduced",0.15]
["Interior Lighting","LED Replacing T5, T8 or T12, Entire Fixture","Watts Reduced",0.3]
["Interior Lighting","LED Replacing T5, T8 or T12, Retrofit Kit","Watts Reduced",0.2]
[]
[null,null,"Unit","Incentive"]
["Envelope","Window Film","Sq. Ft. of Glazing",1.2]
[]
[null,null,"Unit","Incentive"]
["Refrigeration","Strip Curtains on Walk-ins and Freezers","Sq. Ft.",3]
["Refrigeration","Night Covers for Displays","Lin. Ft. of Case",10]
["Refrigeration","EC Motor for Reach-in Refrigerator or Freezer Cases","Motor",25]
["Refrigeration","Evaporator Fan Controller - Shade Pole Motor","Motor",40]
["Refrigeration","Anti Sweat Heater Controls","Lin. Ft. of Case",25]
["Refrigeration","LED Refrigeration Case Lighting","Door",40]
["Refrigeration","ENERGY STAR® Solid Door Freezer","Unit",100]
["Refrigeration","ENERGY STAR® Glass Door Freezer","Unit",350]
[]
[null,null,"Unit","Incentive"]
["Food Service Equipment","ENERGY STAR® Steam Cookers","Unit",400]
["Food Service Equipment","Combination Oven","Unit",800]
["Food Service Equipment","ENERGY STAR® Hot Holding Cabinet - 1/2 size","Unit",200]
["Food Service Equipment","ENERGY STAR® Hot Holding Cabinet - 3/4 size","Unit",300]
["Food Service Equipment","ENERGY STAR® Hot Holding Cabinet - Full size","Unit",400]
["Food Service Equipment","ENERGY STAR® Beverage Vending Machine","Unit",80]
["Food Service Equipment","ENERGY STAR® Commercial Vat Fryer","Unit",225]
["Food Service Equipment","ENERGY STAR® Griddle","Unit",125]
[]
[null,null,"Unit","Incentive"]
["High Efficiency Ice Makers","101-200 lbs/24 hours","Unit",100]
["High Efficiency Ice Makers","201-300 lbs/24 hours","Unit",150]
["High Efficiency Ice Makers","301-400 lbs/24 hours","Unit",200]
["High Efficiency Ice Makers","401-500 lbs/24 hours","Unit",250]
["High Efficiency Ice Makers","501-1000 lbs/24 hours","Unit",300]
["High Efficiency Ice Makers","1001-1500 lbs/24 hours","Unit",350]
["High Efficiency Ice Makers",">1500 lbs/24 hours","Unit",400]
[]
[null,null,"Unit","Incentive"]
["Plug Load Controls","Beverage Vending Machine Control","Unit","Contact for offer"]
["Plug Load Controls","Refrigerated Cooler Control","Unit","Contact for offer"]
["Plug Load Controls","Snack Machine Control","Unit","Contact for offer"]
["Plug Load Controls","Plug Load Occupancy Sensors","Unit",25]
[]
[null,null,"Unit","Incentive"]
["Motors","1200 RPM -  1 HP - Open ","motor",1]
["Motors","1200 RPM -  1 HP - Open ","motor",1.5]
["Motors","1200 RPM -  1 HP - Open ","motor",2]
["Motors","1200 RPM -  1 HP - Open ","motor",3]
["Motors","1200 RPM -  1 HP - Open ","motor",4]
["Motors","1200 RPM -  1 HP - Open ","motor",9]
["Motors","1200 RPM -  1 HP - Open ","motor",10]
["Motors","1200 RPM -  1 HP - Open ","motor",11]
["Motors","1200 RPM -  1 HP - Open ","motor",12]
["Motors","1200 RPM -  1 HP - Open ","motor",15]
["Motors","1200 RPM -  1 HP - Open ","motor",17]
["Motors","1200 RPM -  1 HP - Open ","motor",20]
["Motors","1200 RPM -  1 HP - Open ","motor",24]
["Motors","1200 RPM -  1 HP - Open ","motor",25]
["Motors","1200 RPM -  1 HP - Open ","motor",30]
["Motors","1200 RPM -  1 HP - Open ","motor",40]
["Motors","1200 RPM -  1 HP - Open ","motor",50]
["Motors","1200 RPM -  1 HP - Open ","motor",60]
["Motors","1200 RPM -  1 HP - Open ","motor",75]
["Motors","1200 RPM -  1 HP - Open ","motor",1]
["Motors","1200 RPM -  1 HP - Open ","motor",1.5]
["Motors","1200 RPM -  1 HP - Open ","motor",2]
["Motors","1200 RPM -  1 HP - Open ","motor",3]
["Motors","1200 RPM -  1 HP - Open ","motor",4]
["Motors","1200 RPM -  1 HP - Open ","motor",9]
["Motors","1200 RPM -  1 HP - Open ","motor",10]
["Motors","1200 RPM -  1 HP - Open ","motor",11]
["Motors","1200 RPM -  1 HP - Open ","motor",12]
["Motors","1200 RPM -  1 HP - Open ","motor",15]
["Motors","1200 RPM -  1 HP - Open ","motor",17]
["Motors","1200 RPM -  1 HP - Open ","motor",20]
["Motors","1200 RPM -  1 HP - Open ","motor",24]
["Motors","1200 RPM -  1 HP - Open ","motor",25]
["Motors","1200 RPM -  1 HP - Open ","motor",30]
["Motors","1200 RPM -  1 HP - Open ","motor",40]
["Motors","1200 RPM -  1 HP - Open ","motor",50]
["Motors","1200 RPM -  1 HP - Open ","motor",60]
["Motors","1200 RPM -  1 HP - Open ","motor",75]
["Motors","1200 RPM -  1 HP - Open ","motor",1]
["Motors","1200 RPM -  1 HP - Open ","motor",1.5]
["Motors","1200 RPM -  1 HP - Open ","motor",2]
["Motors","1200 RPM -  1 HP - Open ","motor",3]
["Motors","1200 RPM -  1 HP - Open ","motor",4]
["Motors","1200 RPM -  1 HP - Open ","motor",9]
["Motors","1200 RPM -  1 HP - Open ","motor",10]
["Motors","1200 RPM -  1 HP - Open ","motor",11]
["Motors","1200 RPM -  1 HP - Open ","motor",12]
["Motors","1200 RPM -  1 HP - Open ","motor",15]
["Motors","1200 RPM -  1 HP - Open ","motor",17]
["Motors","1200 RPM -  1 HP - Open ","motor",20]
["Motors","1200 RPM -  1 HP - Open ","motor",24]
["Motors","1200 RPM -  1 HP - Open ","motor",25]
["Motors","1200 RPM -  1 HP - Open ","motor",30]
["Motors","1200 RPM -  1 HP - Open ","motor",40]
["Motors","1200 RPM -  1 HP - Open ","motor",50]
["Motors","1200 RPM -  1 HP - Open ","motor",60]
["Motors","1200 RPM -  1 HP - Open ","motor",75]
["Motors","1200 RPM -  1 HP - Open ","motor",1]
["Motors","1200 RPM -  1 HP - Open ","motor",1.5]
["Motors","1200 RPM -  1 HP - Open ","motor",2]
["Motors","1200 RPM -  1 HP - Open ","motor",3]
["Motors","1200 RPM -  1 HP - Open ","motor",4]
["Motors","1200 RPM -  1 HP - Open ","motor",9]
["Motors","1200 RPM -  1 HP - Open ","motor",10]
["Motors","1200 RPM -  1 HP - Open ","motor",11]
["Motors","1200 RPM -  1 HP - Open ","motor",12]
["Motors","1200 RPM -  1 HP - Open ","motor",15]
["Motors","1200 RPM -  1 HP - Open ","motor",17]
["Motors","1200 RPM -  1 HP - Open ","motor",20]
["Motors","1200 RPM -  1 HP - Open ","motor",24]
["Motors","1200 RPM -  1 HP - Open ","motor",25]
["Motors","1200 RPM -  1 HP - Open ","motor",30]
["Motors","1200 RPM -  1 HP - Open ","motor",40]
["Motors","1200 RPM -  1 HP - Open ","motor",50]
["Motors","1200 RPM -  1 HP - Open ","motor",60]
["Motors","1200 RPM -  1 HP - Open ","motor",75]
["Motors","1200 RPM -  1 HP - Open ","motor",1]
["Motors","1200 RPM -  1 HP - Open ","motor",1.5]
["Motors","1200 RPM -  1 HP - Open ","motor",2]
["Motors","1200 RPM -  1 HP - Open ","motor",3]
["Motors","1200 RPM -  1 HP - Open ","motor",4]
["Motors","1200 RPM -  1 HP - Open ","motor",9]
["Motors","1200 RPM -  1 HP - Open ","motor",10]
["Motors","1200 RPM -  1 HP - Open ","motor",11]
["Motors","1200 RPM -  1 HP - Open ","motor",12]
["Motors","1200 RPM -  1 HP - Open ","motor",15]
["Motors","1200 RPM -  1 HP - Open ","motor",17]
["Motors","1200 RPM -  1 HP - Open ","motor",20]
["Motors","1200 RPM -  1 HP - Open ","motor",24]
["Motors","1200 RPM -  1 HP - Open ","motor",25]
["Motors","1200 RPM -  1 HP - Open ","motor",30]
["Motors","1200 RPM -  1 HP - Open ","motor",40]
["Motors","1200 RPM -  1 HP - Open ","motor",50]
["Motors","1200 RPM -  1 HP - Open ","motor",60]
["Motors","1200 RPM -  1 HP - Open ","motor",75]
["Motors","1200 RPM -  1 HP - Open ","motor",1]
["Motors","1200 RPM -  1 HP - Open ","motor",1.5]
["Motors","1200 RPM -  1 HP - Open ","motor",2]
["Motors","1200 RPM -  1 HP - Open ","motor",3]
["Motors","1200 RPM -  1 HP - Open ","motor",4]
["Motors","1200 RPM -  1 HP - Open ","motor",9]
["Motors","1200 RPM -  1 HP - Open ","motor",10]
["Motors","1200 RPM -  1 HP - Open ","motor",11]
["Motors","1200 RPM -  1 HP - Open ","motor",12]
["Motors","1200 RPM -  1 HP - Open ","motor",15]
["Motors","1200 RPM -  1 HP - Open ","motor",17]
["Motors","1200 RPM -  1 HP - Open ","motor",20]
["Motors","1200 RPM -  1 HP - Open ","motor",24]
["Motors","1200 RPM -  1 HP - Open ","motor",25]
["Motors","1200 RPM -  1 HP - Open ","motor",30]
["Motors","1200 RPM -  1 HP - Open ","motor",40]
["Motors","1200 RPM -  1 HP - Open ","motor",50]
["Motors","1200 RPM -  1 HP - Open ","motor",60]
["Motors","1200 RPM -  1 HP - Open ","motor",75]
[]
[]
[null,null,"Unit","Incentive"]
["VSDs","VSD Size (HP)","Hp",50]
[]
[null,null,"Unit","Incentive"]
["HVAC","HVAC Units, contact for offer","Unit","Contact for offer"]
[]
[null,null,"Unit","Incentive"]
["Custom","Per kWh","kWh",7.4999999999999997E-2]

{"sheet":"Income Qualifier Directory","index":5,"n_rows":279,"n_cols":18,"rows_kept":279,"cut":false,"hidden":false,"merged":[[0,0,0,1],[0,4,0,5]]}
["**Some properties that are considered \"Income Qualified/Low Income\" may not be listed here. Please contact MF Program Administrator to verify eligibility**",null,null,{"$f":"IF(C1=\"\",\"<--- Type Address\",H3)","v":"<--- Type Address"},{"$f":"IF(C1=\"\",\"\",IF(H3=\"\",\"Not Listed\",\"Income Qualified/Low Income\"))","v":""}]
["#","Apartment Community Name\n(as shown in NM MFA website)","Address","City/Town","Zip Code","Phone #",{"$f":"IFERROR(VLOOKUP(A3,H2:H279,3,FALSE),\"\")","v":""}]
[1,"Abo Apartments","700 N. 10th St.","Artesia",88210,"575.746.2496",1,{"$f":"IFERROR(VLOOKUP(G3,$I$3:$K$279,3,TRUE),\"\")","v":"700 N. 10th St."},{"$f":"IFERROR(RANK(J3,$J$3:$J$279,1),\"\")","v":1},{"$f":"IFERROR(SEARCH($C$1,K3)+ROW()/100000,\"\")","v":1.00003},"700 N. 10th St.",null,null,1,{"$f":"IFERROR(VLOOKUP(N3,P3:R279,3,FALSE),\"\")","v":""},{"$f":"IFERROR(RANK(Q3,$Q$3:$Q$279,1),\"\")","v":""},{"$f":"IFERROR(SEARCH(#REF!,R3)+ROW()/100000,\"\")","v":""},"575.746.2496"]
[2,"Abode Group Home","999 W. Amador","Las Cruces",88005,"575.523.2219",2,{"$f":"IFERROR(VLOOKUP(G4,$I$3:$K$279,3,TRUE),\"\")","v":"999 W. Amador"},2,1.00004,"999 W. Amador",null,null,2,{"$f":"IFERROR(VLOOKUP(N4,P4:R279,3,FALSE),\"\")","v":""},"",{"$f":"IFERROR(SEARCH(#REF!,R4)+ROW()/100000,\"\")","v":""},"575.523.2219"]
[3,"Alta Tierra","1500 E. Madrid","Las Cruces",88001,"575.523.5472",3,"1500 E. Madrid",3,1.0000500000000001,"1500 E. Madrid",null,null,3,{"$f":"IFERROR(VLOOKUP(N5,P5:R279,3,FALSE),\"\")","v":""},"",{"$f":"IFERROR(SEARCH(#REF!,R5)+ROW()/100000,\"\")","v":""},"575.523.5472"]
[4,"Anasazi Village","6921 Airport Road","Santa Fe",87507,"505.474.7200",4,"6921 Airport Road",4,1.0000599999999999,"6921 Airport Road",null,null,4,{"$f":"IFERROR(VLOOKUP(N6,P6:R279,3,FALSE),\"\")","v":""},"",{"$f":"IFERROR(SEARCH(#REF!,R6)+ROW()/100000,\"\")","v":""},"505.474.7200"]
[5,"Andalusia","208 N Connelly St.","Clovis",88101,"575.763.9504",5,"208 N Connelly St.",5,1.00007,"208 N Connelly St.",null,null,5,"","",{"$f":"IFERROR(SEARCH(#REF!,R7)+ROW()/100000,\"\")","v":""},"575.763.9504"]
[6,"Apple Ridge","1600 Cliffside Drive","Farmington",87401,"505.327.0151",6,"1600 Cliffside Drive",6,1.0000800000000001,"1600 Cliffside Drive",null,null,6,"","",{"$f":"IFERROR(SEARCH(#REF!,R8)+ROW()/100000,\"\")","v":""},"505.327.0151"]
[7,"Arioso","7303 Montgomery Blvd. NE","Albuquerque",87109,"505.884.7622",7,"7303 Montgomery Blvd. NE",7,1.0000899999999999,"7303 Montgomery Blvd. NE",null,null,7,"","",{"$f":"IFERROR(SEARCH(#REF!,R9)+ROW()/100000,\"\")","v":""},"505.884.7622"]
[8,"Arrowhead Ridge","4515 Arrowhead Ridge Drive SE","Rio Rancho",87124,"505.892.2988",8,"4515 Arrowhead Ridge Drive SE",8,1.0001,"4515 Arrowhead Ridge Drive SE",null,null,8,"","",{"$f":"IFERROR(SEARCH(#REF!,R10)+ROW()/100000,\"\")","v":""},"505.892.2988"]
[9,"Arroyo Villas","4701 Irving Blvd. NW","Albuquerque",87114,"505.898.6719",9,"4701 Irving Blvd. NW",9,1.0001100000000001,"4701 Irving Blvd. NW",null,null,9,"","",{"$f":"IFERROR(SEARCH(#REF!,R11)+ROW()/100000,\"\")","v":""},"505.898.6719"]
[10,"Arroyo Vista","4201 Bryn Mawr Dr. NE","Albuquerque",87107,"505.243.6202",10,"4201 Bryn Mawr Dr. NE",10,1.0001199999999999,"4201 Bryn Mawr Dr. NE",null,null,10,"","",{"$f":"IFERROR(SEARCH(#REF!,R12)+ROW()/100000,\"\")","v":""},"505.243.6202"]
[11,"Artesia Properties","1601 W. Centre St.","Artesia",88210,"575.746.3236",11,"1601 W. Centre St.",11,1.00013,"1601 W. Centre St.",null,null,11,"","",{"$f":"IFERROR(SEARCH(#REF!,R13)+ROW()/100000,\"\")","v":""},"575.746.3236"]
[12,"Aspen Ridge","820 Louisiana Blvd. SE","Albuquerque",87108,"505.268.3344",12,"820 Louisiana Blvd. SE",12,1.00014,"820 Louisiana Blvd. SE",null,null,12,"","",{"$f":"IFERROR(SEARCH(#REF!,R14)+ROW()/100000,\"\")","v":""},"505.268.3344"]
[13,"Avalon Cove","1200 E. Broadway","Hobbs",88240,"575.393.1475",13,"1200 E. Broadway",13,1.0001500000000001,"1200 E. Broadway",null,null,13,"","",{"$f":"IFERROR(SEARCH(#REF!,R15)+ROW()/100000,\"\")","v":""},"575.393.1475"]
[14,"Azotea Senior","2400 E. First St.","Alamogordo",88310,"575.437.5465",14,"2400 E. First St.",14,1.0001599999999999,"2400 E. First St.",null,null,14,"","",{"$f":"IFERROR(SEARCH(#REF!,R16)+ROW()/100000,\"\")","v":""},"575.437.5465"]
[15,"Aztec Village","4321 Montgomery Blvd. NE","Albuquerque",87109,"505.883.0859",15,"4321 Montgomery Blvd. NE",15,1.00017,"4321 Montgomery Blvd. NE",null,null,15,"","",{"$f":"IFERROR(SEARCH(#REF!,R17)+ROW()/100000,\"\")","v":""},"505.883.0859"]
[16,"Belen Crossing","1200 Court St.","Belen",87002,"505.864.4640",16,"1200 Court St.",16,1.0001800000000001,"1200 Court St.",null,null,16,"","",{"$f":"IFERROR(SEARCH(#REF!,R18)+ROW()/100000,\"\")","v":""},"505.864.4640"]
[17,"Belen Vista","531 Christopher Road","Belen",87002,"505.864.7999",17,"531 Christopher Road",17,1.0001899999999999,"531 Christopher Road",null,null,17,{"$f":"IFERROR(VLOOKUP(N19,P19:R294,3,FALSE),\"\")","v":""},"",{"$f":"IFERROR(SEARCH(#REF!,R19)+ROW()/100000,\"\")","v":""},"505.864.7999"]
[18,"Bella Vista","110 Otoño Road","Taos",87571,"575.751.1017",18,"110 Otoño Road",18,1.0002,"110 Otoño Road",null,null,18,"","",{"$f":"IFERROR(SEARCH(#REF!,R20)+ROW()/100000,\"\")","v":""},"575.751.1017"]
[19,"Bella Vista Townhomes","3400 Gidding","Clovis",88101,"575.763.4297",19,"3400 Gidding",19,1.00021,"3400 Gidding",null,null,19,"","",{"$f":"IFERROR(SEARCH(#REF!,R21)+ROW()/100000,\"\")","v":""},"575.763.4297"]
[20,"Brentwood Gardens","6302 Harper Place NE","Albuquerque",87109,"505.821.0818",20,"6302 Harper Place NE",20,1.0002200000000001,"6302 Harper Place NE",null,null,20,"","",{"$f":"IFERROR(SEARCH(#REF!,R22)+ROW()/100000,\"\")","v":""},"505.821.0818"]
[21,"Broadway","414 Broadway Blvd. SE","Albuquerque",87102,"505.266.5414",21,"414 Broadway Blvd. SE",21,1.00023,"414 Broadway Blvd. SE",null,null,21,"","",{"$f":"IFERROR(SEARCH(#REF!,R23)+ROW()/100000,\"\")","v":""},"505.266.5414"]
[22,"Buena Vista","1355 Meadowlark Lane SE","Rio Rancho",87124,"505.896.8959",22,"1355 Meadowlark Lane SE",22,1.00024,"1355 Meadowlark Lane SE",null,null,22,"","",{"$f":"IFERROR(SEARCH(#REF!,R24)+ROW()/100000,\"\")","v":""},"505.896.8959"]
[23,"Buena Vista Senior Living","1501 Good Samaritan Drive","Lovington",88260,"575.396.4912",23,"1501 Good Samaritan Drive",23,1.0002500000000001,"1501 Good Samaritan Drive",null,null,23,"","",{"$f":"IFERROR(SEARCH(#REF!,R25)+ROW()/100000,\"\")","v":""},"575.396.4912"]
[24,"Burley Court","1401 Burley Court","Las Cruces",88005,"575.528.2017",24,"1401 Burley Court",24,1.0002599999999999,"1401 Burley Court",null,null,24,"","",{"$f":"IFERROR(SEARCH(#REF!,R26)+ROW()/100000,\"\")","v":""},"575.528.2017"]
[25,"Campo Alegria","104 Camino del Campo #58","Santa Fe",87501,"505.983.6324",25,"104 Camino del Campo #58",25,1.00027,"104 Camino del Campo #58",null,null,25,"","",{"$f":"IFERROR(SEARCH(#REF!,R27)+ROW()/100000,\"\")","v":""},"505.983.6324"]
[26,"Candelaria Gardens","820 Candelaria NW","Albuquerque",87105,"505.833.6000",26,"820 Candelaria NW",26,1.0002800000000001,"820 Candelaria NW",null,null,26,"","",{"$f":"IFERROR(SEARCH(#REF!,R28)+ROW()/100000,\"\")","v":""},"505.833.6000"]
[27,"Candlelight Square","7501 Montgomery Blvd. NE","Albuquerque",87109,"505.884.2295",27,"7501 Montgomery Blvd. NE",27,1.0002899999999999,"7501 Montgomery Blvd. NE",null,null,27,"","",{"$f":"IFERROR(SEARCH(#REF!,R29)+ROW()/100000,\"\")","v":""},"505.884.2295"]
[28,"Cañon de Arrowhead","1700 Market St. NW","Albuquerque",87120,"505.833.9334",28,"1700 Market St. NW",28,1.0003,"1700 Market St. NW",null,null,28,"","",{"$f":"IFERROR(SEARCH(#REF!,R30)+ROW()/100000,\"\")","v":""},"505.833.9334"]
[29,"Canyon Point","301 Western Skies Drive SE","Albuquerque",87123,"505.294.3108",29,"301 Western Skies Drive SE",29,1.00031,"301 Western Skies Drive SE",null,null,29,"","",{"$f":"IFERROR(SEARCH(#REF!,R31)+ROW()/100000,\"\")","v":""},"505.294.3108"]
[30,"Canyon Ridge","200 Figueroa St. NE","Albuquerque",87123,"505.299.8066",30,"200 Figueroa St. NE",30,1.0003200000000001,"200 Figueroa St. NE",null,null,30,"","",{"$f":"IFERROR(SEARCH(#REF!,R32)+ROW()/100000,\"\")","v":""},"505.299.8066"]
[31,"Canyon Walk","120 DP Road","Los Alamos",87544,"505.453.3393",31,"120 DP Road",31,1.0003299999999999,"120 DP Road",null,null,31,"","",{"$f":"IFERROR(SEARCH(#REF!,R33)+ROW()/100000,\"\")","v":""},"505.453.3393"]
[32,"Casa Alegre","400 Mountain View Drive","Las Vegas",87701,"505.454.0016",32,"400 Mountain View Drive",32,1.00034,"400 Mountain View Drive",null,null,32,"","",{"$f":"IFERROR(SEARCH(#REF!,R34)+ROW()/100000,\"\")","v":""},"505.454.0016"]
[33,"Casa Bonita - LL","675 US Highway 314 SW","Los Lunas",87031,"505.865.4588",33,"675 US Highway 314 SW",33,1.0003500000000001,"675 US Highway 314 SW",null,null,33,"","",{"$f":"IFERROR(SEARCH(#REF!,R35)+ROW()/100000,\"\")","v":""},"505.865.4588"]
[34,"Casa Bonita-ABQ","4528 Carlisle Blvd. NE","Albuquerque",87109,"505.881.0668",34,"4528 Carlisle Blvd. NE",34,1.0003599999999999,"4528 Carlisle Blvd. NE",null,null,34,"","",{"$f":"IFERROR(SEARCH(#REF!,R36)+ROW()/100000,\"\")","v":""},"505.881.0668"]
[35,"Casa de Chavez","675 US Highway 314 SW","Los Lunas",87031,"505.865.4588",35,"675 US Highway 314 SW",35,1.00037,"675 US Highway 314 SW",null,null,35,"","",{"$f":"IFERROR(SEARCH(#REF!,R37)+ROW()/100000,\"\")","v":""},"505.865.4588"]
[36,"Casa del Rio","165 N. Silver","T or C",87901,"575.894.2244",36,"165 N. Silver",36,1.00038,"165 N. Silver",null,null,36,"","",{"$f":"IFERROR(SEARCH(#REF!,R38)+ROW()/100000,\"\")","v":""},"575.894.2244"]
[37,"Casa Feliz","443 Espanola St. SE","Albuquerque",87108,"505.595.3952",37,"443 Espanola St. SE",37,1.0003899999999999,"443 Espanola St. SE",null,null,37,"","",{"$f":"IFERROR(SEARCH(#REF!,R39)+ROW()/100000,\"\")","v":""},"505.595.3952"]
[38,"Casa Linda","100 E. 17 St.","Silver City",88061,"575.388.3755",38,"100 E. 17 St.",38,1.0004,"100 E. 17 St.",null,null,38,"","",{"$f":"IFERROR(SEARCH(#REF!,R40)+ROW()/100000,\"\")","v":""},"575.388.3755"]
[39,"Casa Rufina","2323 Casa Rufina Road","Santa Fe",87507,"505.988.1116",39,"2323 Casa Rufina Road",39,1.00041,"2323 Casa Rufina Road",null,null,39,"","",{"$f":"IFERROR(SEARCH(#REF!,R41)+ROW()/100000,\"\")","v":""},"505.988.1116"]
[40,"Casa Villita","3330 Calle Po Ae Pi","Santa Fe",87507,"505.474.7400",40,"3330 Calle Po Ae Pi",40,1.0004200000000001,"3330 Calle Po Ae Pi",null,null,40,"","",{"$f":"IFERROR(SEARCH(#REF!,R42)+ROW()/100000,\"\")","v":""},"505.474.7400"]
[41,"Casamera","350 S. Basilio Dr.","Gallup",87301,"505.863.2700",41,"350 S. Basilio Dr.",41,1.0004299999999999,"350 S. Basilio Dr.",null,null,41,"","",{"$f":"IFERROR(SEARCH(#REF!,R43)+ROW()/100000,\"\")","v":""},"505.863.2700"]
[42,"Casitas de Colores","215 Lead Ave. SW","Albuquerque",87102,"505.842.5644",42,"215 Lead Ave. SW",42,1.00044,"215 Lead Ave. SW",null,null,42,"","",{"$f":"IFERROR(SEARCH(#REF!,R44)+ROW()/100000,\"\")","v":""},"505.842.5644"]
[43,"Cedar Hills","1710 Elm Circle","Gallup",87301,"505.863.3689",43,"1710 Elm Circle",43,1.0004500000000001,"1710 Elm Circle",null,null,43,"","",{"$f":"IFERROR(SEARCH(#REF!,R45)+ROW()/100000,\"\")","v":""},"505.863.3689"]
[44,"Central Apartments","500 S. Prescott St.","Santa Clara",88026,"575.537.6012",44,"500 S. Prescott St.",44,1.0004599999999999,"500 S. Prescott St.",null,null,44,"","",{"$f":"IFERROR(SEARCH(#REF!,R46)+ROW()/100000,\"\")","v":""},"575.537.6012"]
[45,"Chaco River","NW Division, W. of mile Marker 94 on Hwy 491","Shiprock",87420,"505.368.3735",45,"NW Division, W. of mile Marker 94 on Hwy 491",45,1.00047,"NW Division, W. of mile Marker 94 on Hwy 491",null,null,45,"","",{"$f":"IFERROR(SEARCH(#REF!,R47)+ROW()/100000,\"\")","v":""},"505.368.3735"]
[46,"Chateau","6101 Osuna Road NE","Albuquerque",87109,"505.883.0864",46,"6101 Osuna Road NE",46,1.00048,"6101 Osuna Road NE",null,null,46,"","",{"$f":"IFERROR(SEARCH(#REF!,R48)+ROW()/100000,\"\")","v":""},"505.883.0864"]
[47,"Chuska","2534 E. Aztec Ave.","Gallup",87301,"505.863.7400",47,"2534 E. Aztec Ave.",47,1.0004900000000001,"2534 E. Aztec Ave.",null,null,47,{"$f":"IFERROR(VLOOKUP(N49,P49:R325,3,FALSE),\"\")","v":""},"",{"$f":"IFERROR(SEARCH(#REF!,R49)+ROW()/100000,\"\")","v":""},"505.863.7400"]
[48,"Cibola","1101 El Camino Real","Socorro",87801,"575.835.3315",48,"1101 El Camino Real",48,1.0004999999999999,"1101 El Camino Real",null,null,48,"","",{"$f":"IFERROR(SEARCH(#REF!,R50)+ROW()/100000,\"\")","v":""},"575.835.3315"]
[49,"Cielo Azul","621  Cielo Azul","Aztec",87410,"505.334.0044",49,"621  Cielo Azul",49,1.00051,"621  Cielo Azul",null,null,49,"","",{"$f":"IFERROR(SEARCH(#REF!,R51)+ROW()/100000,\"\")","v":""},"505.334.0044"]
[50,"Cielo De Oro Senior Housing","1700 W. Hendricks St.","Roswell",88203,"575.622.4146",50,"1700 W. Hendricks St.",50,1.0005200000000001,"1700 W. Hendricks St.",null,null,50,"","",{"$f":"IFERROR(SEARCH(#REF!,R52)+ROW()/100000,\"\")","v":""},"575.622.4146"]
[51,"Cimmaron","825 Fourth St.","Anthony",88021,"575.882.0042",51,"825 Fourth St.",51,1.0005299999999999,"825 Fourth St.",null,null,51,"","",{"$f":"IFERROR(SEARCH(#REF!,R53)+ROW()/100000,\"\")","v":""},"575.882.0042"]
[52,"Cinnamon Ridge","1004 Cinnamon Loop","Santa Rosa",88435,"575.472.3974",52,"1004 Cinnamon Loop",52,1.00054,"1004 Cinnamon Loop",null,null,52,"","",{"$f":"IFERROR(SEARCH(#REF!,R54)+ROW()/100000,\"\")","v":""},"575.472.3974"]
[53,"Cliffside","601 Dani Drive","Gallup",87301,"505.722.0127",53,"601 Dani Drive",53,1.0005500000000001,"601 Dani Drive",null,null,53,"","",{"$f":"IFERROR(SEARCH(#REF!,R55)+ROW()/100000,\"\")","v":""},"505.722.0127"]
[54,"Clovis Apartments","1000 N. Martin Luther King Jr. Blvd.","Clovis",88101,"575.762.1533",54,"1000 N. Martin Luther King Jr. Blvd.",54,1.0005599999999999,"1000 N. Martin Luther King Jr. Blvd.",null,null,54,"","",{"$f":"IFERROR(SEARCH(#REF!,R56)+ROW()/100000,\"\")","v":""},"575.762.1533"]
[55,"Colina Vista","604 N. Fifth St.","Carlsbad",88220,"575.885.3816",55,"604 N. Fifth St.",55,1.00057,"604 N. Fifth St.",null,null,55,"","",{"$f":"IFERROR(SEARCH(#REF!,R57)+ROW()/100000,\"\")","v":""},"575.885.3816"]
[56,"Columbus","60 Botanica Drive","Columbus",88029,"575.531.2546",56,"60 Botanica Drive",56,1.00058,"60 Botanica Drive",null,null,56,"","",{"$f":"IFERROR(SEARCH(#REF!,R58)+ROW()/100000,\"\")","v":""},"575.531.2546"]
[57,"Copper Terrace","12801 Copper NE","Albuquerque",87123,"505.293.5300",57,"12801 Copper NE",57,1.0005900000000001,"12801 Copper NE",null,null,57,"","",{"$f":"IFERROR(SEARCH(#REF!,R59)+ROW()/100000,\"\")","v":""},"505.293.5300"]
[58,"Cottonwood Commons","1220 Jefferson St.","Alamogordo",88310,"575.434.2036",58,"1220 Jefferson St.",58,1.0005999999999999,"1220 Jefferson St.",null,null,58,"","",{"$f":"IFERROR(SEARCH(#REF!,R60)+ROW()/100000,\"\")","v":""},"575.434.2036"]
[59,"Country Club","1002 Airport Road","Santa Fe",87505,"505.471.1871",59,"1002 Airport Road",59,1.00061,"1002 Airport Road",null,null,59,"","",{"$f":"IFERROR(SEARCH(#REF!,R61)+ROW()/100000,\"\")","v":""},"505.471.1871"]
[60,"Cuatro","1319 4th St. SW","Albuquerque",87102,"505.503.1591",60,"1319 4th St. SW",60,1.0006200000000001,"1319 4th St. SW",null,null,60,"","",{"$f":"IFERROR(SEARCH(#REF!,R62)+ROW()/100000,\"\")","v":""},"505.503.1591"]
[61,"David Spector Shalom House","5500 Wyoming Blvd. NE","Albuquerque",87109,"505.823.1433",61,"5500 Wyoming Blvd. NE",61,1.0006299999999999,"5500 Wyoming Blvd. NE",null,null,61,"","",{"$f":"IFERROR(SEARCH(#REF!,R63)+ROW()/100000,\"\")","v":""},"505.823.1433"]
[62,"Deer Hollow Senior","701 Bergin Lane","Bloomfield",87413,"505.632.0296",62,"701 Bergin Lane",62,1.00064,"701 Bergin Lane",null,null,62,"","",{"$f":"IFERROR(SEARCH(#REF!,R64)+ROW()/100000,\"\")","v":""},"505.632.0296"]
[63,"Deming Manor","1000 S. Zinc","Deming",88030,"575.546.7498",63,"1000 S. Zinc",63,1.00065,"1000 S. Zinc",null,null,63,"","",{"$f":"IFERROR(SEARCH(#REF!,R65)+ROW()/100000,\"\")","v":""},"575.546.7498"]
[64,"Depot Apartments","704 W. Maple","Moriarty",87035,"505.832.6746",64,"704 W. Maple",64,1.0006600000000001,"704 W. Maple",null,null,64,"","",{"$f":"IFERROR(SEARCH(#REF!,R66)+ROW()/100000,\"\")","v":""},"505.832.6746"]
[65,"Desert Palms","2405 W. Picacho","Las Cruces",88007,"575.523.4138",65,"2405 W. Picacho",{"$f":"IFERROR(RANK(J67,$J$3:$J$279,1),\"\")","v":65},{"$f":"IFERROR(SEARCH($C$1,K67)+ROW()/100000,\"\")","v":1.0006699999999999},"2405 W. Picacho",null,null,65,"",{"$f":"IFERROR(RANK(Q67,$Q$3:$Q$279,1),\"\")","v":""},{"$f":"IFERROR(SEARCH(#REF!,R67)+ROW()/100000,\"\")","v":""},"575.523.4138"]
[66,"Desert Sun","1201 N. Eighth St.","Deming",88030,"575.544.9955",66,{"$f":"IFERROR(VLOOKUP(G68,$I$3:$K$279,3,TRUE),\"\")","v":"1201 N. Eighth St."},66,1.00068,"1201 N. Eighth St.",null,null,66,"","",{"$f":"IFERROR(SEARCH(#REF!,R68)+ROW()/100000,\"\")","v":""},"575.544.9955"]
[67,"Desert Willow","8901 Jefferson St. NE","Albuquerque",87113,"505.856.6900",67,"8901 Jefferson St. NE",67,1.0006900000000001,"8901 Jefferson St. NE",null,null,67,"","",{"$f":"IFERROR(SEARCH(#REF!,R69)+ROW()/100000,\"\")","v":""},"505.856.6900"]
[68,"Doña Ana Park","1900 N. Solano Drive","Las Cruces",88001,"575.524.2524",68,"1900 N. Solano Drive",68,1.0006999999999999,"1900 N. Solano Drive",null,null,68,"","",{"$f":"IFERROR(SEARCH(#REF!,R70)+ROW()/100000,\"\")","v":""},"575.524.2524"]
[69,"Downtown @ 700 2nd","700 Second St. NW","Albuquerque",87102,"505.242.2100",69,"700 Second St. NW",69,1.00071,"700 Second St. NW",null,null,69,"","",{"$f":"IFERROR(SEARCH(#REF!,R71)+ROW()/100000,\"\")","v":""},"505.242.2100"]
[70,"E. Mesa","710 W. Mesa","Gallup",87301,"505.879.2554",70,"710 W. Mesa",70,1.0007200000000001,"710 W. Mesa",null,null,70,"","",{"$f":"IFERROR(SEARCH(#REF!,R72)+ROW()/100000,\"\")","v":""},"505.879.2554"]
[71,"Eaton Village","2550 E. 16th St.","Farmington",87401,"505.327.5720",71,"2550 E. 16th St.",71,1.0007299999999999,"2550 E. 16th St.",null,null,71,"","",{"$f":"IFERROR(SEARCH(#REF!,R73)+ROW()/100000,\"\")","v":""},"505.327.5720"]
[72,"Echols Place","1600 Echols Ave.","Clovis",88101,"575.763.9009",72,"1600 Echols Ave.",72,1.00074,"1600 Echols Ave.",null,null,72,"","",{"$f":"IFERROR(SEARCH(#REF!,R74)+ROW()/100000,\"\")","v":""},"575.763.9009"]
[73,"El Camino Real","21 S. Chile Capital Lane","Hatch",87937,"575.267.0215",73,"21 S. Chile Capital Lane",73,1.00075,"21 S. Chile Capital Lane",null,null,73,"","",{"$f":"IFERROR(SEARCH(#REF!,R75)+ROW()/100000,\"\")","v":""},"575.267.0215"]
[74,"El Cerrito","250 Paseo del Cañon East","Taos",87571,"575.751.1892",74,"250 Paseo del Cañon East",74,1.0007600000000001,"250 Paseo del Cañon East",null,null,74,"","",{"$f":"IFERROR(SEARCH(#REF!,R76)+ROW()/100000,\"\")","v":""},"575.751.1892"]
[75,"El Paseo","301 El Pueblo Road NW","Los Ranchos de Albuquerque",87114,"505.922.9600",75,"301 El Pueblo Road NW",75,1.0007699999999999,"301 El Pueblo Road NW",null,null,75,"","",{"$f":"IFERROR(SEARCH(#REF!,R77)+ROW()/100000,\"\")","v":""},"505.922.9600"]
[76,"El Paseo Village","420 Coal St. SE","Albuquerque",87102,"505.842.1078",76,"420 Coal St. SE",76,1.00078,"420 Coal St. SE",null,null,76,"","",{"$f":"IFERROR(SEARCH(#REF!,R78)+ROW()/100000,\"\")","v":""},"505.842.1078"]
[77,"El Pueblo & Madeira Court","1001 Madeira SE","Albuquerque",87108,"505.266.5855",77,"1001 Madeira SE",77,1.0007900000000001,"1001 Madeira SE",null,null,77,"","",{"$f":"IFERROR(SEARCH(#REF!,R79)+ROW()/100000,\"\")","v":""},"505.266.5855"]
[78,"El Sereno","1335 Ortiz Road SE","Albuquerque",87108,"505.750.7503",78,"1335 Ortiz Road SE",78,1.0007999999999999,"1335 Ortiz Road SE",null,null,78,"","",{"$f":"IFERROR(SEARCH(#REF!,R80)+ROW()/100000,\"\")","v":""},"505.750.7503"]
[79,"Encantada","300 Canal Blvd. SW","Los Lunas",87031,"505.865.4113",79,"300 Canal Blvd. SW",79,1.00081,"300 Canal Blvd. SW",null,null,79,{"$f":"IFERROR(VLOOKUP(N81,P81:R357,3,FALSE),\"\")","v":""},"",{"$f":"IFERROR(SEARCH(#REF!,R81)+ROW()/100000,\"\")","v":""},"505.865.4113"]
[80,"Enchanted Vista","4501 Safelite Blvd. NE","Rio Rancho",87144,"505.891.4900",80,"4501 Safelite Blvd. NE",80,1.00082,"4501 Safelite Blvd. NE",null,null,80,"","",{"$f":"IFERROR(SEARCH(#REF!,R82)+ROW()/100000,\"\")","v":""},"505.891.4900"]
[81,"Encino Gardens","412 Alvarado St. SE","Albuquerque",87108,"505.266.7736",81,"412 Alvarado St. SE",81,1.0008300000000001,"412 Alvarado St. SE",null,null,81,"","",{"$f":"IFERROR(SEARCH(#REF!,R83)+ROW()/100000,\"\")","v":""},"505.266.7736"]
[82,"Encino Terrace","609 Encino Place NE","Albuquerque",87102,"505.247.4185",82,"609 Encino Place NE",82,1.00084,"609 Encino Place NE",null,null,82,"","",{"$f":"IFERROR(SEARCH(#REF!,R84)+ROW()/100000,\"\")","v":""},"505.247.4185"]
[83,"Encino Villa","1501 Montano St.","Santa Fe",87505,"505.989.7271",83,"1501 Montano St.",83,1.00085,"1501 Montano St.",null,null,83,"","",{"$f":"IFERROR(SEARCH(#REF!,R85)+ROW()/100000,\"\")","v":""},"505.989.7271"]
[84,"Evergreen","2020 Calle Lorca","Santa Fe",87505,"505.474.9260",84,"2020 Calle Lorca",84,1.0008600000000001,"2020 Calle Lorca",null,null,84,"","",{"$f":"IFERROR(SEARCH(#REF!,R86)+ROW()/100000,\"\")","v":""},"505.474.9260"]
[85,"Falcon Ridge","20 S. Chile Capital St.","Hatch",87937,"575.267.9003",85,"20 S. Chile Capital St.",85,1.0008699999999999,"20 S. Chile Capital St.",null,null,85,"","",{"$f":"IFERROR(SEARCH(#REF!,R87)+ROW()/100000,\"\")","v":""},"575.267.9003"]
[86,"Four Hills","2595 Mars Ave.","Las Cruces",88012,"575.382.0500",86,"2595 Mars Ave.",86,1.00088,"2595 Mars Ave.",null,null,86,"","",{"$f":"IFERROR(SEARCH(#REF!,R88)+ROW()/100000,\"\")","v":""},"575.382.0500"]
[87,"Four Seasons","2405 N. Jefferson St.","Hobbs",88240,"575.392.6243",87,"2405 N. Jefferson St.",87,1.0008900000000001,"2405 N. Jefferson St.",null,null,87,"","",{"$f":"IFERROR(SEARCH(#REF!,R89)+ROW()/100000,\"\")","v":""},"575.392.6243"]
[88,"Franklin Vista","825 Hettinga Lane","Anthony",88021,"575.882.5049",88,"825 Hettinga Lane",88,1.0008999999999999,"825 Hettinga Lane",null,null,88,"","",{"$f":"IFERROR(SEARCH(#REF!,R90)+ROW()/100000,\"\")","v":""},"575.882.5049"]
[89,"Franklin Vista VI, VII","855 Clark Ave.","Anthony",88021,"575.882.3909",89,"855 Clark Ave.",89,1.00091,"855 Clark Ave.",null,null,89,"","",{"$f":"IFERROR(SEARCH(#REF!,R91)+ROW()/100000,\"\")","v":""},"575.882.3909"]
[90,"Gallinas Valley","2612 Seventh St.","Las Vegas",87701,"505.425.5060",90,"2612 Seventh St.",90,1.00092,"2612 Seventh St.",null,null,90,"","",{"$f":"IFERROR(SEARCH(#REF!,R92)+ROW()/100000,\"\")","v":""},"505.425.5060"]
[91,"Gatewood Village","1309 W. 15th St.","Clovis",88101,"575.769.1995",91,"1309 W. 15th St.",91,1.0009300000000001,"1309 W. 15th St.",null,null,91,"","",{"$f":"IFERROR(SEARCH(#REF!,R93)+ROW()/100000,\"\")","v":""},"575.769.1995"]
[92,"Generations at W. Mesa","5710 Avalon Road NW","Albuquerque",87105,"505.833.0656",92,"5710 Avalon Road NW",92,1.0009399999999999,"5710 Avalon Road NW",null,null,92,"","",{"$f":"IFERROR(SEARCH(#REF!,R94)+ROW()/100000,\"\")","v":""},"505.833.0656"]
[93,"Grants","1703 Cordova Court","Grants",87020,"505.287.4973",93,"1703 Cordova Court",93,1.00095,"1703 Cordova Court",null,null,93,"","",{"$f":"IFERROR(SEARCH(#REF!,R95)+ROW()/100000,\"\")","v":""},"505.287.4973"]
[94,"Hidden Valley","810 Patton Drive","Gallup",87301,"505.863.9253",94,"810 Patton Drive",94,1.0009600000000001,"810 Patton Drive",null,null,94,"","",{"$f":"IFERROR(SEARCH(#REF!,R96)+ROW()/100000,\"\")","v":""},"505.863.9253"]
[95,"Hidden Valley Village","717 Ruth Lane","Bloomfield",87413,"505.632.0004",95,"717 Ruth Lane",95,1.0009699999999999,"717 Ruth Lane",null,null,95,"","",{"$f":"IFERROR(SEARCH(#REF!,R97)+ROW()/100000,\"\")","v":""},"505.632.0004"]
[96,"Highland Park","2013 S. Triviz Drive","Las Cruces",88001,"575.522.4868",96,"2013 S. Triviz Drive",96,1.00098,"2013 S. Triviz Drive",null,null,96,"","",{"$f":"IFERROR(SEARCH(#REF!,R98)+ROW()/100000,\"\")","v":""},"575.522.4868"]
[97,"Hilltop Terrace","393 Canal Blvd.","Los Lunas",87031,"505.865.9101",97,"393 Canal Blvd.",97,1.00099,"393 Canal Blvd.",null,null,97,"","",{"$f":"IFERROR(SEARCH(#REF!,R99)+ROW()/100000,\"\")","v":""},"505.865.9101"]
[98,"Hobbs","2001 E. Clinton St.","Hobbs",88240,"575.393.2523",98,"2001 E. Clinton St.",98,1.0009999999999999,"2001 E. Clinton St.",null,null,98,"","",{"$f":"IFERROR(SEARCH(#REF!,R100)+ROW()/100000,\"\")","v":""},"575.393.2523"]
[99,"Homeward Bound","3454 Cerrillos Road","Santa Fe",87507,"505.471.1174",99,"3454 Cerrillos Road",99,1.00101,"3454 Cerrillos Road",null,null,99,"","",{"$f":"IFERROR(SEARCH(#REF!,R101)+ROW()/100000,\"\")","v":""},"505.471.1174"]
[100,"Horizon","1309 23rd St.","Eunice",88231,"575.613.4118",100,"1309 23rd St.",100,1.00102,"1309 23rd St.",null,null,100,"","",{"$f":"IFERROR(SEARCH(#REF!,R102)+ROW()/100000,\"\")","v":""},"575.613.4118"]
[101,"Hotel Clovis Lofts","201 N. Main St.","Clovis",88101,"575.763.9588",101,"201 N. Main St.",101,1.0010300000000001,"201 N. Main St.",null,null,101,"","",{"$f":"IFERROR(SEARCH(#REF!,R103)+ROW()/100000,\"\")","v":""},"575.763.9588"]
[102,"Imperial","205 Silver Ave. SW","Albuquerque",87102,"505.247.2551",102,"205 Silver Ave. SW",102,1.0010399999999999,"205 Silver Ave. SW",null,null,102,"","",{"$f":"IFERROR(SEARCH(#REF!,R104)+ROW()/100000,\"\")","v":""},"505.247.2551"]
[103,"I-Sah-din-dii","101 Central Ave.","Mescalero",88340,"575.464.9235",103,"101 Central Ave.",103,1.00105,"101 Central Ave.",null,null,103,"","",{"$f":"IFERROR(SEARCH(#REF!,R105)+ROW()/100000,\"\")","v":""},"575.464.9235"]
[104,"Jack Rabbit Hill","Eagle View Lane","Picuris Pueblo",87553,"505.455.7973",104,"Eagle View Lane",104,1.0010600000000001,"Eagle View Lane",null,null,104,"","",{"$f":"IFERROR(SEARCH(#REF!,R106)+ROW()/100000,\"\")","v":""},"505.455.7973"]
[105,"James K. Lyons Apartments","109 N. Ave I","Portales",88130,"575.359.1732",105,"109 N. Ave I",105,1.0010699999999999,"109 N. Ave I",null,null,105,"","",{"$f":"IFERROR(SEARCH(#REF!,R107)+ROW()/100000,\"\")","v":""},"575.359.1732"]
[106,"Jefferson Crossings","4401 Montgomery NE","Albuquerque",87109,"505.881.4999",106,"4401 Montgomery NE",106,1.00108,"4401 Montgomery NE",null,null,106,"","",{"$f":"IFERROR(SEARCH(#REF!,R108)+ROW()/100000,\"\")","v":""},"505.881.4999"]
[107,"Kentucky Manor","437 Kentucky St. SE","Albuquerque",87108,"505.266.5414",107,"437 Kentucky St. SE",107,1.00109,"437 Kentucky St. SE",null,null,107,"","",{"$f":"IFERROR(SEARCH(#REF!,R109)+ROW()/100000,\"\")","v":""},"505.266.5414"]
[108,"King Arthur’s Court","428 W. Gale","Lordsburg",88045,"575.542.9336",108,"428 W. Gale",108,1.0011000000000001,"428 W. Gale",null,null,108,"","",{"$f":"IFERROR(SEARCH(#REF!,R110)+ROW()/100000,\"\")","v":""},"575.542.9336"]
[109,"Kingdom of the Sun Retirement Center","800 W. Buckeye St.","Deming",88030,"575.546.9323",109,"800 W. Buckeye St.",109,1.0011099999999999,"800 W. Buckeye St.",null,null,109,"","",{"$f":"IFERROR(SEARCH(#REF!,R111)+ROW()/100000,\"\")","v":""},"575.546.9323"]
[110,"Kristin Park","2351 Moreland Drive","Las Vegas",87701,"505.425.6555",110,"2351 Moreland Drive",110,1.00112,"2351 Moreland Drive",null,null,110,"","",{"$f":"IFERROR(SEARCH(#REF!,R112)+ROW()/100000,\"\")","v":""},"505.425.6555"]
[111,"La Cantera Senior","3600 Old Airport Road NW","Albuquerque",87114,"505.890.9400",111,"3600 Old Airport Road NW",111,1.0011300000000001,"3600 Old Airport Road NW",null,null,111,{"$f":"IFERROR(VLOOKUP(N113,P113:R389,3,FALSE),\"\")","v":""},"",{"$f":"IFERROR(SEARCH(#REF!,R113)+ROW()/100000,\"\")","v":""},"505.890.9400"]
[112,"La Hacienda","420 N. Second St. #9","Belen",87002,"505.864.8477",112,"420 N. Second St. #9",112,1.0011399999999999,"420 N. Second St. #9",null,null,112,"","",{"$f":"IFERROR(SEARCH(#REF!,R114)+ROW()/100000,\"\")","v":""},"505.864.8477"]
[113,"La Luz","2325 Cerrillos Road","Santa Fe",87505,"505.438.0010",113,"2325 Cerrillos Road",113,1.00115,"2325 Cerrillos Road",null,null,113,"","",{"$f":"IFERROR(SEARCH(#REF!,R115)+ROW()/100000,\"\")","v":""},"505.438.0010"]
[114,"La Paloma del Sol","601 S. Santa Monica St.","Deming",88030,"575.546.8567",114,"601 S. Santa Monica St.",114,1.00116,"601 S. Santa Monica St.",null,null,114,"","",{"$f":"IFERROR(SEARCH(#REF!,R116)+ROW()/100000,\"\")","v":""},"575.546.8567"]
[115,"La Pradera","1023 E. Glorietta Drive","Hobbs",88240,"575.392.0038",115,"1023 E. Glorietta Drive",115,1.0011699999999999,"1023 E. Glorietta Drive",null,null,115,"","",{"$f":"IFERROR(SEARCH(#REF!,R117)+ROW()/100000,\"\")","v":""},"575.392.0038"]
[116,"La Resolana","1025 Chelwood Park Blvd. NE","Albuquerque",87112,"505.296.1425",116,"1025 Chelwood Park Blvd. NE",116,1.00118,"1025 Chelwood Park Blvd. NE",null,null,116,"","",{"$f":"IFERROR(SEARCH(#REF!,R118)+ROW()/100000,\"\")","v":""},"505.296.1425"]
[117,"La Terraza","900 Cannery Court","Farmington",87401,"505.324.6201",117,"900 Cannery Court",117,1.00119,"900 Cannery Court",null,null,117,"","",{"$f":"IFERROR(SEARCH(#REF!,R119)+ROW()/100000,\"\")","v":""},"505.324.6201"]
[118,"La Terraza Senior","3704 Ladera Drive NW","Albuquerque",87120,"505.836.5800",118,"3704 Ladera Drive NW",118,1.0012000000000001,"3704 Ladera Drive NW",null,null,118,"","",{"$f":"IFERROR(SEARCH(#REF!,R120)+ROW()/100000,\"\")","v":""},"505.836.5800"]
[119,"La Tierra","107 Jack Little Drive","Ruidoso",88345,"575.258.2727",119,"107 Jack Little Drive",119,1.0012099999999999,"107 Jack Little Drive",null,null,119,"","",{"$f":"IFERROR(SEARCH(#REF!,R121)+ROW()/100000,\"\")","v":""},"575.258.2727"]
[120,"La Vida Nueva","1200 Dickerson Drive SE","Albuquerque",87106,"505.265.2860",120,"1200 Dickerson Drive SE",120,1.00122,"1200 Dickerson Drive SE",null,null,120,"","",{"$f":"IFERROR(SEARCH(#REF!,R122)+ROW()/100000,\"\")","v":""},"505.265.2860"]
[121,"La Villa Elena","201 Villa Elena Lane","Bernalillo",87004,"505.867.6123",121,"201 Villa Elena Lane",121,1.0012300000000001,"201 Villa Elena Lane",null,null,121,"","",{"$f":"IFERROR(SEARCH(#REF!,R123)+ROW()/100000,\"\")","v":""},"505.867.6123"]
[122,"Ladera Apartment Homes","102 Dipalo Hill Drive","Ruidoso Downs",88346,"575.378.5262",122,"102 Dipalo Hill Drive",122,1.0012399999999999,"102 Dipalo Hill Drive",null,null,122,"","",{"$f":"IFERROR(SEARCH(#REF!,R124)+ROW()/100000,\"\")","v":""},"575.378.5262"]
[123,"Ladera Village","3500 Butler Ave.","Farmington",87401,"505.326.1687",123,"3500 Butler Ave.",123,1.00125,"3500 Butler Ave.",null,null,123,"","",{"$f":"IFERROR(SEARCH(#REF!,R125)+ROW()/100000,\"\")","v":""},"505.326.1687"]
[124,"Laguna Homes","13 Rodeo Drive","Laguna",87026,"505.552.6430",124,"13 Rodeo Drive",124,1.00126,"13 Rodeo Drive",null,null,124,"","",{"$f":"IFERROR(SEARCH(#REF!,R126)+ROW()/100000,\"\")","v":""},"505.552.6430"]
[125,"Las Brisas","1201 San Pedro Drive SE","Albuquerque",87108,"505.255.4252",125,"1201 San Pedro Drive SE",125,1.0012700000000001,"1201 San Pedro Drive SE",null,null,125,"","",{"$f":"IFERROR(SEARCH(#REF!,R127)+ROW()/100000,\"\")","v":""},"505.255.4252"]
[126,"Las Palomas","2001 Hopewell","Santa Fe",87505,"505.278.6220",126,"2001 Hopewell",126,1.0012799999999999,"2001 Hopewell",null,null,126,"","",{"$f":"IFERROR(SEARCH(#REF!,R128)+ROW()/100000,\"\")","v":""},"505.278.6220"]
[127,"Lifestyle Apartments","4920 Union Way NE","Albuquerque",87107,"505.341.3540",127,"4920 Union Way NE",127,1.00129,"4920 Union Way NE",null,null,127,"","",{"$f":"IFERROR(SEARCH(#REF!,R129)+ROW()/100000,\"\")","v":""},"505.341.3540"]
[128,"Lintero","2711 N. Leslie","Silver City",88061,"575.388.2519",128,"2711 N. Leslie",128,1.0013000000000001,"2711 N. Leslie",null,null,128,"","",{"$f":"IFERROR(SEARCH(#REF!,R130)+ROW()/100000,\"\")","v":""},"575.388.2519"]
[129,"Lolomas Senior Housing","1500 Mitchell St.","Clovis",88101,"575.763.9575",129,"1500 Mitchell St.",{"$f":"IFERROR(RANK(J131,$J$3:$J$279,1),\"\")","v":129},{"$f":"IFERROR(SEARCH($C$1,K131)+ROW()/100000,\"\")","v":1.0013099999999999},"1500 Mitchell St.",null,null,129,"",{"$f":"IFERROR(RANK(Q131,$Q$3:$Q$279,1),\"\")","v":""},{"$f":"IFERROR(SEARCH(#REF!,R131)+ROW()/100000,\"\")","v":""},"575.763.9575"]
[130,"Loma Del Norte","940 N. Fourth St.","Anthony",88021,"575.882.2282",130,{"$f":"IFERROR(VLOOKUP(G132,$I$3:$K$279,3,TRUE),\"\")","v":"940 N. Fourth St."},130,1.00132,"940 N. Fourth St.",null,null,130,"","",{"$f":"IFERROR(SEARCH(#REF!,R132)+ROW()/100000,\"\")","v":""},"575.882.2282"]
[131,"Loma Parda","1200 Camino de La Cruz","Taos",87571,"575.758.4400",131,"1200 Camino de La Cruz",131,1.0013300000000001,"1200 Camino de La Cruz",null,null,131,"","",{"$f":"IFERROR(SEARCH(#REF!,R133)+ROW()/100000,\"\")","v":""},"575.758.4400"]
[132,"Lomas Gardens","12601 Lomas Blvd. NE","Albuquerque",87112,"505.292.5916",132,"12601 Lomas Blvd. NE",132,1.0013399999999999,"12601 Lomas Blvd. NE",null,null,132,"","",{"$f":"IFERROR(SEARCH(#REF!,R134)+ROW()/100000,\"\")","v":""},"505.292.5916"]
[133,"Los Alamos Group Home","2056 Peach St.","Los Alamos",87544,"505.662.4703",133,"2056 Peach St.",133,1.00135,"2056 Peach St.",null,null,133,"","",{"$f":"IFERROR(SEARCH(#REF!,R135)+ROW()/100000,\"\")","v":""},"505.662.4703"]
[134,"Los Altos","2301 El Camino Real","Las Cruces",88007,"575.525.8535",134,"2301 El Camino Real",134,1.00136,"2301 El Camino Real",null,null,134,"","",{"$f":"IFERROR(SEARCH(#REF!,R136)+ROW()/100000,\"\")","v":""},"575.525.8535"]
[135,"Luna Lodge","9119 Central Ave. NE","Albuquerque",87123,"505.508.1220",135,"9119 Central Ave. NE",135,1.0013700000000001,"9119 Central Ave. NE",null,null,135,"","",{"$f":"IFERROR(SEARCH(#REF!,R137)+ROW()/100000,\"\")","v":""},"505.508.1220"]
[136,"Main Street Townhomes","3205 N. Main St.","Clovis",88101,"575.769.2490",136,"3205 N. Main St.",136,1.0013799999999999,"3205 N. Main St.",null,null,136,"","",{"$f":"IFERROR(SEARCH(#REF!,R138)+ROW()/100000,\"\")","v":""},"575.769.2490"]
[137,"Manzano Mesa","700 Eubank Blvd. SE","Albuquerque",87123,"505.332.7200",137,"700 Eubank Blvd. SE",137,1.00139,"700 Eubank Blvd. SE",null,null,137,"","",{"$f":"IFERROR(SEARCH(#REF!,R139)+ROW()/100000,\"\")","v":""},"505.332.7200"]
[138,"Marbella","6801 Glenrio Road NW","Albuquerque",87121,"505.839.0600",138,"6801 Glenrio Road NW",138,1.0014000000000001,"6801 Glenrio Road NW",null,null,138,"","",{"$f":"IFERROR(SEARCH(#REF!,R140)+ROW()/100000,\"\")","v":""},"505.839.0600"]
[139,"Mariposa Village","901 S. Tennyson","Deming",88030,"575.544.0087",139,"901 S. Tennyson",139,1.0014099999999999,"901 S. Tennyson",null,null,139,"","",{"$f":"IFERROR(SEARCH(#REF!,R141)+ROW()/100000,\"\")","v":""},"575.544.0087"]
[140,"Meadow Vista Homes","329 Meadow Vista Road","Sunland Park",88063,"575.874.3453",140,"329 Meadow Vista Road",140,1.00142,"329 Meadow Vista Road",null,null,140,"","",{"$f":"IFERROR(SEARCH(#REF!,R142)+ROW()/100000,\"\")","v":""},"575.874.3453"]
[141,"Mesa Del Norte","650 San Ildefonso Road","Los Alamos",87544,"505.661.8474",141,"650 San Ildefonso Road",141,1.00143,"650 San Ildefonso Road",null,null,141,"","",{"$f":"IFERROR(SEARCH(#REF!,R143)+ROW()/100000,\"\")","v":""},"505.661.8474"]
[142,"Mesa Ridge","3501 Atrisco NW","Albuquerque",87120,"505.836.1924",142,"3501 Atrisco NW",142,1.0014400000000001,"3501 Atrisco NW",null,null,142,"","",{"$f":"IFERROR(SEARCH(#REF!,R144)+ROW()/100000,\"\")","v":""},"505.836.1924"]
[143,"Mesa Verde","502 S. Wyoming Ave.","Roswell",88203,"575.622.4944",143,"502 S. Wyoming Ave.",143,1.00145,"502 S. Wyoming Ave.",null,null,143,{"$f":"IFERROR(VLOOKUP(N145,P145:R421,3,FALSE),\"\")","v":""},"",{"$f":"IFERROR(SEARCH(#REF!,R145)+ROW()/100000,\"\")","v":""},"575.622.4944"]
[144,"Mesa Village","1750 E. Elm St.","Farmington",87401,"505.564.2570",144,"1750 E. Elm St.",144,1.00146,"1750 E. Elm St.",null,null,144,"","",{"$f":"IFERROR(SEARCH(#REF!,R146)+ROW()/100000,\"\")","v":""},"505.564.2570"]
[145,"Mesquite Village","412 S. Ave. F","Texico",88135,"575.769.2490",145,"412 S. Ave. F",145,1.0014700000000001,"412 S. Ave. F",null,null,145,"","",{"$f":"IFERROR(SEARCH(#REF!,R147)+ROW()/100000,\"\")","v":""},"575.769.2490"]
[146,"Mesquite Village - LC","1851 N. Mesquite","Las Cruces",88001,"575.541.5979",146,"1851 N. Mesquite",146,1.0014799999999999,"1851 N. Mesquite",null,null,146,"","",{"$f":"IFERROR(SEARCH(#REF!,R148)+ROW()/100000,\"\")","v":""},"575.541.5979"]
[147,"Mira Vista Villas","2141 N. Solano Drive","Las Cruces",88001,"575.647.8444",147,"2141 N. Solano Drive",147,1.00149,"2141 N. Solano Drive",null,null,147,"","",{"$f":"IFERROR(SEARCH(#REF!,R149)+ROW()/100000,\"\")","v":""},"575.647.8444"]
[148,"Mission La Posada","805 Hueco St.","Carlsbad",88220,"575.885.8204",148,"805 Hueco St.",148,1.0015000000000001,"805 Hueco St.",null,null,148,"","",{"$f":"IFERROR(SEARCH(#REF!,R150)+ROW()/100000,\"\")","v":""},"575.885.8204"]
[149,"Montana Meadows","201 Montana Ave.","Las Cruces",88005,"575.524.1873",149,"201 Montana Ave.",149,1.0015099999999999,"201 Montana Ave.",null,null,149,"","",{"$f":"IFERROR(SEARCH(#REF!,R151)+ROW()/100000,\"\")","v":""},"575.524.1873"]
[150,"Montana Senior Village","370 E. Montana","Las Cruces",88005,"575.647.0918",150,"370 E. Montana",150,1.00152,"370 E. Montana",null,null,150,{"$f":"IFERROR(VLOOKUP(N152,P152:R429,3,FALSE),\"\")","v":""},"",{"$f":"IFERROR(SEARCH(#REF!,R152)+ROW()/100000,\"\")","v":""},"575.647.0918"]
[151,"Monte Vista","500 Mountain View Drive","Las Vegas",87701,"505.454.0098",151,"500 Mountain View Drive",151,1.00153,"500 Mountain View Drive",null,null,151,"","",{"$f":"IFERROR(SEARCH(#REF!,R153)+ROW()/100000,\"\")","v":""},"505.454.0098"]
[152,"Montgomery Manor","4301 Morris St. NE","Albuquerque",87111,"505.296.9023",152,"4301 Morris St. NE",152,1.0015400000000001,"4301 Morris St. NE",null,null,152,"","",{"$f":"IFERROR(SEARCH(#REF!,R154)+ROW()/100000,\"\")","v":""},"505.296.9023"]
[153,"Mountain View","1515 Columbia St. SE","Albuquerque",87106,"505.266.5455",153,"1515 Columbia St. SE",153,1.0015499999999999,"1515 Columbia St. SE",null,null,153,"","",{"$f":"IFERROR(SEARCH(#REF!,R155)+ROW()/100000,\"\")","v":""},"505.266.5455"]
[154,"Mountain View Estates","1101 Shelly Drive","Deming",88030,"575.546.6619",154,"1101 Shelly Drive",154,1.00156,"1101 Shelly Drive",null,null,154,"","",{"$f":"IFERROR(SEARCH(#REF!,R156)+ROW()/100000,\"\")","v":""},"575.546.6619"]
[155,"Mountain View Senior","1600 16th St.","Silver City",88061,"575.388.1214",155,"1600 16th St.",155,1.0015700000000001,"1600 16th St.",null,null,155,"","",{"$f":"IFERROR(SEARCH(#REF!,R157)+ROW()/100000,\"\")","v":""},"575.388.1214"]
[156,"Mountain Vista","600 San Ildefonso Road","Los Alamos",87544,"505.662.5417",156,"600 San Ildefonso Road",156,1.0015799999999999,"600 San Ildefonso Road",null,null,156,"","",{"$f":"IFERROR(SEARCH(#REF!,R158)+ROW()/100000,\"\")","v":""},"505.662.5417"]
[157,"Mundo Ranch","300 N. Mundo Ranch Dr","Dulce",87528,"575.759.2029",157,"300 N. Mundo Ranch Dr",157,1.00159,"300 N. Mundo Ranch Dr",null,null,157,"","",{"$f":"IFERROR(SEARCH(#REF!,R159)+ROW()/100000,\"\")","v":""},"575.759.2029"]
[158,"New Leaf","1601 E. Marland St.","Hobbs",88240,"575.964.1571",158,"1601 E. Marland St.",158,1.0016,"1601 E. Marland St.",null,null,158,"","",{"$f":"IFERROR(SEARCH(#REF!,R160)+ROW()/100000,\"\")","v":""},"575.964.1571"]
[159,"New Life Homes","6600 Delia Road SW","Albuquerque",87121,"505.433.5111",159,"6600 Delia Road SW",159,1.0016099999999999,"6600 Delia Road SW",null,null,159,"","",{"$f":"IFERROR(SEARCH(#REF!,R161)+ROW()/100000,\"\")","v":""},"505.433.5111"]
[160,"North Star","333 Chico Drive","Las Vegas",87701,"505.425.5060",160,"333 Chico Drive",160,1.00162,"333 Chico Drive",null,null,160,"","",{"$f":"IFERROR(SEARCH(#REF!,R162)+ROW()/100000,\"\")","v":""},"505.425.5060"]
[161,"Northgate Village","2500 W. Apache St.","Farmington",87401,"505.327.4197",161,"2500 W. Apache St.",161,1.00163,"2500 W. Apache St.",null,null,161,"","",{"$f":"IFERROR(SEARCH(#REF!,R163)+ROW()/100000,\"\")","v":""},"505.327.4197"]
[162,"Nuevo Atrisco","201 Unser Blvd. NW","Albuquerque",87121,"505.299.2370",162,"201 Unser Blvd. NW",162,1.0016400000000001,"201 Unser Blvd. NW",null,null,162,"","",{"$f":"IFERROR(SEARCH(#REF!,R164)+ROW()/100000,\"\")","v":""},"505.299.2370"]
[163,"Otero Village","2553 E. First St.","Alamogordo",88310,"575.437.0498",163,"2553 E. First St.",163,1.0016499999999999,"2553 E. First St.",null,null,163,"","",{"$f":"IFERROR(SEARCH(#REF!,R165)+ROW()/100000,\"\")","v":""},"575.437.0498"]
[164,"Park Place","920 E. Michigan Drive","Hobbs",88240,"575.397.2195",164,"920 E. Michigan Drive",164,1.00166,"920 E. Michigan Drive",null,null,164,"","",{"$f":"IFERROR(SEARCH(#REF!,R166)+ROW()/100000,\"\")","v":""},"575.397.2195"]
[165,"Parkside Terrace","300 E. White St.","Hobbs",88240,"575.408.8851",165,"300 E. White St.",165,1.0016700000000001,"300 E. White St.",null,null,165,"","",{"$f":"IFERROR(SEARCH(#REF!,R167)+ROW()/100000,\"\")","v":""},"575.408.8851"]
[166,"Parkside Village","1200 N. Sycamore St.","Clovis",88101,"575.769.2490",166,"1200 N. Sycamore St.",166,1.0016799999999999,"1200 N. Sycamore St.",null,null,166,"","",{"$f":"IFERROR(SEARCH(#REF!,R168)+ROW()/100000,\"\")","v":""},"575.769.2490"]
[167,"Pasa Tiempo","664 Alta Vista St.","Santa Fe",87507,"505.988.2859",167,"664 Alta Vista St.",167,1.00169,"664 Alta Vista St.",null,null,167,"","",{"$f":"IFERROR(SEARCH(#REF!,R169)+ROW()/100000,\"\")","v":""},"505.988.2859"]
[168,"Paseo del Oro","4325 Paseo Del Oro Circle","Las Cruces",88007,"575.522.3253",168,"4325 Paseo Del Oro Circle",168,1.0017,"4325 Paseo Del Oro Circle",null,null,168,"","",{"$f":"IFERROR(SEARCH(#REF!,R170)+ROW()/100000,\"\")","v":""},"575.522.3253"]
[169,"Paseo del Sol - ABQ","291 El Pueblo Road NW","Los Ranchos de Albuquerque",87114,"505.897.8356",169,"291 El Pueblo Road NW",169,1.0017100000000001,"291 El Pueblo Road NW",null,null,169,"","",{"$f":"IFERROR(SEARCH(#REF!,R171)+ROW()/100000,\"\")","v":""},"505.897.8356"]
[170,"Paseo Del Sol - SF","4551 Paseo Del Sol","Santa Fe",87507,"505.473.5980",170,"4551 Paseo Del Sol",170,1.0017199999999999,"4551 Paseo Del Sol",null,null,170,"","",{"$f":"IFERROR(SEARCH(#REF!,R172)+ROW()/100000,\"\")","v":""},"505.473.5980"]
[171,"Pinon Hills","2811 Dairy Drive","Gallup",87301,"505.722.6025",171,"2811 Dairy Drive",171,1.00173,"2811 Dairy Drive",null,null,171,"","",{"$f":"IFERROR(SEARCH(#REF!,R173)+ROW()/100000,\"\")","v":""},"505.722.6025"]
[172,"Pinon Palmer Rental","165 Bull Pen Road","Mescalero",88340,"575.464.4708",172,"165 Bull Pen Road",172,1.0017400000000001,"165 Bull Pen Road",null,null,172,"","",{"$f":"IFERROR(SEARCH(#REF!,R174)+ROW()/100000,\"\")","v":""},"575.464.4708"]
[173,"Pinos Blancos","600 W. Blanco Blvd.","Bloomfield",87413,"505.632.3206",173,"600 W. Blanco Blvd.",173,1.0017499999999999,"600 W. Blanco Blvd.",null,null,173,"","",{"$f":"IFERROR(SEARCH(#REF!,R175)+ROW()/100000,\"\")","v":""},"505.632.3206"]
[174,"Playa","142 Linda Vista Drive","Sunland Park",88063,"575.589.0498",174,"142 Linda Vista Drive",174,1.00176,"142 Linda Vista Drive",null,null,174,"","",{"$f":"IFERROR(SEARCH(#REF!,R176)+ROW()/100000,\"\")","v":""},"575.589.0498"]
[175,"Plaza Ciudaña","310 Indian School Road NE","Albuquerque",87102,"505.294.2777",175,"310 Indian School Road NE",175,1.00177,"310 Indian School Road NE",null,null,175,"","",{"$f":"IFERROR(SEARCH(#REF!,R177)+ROW()/100000,\"\")","v":""},"505.294.2777"]
[176,"Plaza David Chavez","2821 Mountain Road NW","Albuquerque",87104,"505.242.1361",176,"2821 Mountain Road NW",176,1.0017799999999999,"2821 Mountain Road NW",null,null,176,"","",{"$f":"IFERROR(SEARCH(#REF!,R178)+ROW()/100000,\"\")","v":""},"505.242.1361"]
[177,"Plaza Feliz","517 San Pablo St. SE","Albuquerque",87108,"505.255.3030",177,"517 San Pablo St. SE",177,1.00179,"517 San Pablo St. SE",null,null,177,"","",{"$f":"IFERROR(SEARCH(#REF!,R179)+ROW()/100000,\"\")","v":""},"505.255.3030"]
[178,"Polk Avenue","214 W. Polk Ave.","Lovington",88260,"575.396.6129",178,"214 W. Polk Ave.",178,1.0018,"214 W. Polk Ave.",null,null,178,"","",{"$f":"IFERROR(SEARCH(#REF!,R180)+ROW()/100000,\"\")","v":""},"575.396.6129"]
[179,"Portales Estates","1903 S. Avenue I","Portales",88130,"575.359.0610",179,"1903 S. Avenue I",179,1.0018100000000001,"1903 S. Avenue I",null,null,179,"","",{"$f":"IFERROR(SEARCH(#REF!,R181)+ROW()/100000,\"\")","v":""},"575.359.0610"]
[180,"Quay Apartments","702 W. Sunset Ave.","Tucumcari",88401,"575.461.3555",180,"702 W. Sunset Ave.",180,1.0018199999999999,"702 W. Sunset Ave.",null,null,180,"","",{"$f":"IFERROR(SEARCH(#REF!,R182)+ROW()/100000,\"\")","v":""},"575.461.3555"]
[181,"Ranchitos Village","6811 Ranchitos Road NE","Albuquerque",87109,"505.822.9159",181,"6811 Ranchitos Road NE",181,1.00183,"6811 Ranchitos Road NE",null,null,181,"","",{"$f":"IFERROR(SEARCH(#REF!,R183)+ROW()/100000,\"\")","v":""},"505.822.9159"]
[182,"Red Lake Acres","PO Box 1277","Navajo",87328,"505.777.2480",182,"PO Box 1277",182,1.0018400000000001,"PO Box 1277",null,null,182,"","",{"$f":"IFERROR(SEARCH(#REF!,R184)+ROW()/100000,\"\")","v":""},"505.777.2480"]
[183,"Rio Abajo","1485 E. Second Ave.","T or C",87901,"575.894.2875",183,"1485 E. Second Ave.",183,1.0018499999999999,"1485 E. Second Ave.",null,null,183,"","",{"$f":"IFERROR(SEARCH(#REF!,R185)+ROW()/100000,\"\")","v":""},"575.894.2875"]
[184,"Rio Mimbres","1608 S. Tin St.","Deming",88030,"575.546.8257",184,"1608 S. Tin St.",184,1.00186,"1608 S. Tin St.",null,null,184,"","",{"$f":"IFERROR(SEARCH(#REF!,R186)+ROW()/100000,\"\")","v":""},"575.546.8257"]
[185,"Rio Pecos Estates","1005 McCarley Loop","Santa Rosa",88435,"575.472.2272",185,"1005 McCarley Loop",185,1.00187,"1005 McCarley Loop",null,null,185,"","",{"$f":"IFERROR(SEARCH(#REF!,R187)+ROW()/100000,\"\")","v":""},"575.472.2272"]
[186,"Rio Verde","2291 Highway 304","Belen",87002,"505.864.9558",186,"2291 Highway 304",186,1.0018800000000001,"2291 Highway 304",null,null,186,"","",{"$f":"IFERROR(SEARCH(#REF!,R188)+ROW()/100000,\"\")","v":""},"505.864.9558"]
[187,"Rio Vista","770 Juan Tabo Blvd. NE","Albuquerque",87123,"505.299.9119",187,"770 Juan Tabo Blvd. NE",187,1.0018899999999999,"770 Juan Tabo Blvd. NE",null,null,187,{"$f":"IFERROR(VLOOKUP(N189,P189:R467,3,FALSE),\"\")","v":""},"",{"$f":"IFERROR(SEARCH(#REF!,R189)+ROW()/100000,\"\")","v":""},"505.299.9119"]
[188,"Rio Volcan","1919 Ladera Drive NW","Albuquerque",87120,"505.836.0902",188,"1919 Ladera Drive NW",188,1.0019,"1919 Ladera Drive NW",null,null,188,"","",{"$f":"IFERROR(SEARCH(#REF!,R190)+ROW()/100000,\"\")","v":""},"505.836.0902"]
[189,"Robledo Ridge","1519 Medina Drive","Las Cruces",88007,"575.556.9820",189,"1519 Medina Drive",189,1.0019100000000001,"1519 Medina Drive",null,null,189,"","",{"$f":"IFERROR(SEARCH(#REF!,R191)+ROW()/100000,\"\")","v":""},"575.556.9820"]
[190,"Roselawn Manor","800 S. Roselawn Ave.","Artesia",88210,"575.736.1169",190,"800 S. Roselawn Ave.",190,1.0019199999999999,"800 S. Roselawn Ave.",null,null,190,"","",{"$f":"IFERROR(SEARCH(#REF!,R192)+ROW()/100000,\"\")","v":""},"575.736.1169"]
[191,"Roswell Summit","1100 S. Wyoming","Roswell",88203,"575.622.4646",191,"1100 S. Wyoming",191,1.00193,"1100 S. Wyoming",null,null,191,"","",{"$f":"IFERROR(SEARCH(#REF!,R193)+ROW()/100000,\"\")","v":""},"575.622.4646"]
[192,"Ruth Visage","1101 W. Fir St.","Portales",88130,"575.356.6562",192,"1101 W. Fir St.",192,1.0019400000000001,"1101 W. Fir St.",null,null,192,"","",{"$f":"IFERROR(SEARCH(#REF!,R194)+ROW()/100000,\"\")","v":""},"575.356.6562"]
[193,"Saddlecreek","1901 S. Sunset Ave.","Roswell",88203,"575.622.3042",193,"1901 S. Sunset Ave.",{"$f":"IFERROR(RANK(J195,$J$3:$J$279,1),\"\")","v":193},{"$f":"IFERROR(SEARCH($C$1,K195)+ROW()/100000,\"\")","v":1.0019499999999999},"1901 S. Sunset Ave.",null,null,193,"",{"$f":"IFERROR(RANK(Q195,$Q$3:$Q$279,1),\"\")","v":""},{"$f":"IFERROR(SEARCH(#REF!,R195)+ROW()/100000,\"\")","v":""},"575.622.3042"]
[194,"Sage","210 Rudy Drive","Gallup",87301,"505.863.4111",194,{"$f":"IFERROR(VLOOKUP(G196,$I$3:$K$279,3,TRUE),\"\")","v":"210 Rudy Drive"},194,1.00196,"210 Rudy Drive",null,null,194,"","",{"$f":"IFERROR(SEARCH(#REF!,R196)+ROW()/100000,\"\")","v":""},"505.863.4111"]
[195,"Sagebrush Place","650 Dani Drive","Gallup",87301,"505.722.7454",195,"650 Dani Drive",195,1.00197,"650 Dani Drive",null,null,195,"","",{"$f":"IFERROR(SEARCH(#REF!,R197)+ROW()/100000,\"\")","v":""},"505.722.7454"]
[196,"Saint Anthony Plaza","1750 Indian School Road NW","Albuquerque",87104,"505.766.5619",196,"1750 Indian School Road NW",196,1.0019800000000001,"1750 Indian School Road NW",null,null,196,"","",{"$f":"IFERROR(SEARCH(#REF!,R198)+ROW()/100000,\"\")","v":""},"505.766.5619"]
[197,"San Juan","2614 E. 20th St.","Farmington",87401,"505.325.8590",197,"2614 E. 20th St.",197,1.0019899999999999,"2614 E. 20th St.",null,null,197,"","",{"$f":"IFERROR(SEARCH(#REF!,R199)+ROW()/100000,\"\")","v":""},"505.325.8590"]
[198,"San Miguel Senior","2710 Collins Drive","Las Vegas",87701,"505.425.5060",198,"2710 Collins Drive",198,1.002,"2710 Collins Drive",null,null,198,"","",{"$f":"IFERROR(SEARCH(#REF!,R200)+ROW()/100000,\"\")","v":""},"505.425.5060"]
[199,"San Tierra","3991 Camino Juliana","Santa Fe",87507,"505.438.4944",199,"3991 Camino Juliana",199,1.0020100000000001,"3991 Camino Juliana",null,null,199,"","",{"$f":"IFERROR(SEARCH(#REF!,R201)+ROW()/100000,\"\")","v":""},"505.438.4944"]
[200,"Sandia Vista","901 Tramway Blvd. NE","Albuquerque",87123,"505.298.4461",200,"901 Tramway Blvd. NE",200,1.0020199999999999,"901 Tramway Blvd. NE",null,null,200,"","",{"$f":"IFERROR(SEARCH(#REF!,R202)+ROW()/100000,\"\")","v":""},"505.298.4461"]
[201,"Sangre De Cristo Apartments","1801 Espinacitas St.","Santa Fe",87505,"505.984.1856",201,"1801 Espinacitas St.",201,1.00203,"1801 Espinacitas St.",null,null,201,"","",{"$f":"IFERROR(SEARCH(#REF!,R203)+ROW()/100000,\"\")","v":""},"505.984.1856"]
[202,"Santa Fe Apartments","255 Camino Alire","Santa Fe",87501,"505.983.2260",202,"255 Camino Alire",202,1.00204,"255 Camino Alire",null,null,202,"","",{"$f":"IFERROR(SEARCH(#REF!,R204)+ROW()/100000,\"\")","v":""},"505.983.2260"]
[203,"Santa Rosa Apartments","155 Palm Ave.","Santa Rosa",88435,"575.472.3275",203,"155 Palm Ave.",203,1.0020500000000001,"155 Palm Ave.",null,null,203,"","",{"$f":"IFERROR(SEARCH(#REF!,R205)+ROW()/100000,\"\")","v":""},"575.472.3275"]
[204,"Santa Teresa Family Homes","105 Comerciantes Blvd.","Santa Teresa",88008,"575.589.0123",204,"105 Comerciantes Blvd.",204,1.00206,"105 Comerciantes Blvd.",null,null,204,"","",{"$f":"IFERROR(SEARCH(#REF!,R206)+ROW()/100000,\"\")","v":""},"575.589.0123"]
[205,"Sawmill Lofts","1801 Bellamah Ave. NW","Albuquerque",87104,"505.842.6455",205,"1801 Bellamah Ave. NW",205,1.00207,"1801 Bellamah Ave. NW",null,null,205,"","",{"$f":"IFERROR(SEARCH(#REF!,R207)+ROW()/100000,\"\")","v":""},"505.842.6455"]
[206,"SD-Y2K","#26 Highway 22 West","Santo Domingo Pueblo",87502,"505.465.1003",206,"#26 Highway 22 West",206,1.0020800000000001,"#26 Highway 22 West",null,null,206,"","",{"$f":"IFERROR(SEARCH(#REF!,R208)+ROW()/100000,\"\")","v":""},"505.465.1003"]
[207,"Sedona Village","1500 Echols Ave.","Clovis",88101,"575.762.3280",207,"1500 Echols Ave.",207,1.0020899999999999,"1500 Echols Ave.",null,null,207,"","",{"$f":"IFERROR(SEARCH(#REF!,R209)+ROW()/100000,\"\")","v":""},"575.762.3280"]
[208,"Shiprock Houses and Apartments","NM Highway 491 South","Shiprock",87420,"505.368.4426",208,"NM Highway 491 South",208,1.0021,"NM Highway 491 South",null,null,208,"","",{"$f":"IFERROR(SEARCH(#REF!,R210)+ROW()/100000,\"\")","v":""},"505.368.4426"]
[209,"Sierra Vista","878 N. Iron St.","Deming",88030,"575.936.4286",209,"878 N. Iron St.",209,1.0021100000000001,"878 N. Iron St.",null,null,209,"","",{"$f":"IFERROR(SEARCH(#REF!,R211)+ROW()/100000,\"\")","v":""},"575.936.4286"]
[210,"Silver Cliffs","1414 Little Walnut Road","Silver City",88061,"575.538.9000",210,"1414 Little Walnut Road",210,1.0021199999999999,"1414 Little Walnut Road",null,null,210,"","",{"$f":"IFERROR(SEARCH(#REF!,R212)+ROW()/100000,\"\")","v":""},"575.538.9000"]
[211,"Silver Gardens","100 Silver Ave. SW","Albuquerque",87102,"505.246.8500",211,"100 Silver Ave. SW",211,1.00213,"100 Silver Ave. SW",null,null,211,"","",{"$f":"IFERROR(SEARCH(#REF!,R213)+ROW()/100000,\"\")","v":""},"505.246.8500"]
[212,"Silver Moon Lodge","901 Park Ave. SW","Albuquerque",87102,"505.242.6134",212,"901 Park Ave. SW",212,1.00214,"901 Park Ave. SW",null,null,212,"","",{"$f":"IFERROR(SEARCH(#REF!,R214)+ROW()/100000,\"\")","v":""},"505.242.6134"]
[213,"Skyview Terrace","3600 N. Skyview St.","Hobbs",88240,"575.631.0383",213,"3600 N. Skyview St.",213,1.0021500000000001,"3600 N. Skyview St.",null,null,213,"","",{"$f":"IFERROR(SEARCH(#REF!,R215)+ROW()/100000,\"\")","v":""},"575.631.0383"]
[214,"Socorro Village","444 Eaton Ave. SW","Socorro",87801,"575.835.0196",214,"444 Eaton Ave. SW",214,1.0021599999999999,"444 Eaton Ave. SW",null,null,214,"","",{"$f":"IFERROR(SEARCH(#REF!,R216)+ROW()/100000,\"\")","v":""},"575.835.0196"]
[215,"Solar Villa","1135 Texas St. NE","Albuquerque",87110,"505.266.1976",215,"1135 Texas St. NE",215,1.00217,"1135 Texas St. NE",null,null,215,"","",{"$f":"IFERROR(SEARCH(#REF!,R217)+ROW()/100000,\"\")","v":""},"505.266.1976"]
[216,"Soleras Station","4804 Railrunner Road","Santa Fe",87501,"505.930.5298",216,"4804 Railrunner Road",216,1.0021800000000001,"4804 Railrunner Road",null,null,216,"","",{"$f":"IFERROR(SEARCH(#REF!,R218)+ROW()/100000,\"\")","v":""},"505.930.5298"]
[217,"South View Place","1300 W. Brian Urlacher","Lovington",88260,"575.396.7551",217,"1300 W. Brian Urlacher",217,1.0021899999999999,"1300 W. Brian Urlacher",null,null,217,"","",{"$f":"IFERROR(SEARCH(#REF!,R219)+ROW()/100000,\"\")","v":""},"575.396.7551"]
[218,"Spicewood Canyon Villas","1301 E. Alameda","Roswell",88203,"575.622.3636",218,"1301 E. Alameda",218,1.0022,"1301 E. Alameda",null,null,218,"","",{"$f":"IFERROR(SEARCH(#REF!,R220)+ROW()/100000,\"\")","v":""},"575.622.3636"]
[219,"Stage Coach Apartment Homes","3360 Cerrillos Road","Santa Fe",87507,"505.466.1560",219,"3360 Cerrillos Road",219,1.00221,"3360 Cerrillos Road",null,null,219,{"$f":"IFERROR(VLOOKUP(N221,P221:R499,3,FALSE),\"\")","v":""},"",{"$f":"IFERROR(SEARCH(#REF!,R221)+ROW()/100000,\"\")","v":""},"505.466.1560"]
[220,"Sterling Downtown","800 Silver Ave. SW","Albuquerque",87102,"505.312.7509",220,"800 Silver Ave. SW",220,1.0022200000000001,"800 Silver Ave. SW",null,null,220,"","",{"$f":"IFERROR(SEARCH(#REF!,R222)+ROW()/100000,\"\")","v":""},"505.312.7509"]
[221,"Stone Mountain Place","930 E. Boutz Road","Las Cruces",88001,"575.525.8448",221,"930 E. Boutz Road",221,1.00223,"930 E. Boutz Road",null,null,221,"","",{"$f":"IFERROR(SEARCH(#REF!,R223)+ROW()/100000,\"\")","v":""},"575.525.8448"]
[222,"Sun Pointe Park","4057 Montgomery Blvd. NW","Albuquerque",87109,"505.881.4644",222,"4057 Montgomery Blvd. NW",222,1.00224,"4057 Montgomery Blvd. NW",null,null,222,"","",{"$f":"IFERROR(SEARCH(#REF!,R224)+ROW()/100000,\"\")","v":""},"505.881.4644"]
[223,"Sun Valley","201 Montoya Blvd.","Gallup",87301,"505.863.6726",223,"201 Montoya Blvd.",223,1.0022500000000001,"201 Montoya Blvd.",null,null,223,"","",{"$f":"IFERROR(SEARCH(#REF!,R225)+ROW()/100000,\"\")","v":""},"505.863.6726"]
[224,"Sundowner","6101 Central Ave. NE","Albuquerque",87108,"505.265.5440",224,"6101 Central Ave. NE",224,1.0022599999999999,"6101 Central Ave. NE",null,null,224,"","",{"$f":"IFERROR(SEARCH(#REF!,R226)+ROW()/100000,\"\")","v":""},"505.265.5440"]
[225,"Sunset 1600","1601 S. Sunset Ave.","Roswell",88201,"575.623.2494",225,"1601 S. Sunset Ave.",225,1.00227,"1601 S. Sunset Ave.",null,null,225,"","",{"$f":"IFERROR(SEARCH(#REF!,R227)+ROW()/100000,\"\")","v":""},"575.623.2494"]
[226,"Sunset Hills","200 Rudy Lane","Gallup",87301,"505.722.6908",226,"200 Rudy Lane",226,1.0022800000000001,"200 Rudy Lane",null,null,226,"","",{"$f":"IFERROR(SEARCH(#REF!,R228)+ROW()/100000,\"\")","v":""},"505.722.6908"]
[227,"The Artisan at Sawmill Village","1751 Bellamah Ave. NW","Albuquerque",87104,"505.554.3859",227,"1751 Bellamah Ave. NW",227,1.0022899999999999,"1751 Bellamah Ave. NW",null,null,227,"","",{"$f":"IFERROR(SEARCH(#REF!,R229)+ROW()/100000,\"\")","v":""},"505.554.3859"]
[228,"The Beach","2525 Tingley Drive SW","Albuquerque",87104,"505.243.4068",228,"2525 Tingley Drive SW",228,1.0023,"2525 Tingley Drive SW",null,null,228,"","",{"$f":"IFERROR(SEARCH(#REF!,R230)+ROW()/100000,\"\")","v":""},"505.243.4068"]
[229,"The Cedars","501 W. Alto Drive","Hobbs",88240,"575.397.6338",229,"501 W. Alto Drive",229,1.00231,"501 W. Alto Drive",null,null,229,"","",{"$f":"IFERROR(SEARCH(#REF!,R231)+ROW()/100000,\"\")","v":""},"575.397.6338"]
[230,"The Standard E.","4200 Spanish Bit NE","Albuquerque",87111,"505.298.1856",230,"4200 Spanish Bit NE",230,1.0023200000000001,"4200 Spanish Bit NE",null,null,230,"","",{"$f":"IFERROR(SEARCH(#REF!,R232)+ROW()/100000,\"\")","v":""},"505.298.1856"]
[231,"The Village Sage","5951 Larson Loop","Santa Fe",87507,"505.474.4226",231,"5951 Larson Loop",231,1.0023299999999999,"5951 Larson Loop",null,null,231,"","",{"$f":"IFERROR(SEARCH(#REF!,R233)+ROW()/100000,\"\")","v":""},"505.474.4226"]
[232,"Thirty301 Apartment Homes","3301 Canyon Road","Los Alamos",87544,"505.662.3301",232,"3301 Canyon Road",232,1.00234,"3301 Canyon Road",null,null,232,"","",{"$f":"IFERROR(SEARCH(#REF!,R234)+ROW()/100000,\"\")","v":""},"505.662.3301"]
[233,"Tierra Encantada","805 Clark Ave.","Anthony",88021,"575.882.3909",233,"805 Clark Ave.",233,1.0023500000000001,"805 Clark Ave.",null,null,233,"","",{"$f":"IFERROR(SEARCH(#REF!,R235)+ROW()/100000,\"\")","v":""},"575.882.3909"]
[234,"Tierra Montosa","750 Gusdorf Road","Taos",87571,"575.758.0471",234,"750 Gusdorf Road",234,1.0023599999999999,"750 Gusdorf Road",null,null,234,"","",{"$f":"IFERROR(SEARCH(#REF!,R236)+ROW()/100000,\"\")","v":""},"575.758.0471"]
[235,"Tradewinds Carriage","1301 N. Pershing St.","T or C",87901,"575.894.2244",235,"1301 N. Pershing St.",235,1.00237,"1301 N. Pershing St.",null,null,235,"","",{"$f":"IFERROR(SEARCH(#REF!,R237)+ROW()/100000,\"\")","v":""},"575.894.2244"]
[236,"Tres Santos","1899 Pacheco St.","Santa Fe",87505,"505.988.2846",236,"1899 Pacheco St.",236,1.00238,"1899 Pacheco St.",null,null,236,"","",{"$f":"IFERROR(SEARCH(#REF!,R238)+ROW()/100000,\"\")","v":""},"505.988.2846"]
[237,"Tucson","5401 Tucson Ave. NW","Albuquerque",87120,"505.833.6000",237,"5401 Tucson Ave. NW",237,1.0023899999999999,"5401 Tucson Ave. NW",null,null,237,"","",{"$f":"IFERROR(SEARCH(#REF!,R239)+ROW()/100000,\"\")","v":""},"505.833.6000"]
[238,"Tuscany at St. Francis","2218 Miguel Chavez Road","Santa Fe",87505,"505.983.6666",238,"2218 Miguel Chavez Road",238,1.0024,"2218 Miguel Chavez Road",null,null,238,"","",{"$f":"IFERROR(SEARCH(#REF!,R240)+ROW()/100000,\"\")","v":""},"505.983.6666"]
[239,"Valle de Atrisco","9901 Ceja Vista Road SW","Albuquerque",87121,"505.225.5950",239,"9901 Ceja Vista Road SW",239,1.00241,"9901 Ceja Vista Road SW",null,null,239,"","",{"$f":"IFERROR(SEARCH(#REF!,R241)+ROW()/100000,\"\")","v":""},"505.225.5950"]
[240,"Valle Verde","350 Bianes St.","Hatch",87937,"575.267.0203",240,"350 Bianes St.",240,1.0024200000000001,"350 Bianes St.",null,null,240,"","",{"$f":"IFERROR(SEARCH(#REF!,R242)+ROW()/100000,\"\")","v":""},"575.267.0203"]
[241,"Valley View","2080 Memory Lane","Silver City",88061,"575.538.9523",241,"2080 Memory Lane",241,1.0024299999999999,"2080 Memory Lane",null,null,241,"","",{"$f":"IFERROR(SEARCH(#REF!,R243)+ROW()/100000,\"\")","v":""},"575.538.9523"]
[242,"Ventana Cove","450 Los Cerritos Dr. NW","Los Lunas",87031,"505.865.5858",242,"450 Los Cerritos Dr. NW",242,1.00244,"450 Los Cerritos Dr. NW",null,null,242,"","",{"$f":"IFERROR(SEARCH(#REF!,R244)+ROW()/100000,\"\")","v":""},"505.865.5858"]
[243,"Ventana De Vida","1500 Pacheco St.","Santa Fe",87505,"505.982.3200",243,"1500 Pacheco St.",243,1.0024500000000001,"1500 Pacheco St.",null,null,243,"","",{"$f":"IFERROR(SEARCH(#REF!,R245)+ROW()/100000,\"\")","v":""},"505.982.3200"]
[244,"Ventana Ranch","10400 Universe Blvd. NW","Albuquerque",87114,"505.922.0092",244,"10400 Universe Blvd. NW",244,1.0024599999999999,"10400 Universe Blvd. NW",null,null,244,"","",{"$f":"IFERROR(SEARCH(#REF!,R246)+ROW()/100000,\"\")","v":""},"505.922.0092"]
[245,"Villa Alegre","244 Villa Alegre St.","Santa Fe",87501,"505.501.6011",245,"244 Villa Alegre St.",245,1.00247,"244 Villa Alegre St.",null,null,245,"","",{"$f":"IFERROR(SEARCH(#REF!,R247)+ROW()/100000,\"\")","v":""},"505.501.6011"]
[246,"Villa Consuelo","1200 Camino Consuelo","Santa Fe",87507,"505.471.0565",246,"1200 Camino Consuelo",246,1.00248,"1200 Camino Consuelo",null,null,246,"","",{"$f":"IFERROR(SEARCH(#REF!,R248)+ROW()/100000,\"\")","v":""},"505.471.0565"]
[247,"Villa De Gallup","325 Klagetoh St.","Gallup",87301,"505.726.0804",247,"325 Klagetoh St.",247,1.0024900000000001,"325 Klagetoh St.",null,null,247,"","",{"$f":"IFERROR(SEARCH(#REF!,R249)+ROW()/100000,\"\")","v":""},"505.726.0804"]
[248,"Villa de San Felipe","601 Coal Ave. SW","Albuquerque",87102,"505.244.1500",248,"601 Coal Ave. SW",248,1.0024999999999999,"601 Coal Ave. SW",null,null,248,"","",{"$f":"IFERROR(SEARCH(#REF!,R250)+ROW()/100000,\"\")","v":""},"505.244.1500"]
[249,"Villa De Tularosa Senior Housing","1205 Monte Vista Ave.","Tularosa",88352,"575.585.9848",249,"1205 Monte Vista Ave.",249,1.00251,"1205 Monte Vista Ave.",null,null,249,"","",{"$f":"IFERROR(SEARCH(#REF!,R251)+ROW()/100000,\"\")","v":""},"575.585.9848"]
[250,"Villa del Norte","710 La Joya St.","Espanola",87532,"505.753.9611",250,"710 La Joya St.",250,1.0025200000000001,"710 La Joya St.",null,null,250,"","",{"$f":"IFERROR(SEARCH(#REF!,R252)+ROW()/100000,\"\")","v":""},"505.753.9611"]
[251,"Villa Hermosa - ABQ","2600 Americare Court NW","Albuquerque",87120,"505.352.9594",251,"2600 Americare Court NW",251,1.0025299999999999,"2600 Americare Court NW",null,null,251,{"$f":"IFERROR(VLOOKUP(N253,P253:R531,3,FALSE),\"\")","v":""},"",{"$f":"IFERROR(SEARCH(#REF!,R253)+ROW()/100000,\"\")","v":""},"505.352.9594"]
[252,"Villa Hermosa - SF","1510.1520 Luisa","Santa Fe",87507,"505.988.2859",252,"1510.1520 Luisa",252,1.00254,"1510.1520 Luisa",null,null,252,{"$f":"IFERROR(VLOOKUP(N254,P254:R532,3,FALSE),\"\")","v":""},"",{"$f":"IFERROR(SEARCH(#REF!,R254)+ROW()/100000,\"\")","v":""},"505.988.2859"]
[253,"Villa Las Vegas","200 Mountain View Drive","Las Vegas",87701,"505.425.6555",253,"200 Mountain View Drive",253,1.0025500000000001,"200 Mountain View Drive",null,null,253,{"$f":"IFERROR(VLOOKUP(N255,P255:R533,3,FALSE),\"\")","v":""},"",{"$f":"IFERROR(SEARCH(#REF!,R255)+ROW()/100000,\"\")","v":""},"505.425.6555"]
[254,"Villa Nueva","990 18th St. NW","Albuquerque",87104,"505.508.5541",254,"990 18th St. NW",254,1.0025599999999999,"990 18th St. NW",null,null,254,{"$f":"IFERROR(VLOOKUP(N256,P256:R535,3,FALSE),\"\")","v":""},"",{"$f":"IFERROR(SEARCH(#REF!,R256)+ROW()/100000,\"\")","v":""},"505.508.5541"]
[255,"Villa San Jose","415 W. Del Rio St.","Carlsbad",88220,"575.885.1237",255,"415 W. Del Rio St.",255,1.00257,"415 W. Del Rio St.",null,null,255,"","",{"$f":"IFERROR(SEARCH(#REF!,R257)+ROW()/100000,\"\")","v":""},"575.885.1237"]
[256,"Village at Avalon","601 90th St. NW","Albuquerque",87121,"505.900.3940",256,"601 90th St. NW",256,1.00258,"601 90th St. NW",null,null,256,"","",{"$f":"IFERROR(SEARCH(#REF!,R258)+ROW()/100000,\"\")","v":""},"505.900.3940"]
[257,"Village in the Bosque","857 Calle Los Mayores","Bernalillo",87004,"505.867.2792",257,"857 Calle Los Mayores",{"$f":"IFERROR(RANK(J259,$J$3:$J$279,1),\"\")","v":257},{"$f":"IFERROR(SEARCH($C$1,K259)+ROW()/100000,\"\")","v":1.0025900000000001},"857 Calle Los Mayores",null,null,257,"",{"$f":"IFERROR(RANK(Q259,$Q$3:$Q$279,1),\"\")","v":""},{"$f":"IFERROR(SEARCH(#REF!,R259)+ROW()/100000,\"\")","v":""},"505.867.2792"]
[258,"Villas De San Ignacio","4499 San Ignacio Road","Santa Fe",87507,"505.716.4579",258,{"$f":"IFERROR(VLOOKUP(G260,$I$3:$K$279,3,TRUE),\"\")","v":"4499 San Ignacio Road"},258,1.0025999999999999,"4499 San Ignacio Road",null,null,258,"","",{"$f":"IFERROR(SEARCH(#REF!,R260)+ROW()/100000,\"\")","v":""},"505.716.4579"]
[259,"Villas Esperanza","3901 Lafayette Drive NE","Albuquerque",87107,"505.881.7991",259,"3901 Lafayette Drive NE",259,1.00261,"3901 Lafayette Drive NE",null,null,259,"","",{"$f":"IFERROR(SEARCH(#REF!,R261)+ROW()/100000,\"\")","v":""},"505.881.7991"]
[260,"Villas of Briar Ridge","1 Briarwood Place","Roswell",88201,"575.623.7711",260,"1 Briarwood Place",260,1.0026200000000001,"1 Briarwood Place",null,null,260,"","",{"$f":"IFERROR(SEARCH(#REF!,R262)+ROW()/100000,\"\")","v":""},"575.623.7711"]
[261,"Vista Del Rey","855 Valle Vista Drive","Sunland Park",88063,"575.589.3948",261,"855 Valle Vista Drive",261,1.0026299999999999,"855 Valle Vista Drive",null,null,261,"","",{"$f":"IFERROR(SEARCH(#REF!,R263)+ROW()/100000,\"\")","v":""},"575.589.3948"]
[262,"Vista Gallinas","2525 Ridge Runner Road","Las Vegas",87701,"505.454.1093",262,"2525 Ridge Runner Road",262,1.00264,"2525 Ridge Runner Road",null,null,262,"","",{"$f":"IFERROR(SEARCH(#REF!,R264)+ROW()/100000,\"\")","v":""},"505.454.1093"]
[263,"Vista Mesa Villa","1121 Mount Taylor Ave.","Grants",87020,"505.287.3191",263,"1121 Mount Taylor Ave.",263,1.00265,"1121 Mount Taylor Ave.",null,null,263,"","",{"$f":"IFERROR(SEARCH(#REF!,R265)+ROW()/100000,\"\")","v":""},"505.287.3191"]
[264,"Vista Montana","316 Foster Road","Las Cruces",88005,"575.541.1900",264,"316 Foster Road",264,1.0026600000000001,"316 Foster Road",null,null,264,"","",{"$f":"IFERROR(SEARCH(#REF!,R266)+ROW()/100000,\"\")","v":""},"575.541.1900"]
[265,"Vista Montano","301 S. Otero Ave.","Socorro",87801,"575.835.0500",265,"301 S. Otero Ave.",265,1.00267,"301 S. Otero Ave.",null,null,265,"","",{"$f":"IFERROR(SEARCH(#REF!,R267)+ROW()/100000,\"\")","v":""},"575.835.0500"]
[266,"Volcanes Commons","6901 Glen Rio NW","Albuquerque",87121,"505.323.4139",266,"6901 Glen Rio NW",266,1.00268,"6901 Glen Rio NW",null,null,266,"","",{"$f":"IFERROR(SEARCH(#REF!,R268)+ROW()/100000,\"\")","v":""},"505.323.4139"]
[267,"Wa-di Housing","#26 Highway 22 West","Santo Domingo Pueblo",87502,"505.465.1003",267,"#26 Highway 22 West",267,1.0026900000000001,"#26 Highway 22 West",null,null,267,"","",{"$f":"IFERROR(SEARCH(#REF!,R269)+ROW()/100000,\"\")","v":""},"505.465.1003"]
[268,"Walnut Street Courtyard Homes","113 Walnut St.","Clayton",88415,"575.374.6207",268,"113 Walnut St.",268,1.0026999999999999,"113 Walnut St.",null,null,268,{"$f":"IFERROR(VLOOKUP(N270,P270:R550,3,FALSE),\"\")","v":""},"",{"$f":"IFERROR(SEARCH(#REF!,R270)+ROW()/100000,\"\")","v":""},"575.374.6207"]
[269,"Washington Place","1405 E. Marland St.","Hobbs",88240,"575.397.4341",269,"1405 E. Marland St.",269,1.00271,"1405 E. Marland St.",null,null,269,"","",{"$f":"IFERROR(SEARCH(#REF!,R271)+ROW()/100000,\"\")","v":""},"575.397.4341"]
[270,"West Park","9251 Eagle Ranch Road NW","Albuquerque",87114,"505.898.5940",270,"9251 Eagle Ranch Road NW",270,1.0027200000000001,"9251 Eagle Ranch Road NW",null,null,270,"","",{"$f":"IFERROR(SEARCH(#REF!,R272)+ROW()/100000,\"\")","v":""},"505.898.5940"]
[271,"Westwood Village","901 68th St. NW","Albuquerque",87121,"505.831.1177",271,"901 68th St. NW",271,1.0027299999999999,"901 68th St. NW",null,null,271,"","",{"$f":"IFERROR(SEARCH(#REF!,R273)+ROW()/100000,\"\")","v":""},"505.831.1177"]
[272,"White Sands Village","27 Tribal Works Road","Pojoaque",87501,"505.455.3383",272,"27 Tribal Works Road",272,1.00274,"27 Tribal Works Road",null,null,272,"","",{"$f":"IFERROR(SEARCH(#REF!,R274)+ROW()/100000,\"\")","v":""},"505.455.3383"]
[273,"Wildewood","201 Sherrill Lane","Roswell",88201,"575.623.9108",273,"201 Sherrill Lane",273,1.00275,"201 Sherrill Lane",null,null,273,"","",{"$f":"IFERROR(SEARCH(#REF!,R275)+ROW()/100000,\"\")","v":""},"575.623.9108"]
[274,"Willow Bend Villas","1000 N. Marland Blvd.","Hobbs",88240,"575.397.0940",274,"1000 N. Marland Blvd.",274,1.0027600000000001,"1000 N. Marland Blvd.",null,null,274,"","",{"$f":"IFERROR(SEARCH(#REF!,R276)+ROW()/100000,\"\")","v":""},"575.397.0940"]
[275,"Wilshire Gardens","2727 N. Wilshire Drive","Roswell",88201,"575.623.3733",275,"2727 N. Wilshire Drive",275,1.0027699999999999,"2727 N. Wilshire Drive",null,null,275,"","",{"$f":"IFERROR(SEARCH(#REF!,R277)+ROW()/100000,\"\")","v":""},"575.623.3733"]
[276,"YSFS Transitional Living Program","4435 Airport Road","Santa Fe",87507,"505.983.0586",276,"4435 Airport Road",276,1.00278,"4435 Airport Road",null,null,276,"","",{"$f":"IFERROR(SEARCH(#REF!,R278)+ROW()/100000,\"\")","v":""},"505.983.0586"]
[null,null,null,null,null,null,null,"","",""]

{"sheet":"Lighting SOW","index":6,"n_rows":178,"n_cols":28,"rows_kept":178,"cut":false,"hidden":false,"merged":[[1,0,1,1],[2,0,2,1],[0,3,0,6],[1,2,1,5],[1,7,1,9],[2,2,2,5],[2,7,2,9],[2,25,2,26],[3,0,3,1],[4,0,4,8],[5,20,5,21],[3,2,3,5],[3,7,3,9],[4,20,4,21],[5,0,5,9],[3,18,3,19],[5,10,5,17]]}
["App # (office use only):",null,{"$f":"IF('Applicant Info'!J3=\"\",\"\",'Applicant Info'!J3)","v":""},"Please complete all info in the white spaces below:"]
["Business Name:",null,{"$f":"IF('Applicant Info'!A22=\"\",\"\",'Applicant Info'!A22)","v":""},null,null,null,"Date:",{"$f":"IF('Applicant Info'!K6=\"\", IF('Applicant Info'!K8=\"\",\"\",'Applicant Info'!K8),'Applicant Info'!K6)","v":""}]
["Prepared by:",null,null,null,null,null,"Phone:",{"$f":"IF('Applicant Info'!D27=\"\",\"\",'Applicant Info'!D27)","v":""},null,null,null,null,null,null,null,null,null,null,null,null,null,null,null,null,null,"Residential lighting daily hours of use by room type"]
["Address:",null,{"$f":"IF('Applicant Info'!E29=\"\",\"\",'Applicant Info'!E29 &\" \"&'Applicant Info'!E30 &\" \" &'Applicant Info'!I30 &\" \"&'Applicant Info'!K30)","v":""},null,null,null,"Email:",{"$f":"IF('Applicant Info'!$E$28=\"\",\"\",'Applicant Info'!$E$28)","v":""},null,null,null,null,null,null,null,null,null,null,"Watts controlled\n(Interior ONLY)",null,null,null,null,null,null,"Room Type","Operating Hours per Week"]
["Lighting Scope of Work / Building Audit Form",null,null,null,null,null,null,null,null,null,null,null,null,null,null,null,null,null,"Occupancy","Daylighting","Annual Savings*",null,null,null,"Bathroom","Bathroom",24.5,{"$f":"AA5/7","v":3.5}]
["Existing Lighting ",null,null,null,null,null,null,null,null,null,"Proposed Lighting",null,null,null,null,null,null,null,{"$f":"SUMIF(S8:S179,\"YES\",R8:R179)","v":0},{"$f":"SUMIF(T8:T179,\"YES\",R8:R179)","v":0},"*calculated per figures entered on this form; savings are NOT guaranteed",null,null,null,"Bedroom","Bedroom",23.1,{"$f":"AA6/7","v":3.3000000000000003}]
["LOCATION","LOCATION (Description)","Fixture Type ","Lamp or fixture type","Ballast","Lamps per Fixture","Watts per Fixture","Fixture Qty","Total W","Operating Hours per Week","New or Retrofit","Fixture Type ","DLC or Energy Star Qualified?","Fixture or Lamp Model Number","Lamps per Fixture","Watts per Fixture","Fixture Qty","Total W","Occupancy Control?\n(Y / N)","Occupancy Control?\n(Y / N)","Savings (W)","Savings (kWh)",null,0,"Carport","Closet",84,12]
[null,null,null,null,null,null,null,null,{"$f":"IF(B8=\"\",\"\",H8*G8)","v":""},{"$f":"IF(A8=\"\",\"\",VLOOKUP(A8,$Z$5:$AA$19,2,FALSE))","v":""},null,null,null,null,null,null,null,{"$f":"IF(ISBLANK(M8), \"\",P8*Q8)","v":""},null,null,{"$f":"IF(OR(I8=\"\",R8=\"\"),\"\",I8-R8)","v":""},{"$f":"IF(OR(J8=\"\",U8=\"\"),\"\",J8*U8*52/1000)","v":""},null,null,"Closet","Dining Room",17.5,2.5]
[null,null,null,null,null,null,null,null,"",{"$f":"IF(A9=\"\",\"\",VLOOKUP(A9,$Z$5:$AA$19,2,FALSE))","v":""},null,null,null,null,null,null,null,"",null,null,{"$f":"IF(OR(I9=\"\",R9=\"\"),\"\",I9-R9)","v":""},{"$f":"IF(OR(J9=\"\",U9=\"\"),\"\",J9*U9*52/1000)","v":""},null,null,"Dining Room","Exterior",17.5,2.5]
[null,null,null,null,null,null,null,null,"","",null,null,null,null,null,null,null,"",null,null,"","",null,0,"Entry","Family Room",16.8,2.4]
[null,null,null,null,null,null,null,null,"","",null,null,null,null,null,null,null,"",null,null,"","",null,null,"Family Room","Garage",16.100000000000001,2.3000000000000003]
[null,null,null,null,null,null,null,null,"","",null,null,null,null,null,null,null,"",null,null,"","",null,null,"Garage","Hall/Entry",13.3,1.9000000000000001]
[null,null,null,null,null,null,null,null,"","",null,null,null,null,null,null,null,"",null,null,"","",null,null,"Gym","Kitchen",11.2,1.5999999999999999]
[null,null,null,null,null,null,null,null,"","",null,null,null,null,null,null,null,"",null,null,"","",null,null,"Hall/Entry","Laundry Room",10.5,1.5]
[null,null,null,null,null,null,null,null,"","",null,null,null,null,null,null,null,"",null,null,"","",null,null,"Kitchen","Living Room",10.5,1.5]
[null,null,null,null,null,null,null,null,"","",null,null,null,null,null,null,null,"",null,null,"","",null,null,"Laundry Room","Office",8.4,1.2]
[null,null,null,null,null,null,null,null,"","",null,null,null,null,null,null,null,"",null,null,"","",null,null,"Living Room","Other",9.8000000000000007,1.4000000000000001]
[null,null,null,null,null,null,null,null,"","",null,null,null,null,null,null,null,"",null,null,"","",null,null,"Mailbox Area","Utility Room",8.4,1.2]
[null,null,null,null,null,null,null,null,"","",null,null,null,null,null,null,null,"",null,null,"","",null,null,"Office","24/7",168,24]
[null,null,null,null,null,null,null,null,"","",null,null,null,null,null,null,null,"",null,null,"","",null,null,"Other","Weighted Average",15.7,2.2428571428571429]
[null,null,null,null,null,null,null,null,"","",null,null,null,null,null,null,null,"",null,null,"","",null,null,"Patio / Balcony",null,null,0]
[null,null,null,null,null,null,null,null,"","",null,null,null,null,null,null,null,"",null,null,"","",null,null,"Pool Area",null,null,0]
[null,null,null,null,null,null,null,null,"","",null,null,null,null,null,null,null,"",null,null,"","",null,null,"Storage / Closet",null,null,0]
[null,null,null,null,null,null,null,null,"","",null,null,null,null,null,null,null,"",null,null,"","",null,null,"Utility Room",null,null,0]
[null,null,null,null,null,null,null,null,"","",null,null,null,null,null,null,null,"",null,null,"",""]
[null,null,null,null,null,null,null,null,"","",null,null,null,null,null,null,null,"",null,null,"",""]
[null,null,null,null,null,null,null,null,"","",null,null,null,null,null,null,null,"",null,null,"",""]
[null,null,null,null,null,null,null,null,"","",null,null,null,null,null,null,null,"",null,null,"",""]
[null,null,null,null,null,null,null,null,"","",null,null,null,null,null,null,null,"",null,null,"",""]
[null,null,null,null,null,null,null,null,"","",null,null,null,null,null,null,null,"",null,null,"",""]
[null,null,null,null,null,null,null,null,"","",null,null,null,null,null,null,null,"",null,null,"",""]
[null,null,null,null,null,null,null,null,"","",null,null,null,null,null,null,null,"",null,null,"",""]
[null,null,null,null,null,null,null,null,"","",null,null,null,null,null,null,null,"",null,null,"",""]
[null,null,null,null,null,null,null,null,"","",null,null,null,null,null,null,null,"",null,null,"",""]
[null,null,null,null,null,null,null,null,"","",null,null,null,null,null,null,null,"",null,null,"",""]
[null,null,null,null,null,null,null,null,"","",null,null,null,null,null,null,null,"",null,null,"",""]
[null,null,null,null,null,null,null,null,"","",null,null,null,null,null,null,null,"",null,null,"",""]
[null,null,null,null,null,null,null,null,"","",null,null,null,null,null,null,null,"",null,null,"",""]
[null,null,null,null,null,null,null,null,"","",null,null,null,null,null,null,null,"",null,null,"",""]
[null,null,null,null,null,null,null,null,"","",null,null,null,null,null,null,null,"",null,null,"",""]
[null,null,null,null,null,null,null,null,"","",null,null,null,null,null,null,null,"",null,null,"",""]
[null,null,null,null,null,null,null,null,"","",null,null,null,null,null,null,null,"",null,null,"",""]
[null,null,null,null,null,null,null,null,"","",null,null,null,null,null,null,null,"",null,null,"",""]
[null,null,null,null,null,null,null,null,"","",null,null,null,null,null,null,null,"",null,null,"",""]
[null,null,null,null,null,null,null,null,"","",null,null,null,null,null,null,null,"",null,null,"",""]
[null,null,null,null,null,null,null,null,"","",null,null,null,null,null,null,null,"",null,null,"",""]
[null,null,null,null,null,null,null,null,"","",null,null,null,null,null,null,null,"",null,null,"",""]
[null,null,null,null,null,null,null,null,"","",null,null,null,null,null,null,null,"",null,null,"",""]
[null,null,null,null,null,null,null,null,"","",null,null,null,null,null,null,null,"",null,null,"",""]
[null,null,null,null,null,null,null,null,"","",null,null,null,null,null,null,null,"",null,null,"",""]
[null,null,null,null,null,null,null,null,"","",null,null,null,null,null,null,null,"",null,null,"",""]
[null,null,null,null,null,null,null,null,"","",null,null,null,null,null,null,null,"",null,null,"",""]
[null,null,null,null,null,null,null,null,"","",null,null,null,null,null,null,null,"",null,null,"",""]
[null,null,null,null,null,null,null,null,"","",null,null,null,null,null,null,null,"",null,null,"",""]
[null,null,null,null,null,null,null,null,"","",null,null,null,null,null,null,null,"",null,null,"",""]
[null,null,null,null,null,null,null,null,"","",null,null,null,null,null,null,null,"",null,null,"",""]
[null,null,null,null,null,null,null,null,"","",null,null,null,null,null,null,null,"",null,null,"",""]
[null,null,null,null,null,null,null,null,"","",null,null,null,null,null,null,null,"",null,null,"",""]
[null,null,null,null,null,null,null,null,"","",null,null,null,null,null,null,null,"",null,null,"",""]
[null,null,null,null,null,null,null,null,"","",null,null,null,null,null,null,null,"",null,null,"",""]
[null,null,null,null,null,null,null,null,"","",null,null,null,null,null,null,null,"",null,null,"",""]
[null,null,null,null,null,null,null,null,"","",null,null,null,null,null,null,null,"",null,null,"",""]
[null,null,null,null,null,null,null,null,"","",null,null,null,null,null,null,null,"",null,null,"",""]
[null,null,null,null,null,null,null,null,"","",null,null,null,null,null,null,null,"",null,null,"",""]
[null,null,null,null,null,null,null,null,"","",null,null,null,null,null,null,null,"",null,null,"",""]
[null,null,null,null,null,null,null,null,"","",null,null,null,null,null,null,null,"",null,null,"",""]
[null,null,null,null,null,null,null,null,"","",null,null,null,null,null,null,null,"",null,null,"",""]
[null,null,null,null,null,null,null,null,"","",null,null,null,null,null,null,null,"",null,null,"",""]
[null,null,null,null,null,null,null,null,"","",null,null,null,null,null,null,null,"",null,null,"",""]
[null,null,null,null,null,null,null,null,"","",null,null,null,null,null,null,null,"",null,null,"",""]
[null,null,null,null,null,null,null,null,"","",null,null,null,null,null,null,null,"",null,null,"",""]
[null,null,null,null,null,null,null,null,"","",null,null,null,null,null,null,null,"",null,null,"",""]
[null,null,null,null,null,null,null,null,{"$f":"IF(B73=\"\",\"\",H73*G73)","v":""},{"$f":"IF(A73=\"\",\"\",VLOOKUP(A73,$Z$5:$AA$19,2,FALSE))","v":""},null,null,null,null,null,null,null,{"$f":"IF(ISBLANK(M73), \"\",P73*Q73)","v":""},null,null,{"$f":"IF(OR(I73=\"\",R73=\"\"),\"\",I73-R73)","v":""},{"$f":"IF(OR(J73=\"\",U73=\"\"),\"\",J73*U73*52/1000)","v":""}]
[null,null,null,null,null,null,null,null,"","",null,null,null,null,null,null,null,"",null,null,"",""]
[null,null,null,null,null,null,null,null,"","",null,null,null,null,null,null,null,"",null,null,"",""]
[null,null,null,null,null,null,null,null,"","",null,null,null,null,null,null,null,"",null,null,"",""]
[null,null,null,null,null,null,null,null,"","",null,null,null,null,null,null,null,"",null,null,"",""]
[null,null,null,null,null,null,null,null,"","",null,null,null,null,null,null,null,"",null,null,"",""]
[null,null,null,null,null,null,null,null,"","",null,null,null,null,null,null,null,"",null,null,"",""]
[null,null,null,null,null,null,null,null,"","",null,null,null,null,null,null,null,"",null,null,"",""]
[null,null,null,null,null,null,null,null,"","",null,null,null,null,null,null,null,"",null,null,"",""]
[null,null,null,null,null,null,null,null,"","",null,null,null,null,null,null,null,"",null,null,"",""]
[null,null,null,null,null,null,null,null,"","",null,null,null,null,null,null,null,"",null,null,"",""]
[null,null,null,null,null,null,null,null,"","",null,null,null,null,null,null,null,"",null,null,"",""]
[null,null,null,null,null,null,null,null,"","",null,null,null,null,null,null,null,"",null,null,"",""]
[null,null,null,null,null,null,null,null,"","",null,null,null,null,null,null,null,"",null,null,"",""]
[null,null,null,null,null,null,null,null,"","",null,null,null,null,null,null,null,"",null,null,"",""]
[null,null,null,null,null,null,null,null,"","",null,null,null,null,null,null,null,"",null,null,"",""]
[null,null,null,null,null,null,null,null,"","",null,null,null,null,null,null,null,"",null,null,"",""]
[null,null,null,null,null,null,null,null,"","",null,null,null,null,null,null,null,"",null,null,"",""]
[null,null,null,null,null,null,null,null,"","",null,null,null,null,null,null,null,"",null,null,"",""]
[null,null,null,null,null,null,null,null,"","",null,null,null,null,null,null,null,"",null,null,"",""]
[null,null,null,null,null,null,null,null,"","",null,null,null,null,null,null,null,"",null,null,"",""]
[null,null,null,null,null,null,null,null,"","",null,null,null,null,null,null,null,"",null,null,"",""]
[null,null,null,null,null,null,null,null,"","",null,null,null,null,null,null,null,"",null,null,"",""]
[null,null,null,null,null,null,null,null,"","",null,null,null,null,null,null,null,"",null,null,"",""]
[null,null,null,null,null,null,null,null,"","",null,null,null,null,null,null,null,"",null,null,"",""]
[null,null,null,null,null,null,null,null,"","",null,null,null,null,null,null,null,"",null,null,"",""]
[null,null,null,null,null,null,null,null,"","",null,null,null,null,null,null,null,"",null,null,"",""]
[null,null,null,null,null,null,null,null,"","",null,null,null,null,null,null,null,"",null,null,"",""]
[null,null,null,null,null,null,null,null,"","",null,null,null,null,null,null,null,"",null,null,"",""]
[null,null,null,null,null,null,null,null,"","",null,null,null,null,null,null,null,"",null,null,"",""]
[null,null,null,null,null,null,null,null,"","",null,null,null,null,null,null,null,"",null,null,"",""]
[null,null,null,null,null,null,null,null,"","",null,null,null,null,null,null,null,"",null,null,"",""]
[null,null,null,null,null,null,null,null,"","",null,null,null,null,null,null,null,"",null,null,"",""]
[null,null,null,null,null,null,null,null,"","",null,null,null,null,null,null,null,"",null,null,"",""]
[null,null,null,null,null,null,null,null,"","",null,null,null,null,null,null,null,"",null,null,"",""]
[null,null,null,null,null,null,null,null,"","",null,null,null,null,null,null,null,"",null,null,"",""]
[null,null,null,null,null,null,null,null,"","",null,null,null,null,null,null,null,"",null,null,"",""]
[null,null,null,null,null,null,null,null,"","",null,null,null,null,null,null,null,"",null,null,"",""]
[null,null,null,null,null,null,null,null,"","",null,null,null,null,null,null,null,"",null,null,"",""]
[null,null,null,null,null,null,null,null,"","",null,null,null,null,null,null,null,"",null,null,"",""]
[null,null,null,null,null,null,null,null,"","",null,null,null,null,null,null,null,"",null,null,"",""]
[null,null,null,null,null,null,null,null,"","",null,null,null,null,null,null,null,"",null,null,"",""]
[null,null,null,null,null,null,null,null,"","",null,null,null,null,null,null,null,"",null,null,"",""]
[null,null,null,null,null,null,null,null,"","",null,null,null,null,null,null,null,"",null,null,"",""]
[null,null,null,null,null,null,null,null,"","",null,null,null,null,null,null,null,"",null,null,"",""]
[null,null,null,null,null,null,null,null,"","",null,null,null,null,null,null,null,"",null,null,"",""]
[null,null,null,null,null,null,null,null,"","",null,null,null,null,null,null,null,"",null,null,"",""]
[null,null,null,null,null,null,null,null,"","",null,null,null,null,null,null,null,"",null,null,"",""]
[null,null,null,null,null,null,null,null,"","",null,null,null,null,null,null,null,"",null,null,"",""]
[null,null,null,null,null,null,null,null,"","",null,null,null,null,null,null,null,"",null,null,"",""]
[null,null,null,null,null,null,null,null,"","",null,null,null,null,null,null,null,"",null,null,"",""]
[null,null,null,null,null,null,null,null,"","",null,null,null,null,null,null,null,"",null,null,"",""]
[null,null,null,null,null,null,null,null,"","",null,null,null,null,null,null,null,"",null,null,"",""]
[null,null,null,null,null,null,null,null,"","",null,null,null,null,null,null,null,"",null,null,"",""]
[null,null,null,null,null,null,null,null,"","",null,null,null,null,null,null,null,"",null,null,"",""]
[null,null,null,null,null,null,null,null,"","",null,null,null,null,null,null,null,"",null,null,"",""]
[null,null,null,null,null,null,null,null,"","",null,null,null,null,null,null,null,"",null,null,"",""]
[null,null,null,null,null,null,null,null,"","",null,null,null,null,null,null,null,"",null,null,"",""]
[null,null,null,null,null,null,null,null,"","",null,null,null,null,null,null,null,"",null,null,"",""]
[null,null,null,null,null,null,null,null,"","",null,null,null,null,null,null,null,"",null,null,"",""]
[null,null,null,null,null,null,null,null,"","",null,null,null,null,null,null,null,"",null,null,"",""]
[null,null,null,null,null,null,null,null,"","",null,null,null,null,null,null,null,"",null,null,"",""]
[null,null,null,null,null,null,null,null,"","",null,null,null,null,null,null,null,"",null,null,"",""]
[null,null,null,null,null,null,null,null,"","",null,null,null,null,null,null,null,"",null,null,"",""]
[null,null,null,null,null,null,null,null,{"$f":"IF(B137=\"\",\"\",H137*G137)","v":""},{"$f":"IF(A137=\"\",\"\",VLOOKUP(A137,$Z$5:$AA$19,2,FALSE))","v":""},null,null,null,null,null,null,null,{"$f":"IF(ISBLANK(M137), \"\",P137*Q137)","v":""},null,null,{"$f":"IF(OR(I137=\"\",R137=\"\"),\"\",I137-R137)","v":""},{"$f":"IF(OR(J137=\"\",U137=\"\"),\"\",J137*U137*52/1000)","v":""}]
[null,null,null,null,null,null,null,null,"","",null,null,null,null,null,null,null,"",null,null,"",""]
[null,null,null,null,null,null,null,null,"","",null,null,null,null,null,null,null,"",null,null,"",""]
[null,null,null,null,null,null,null,null,"","",null,null,null,null,null,null,null,"",null,null,"",""]
[null,null,null,null,null,null,null,null,"","",null,null,null,null,null,null,null,"",null,null,"",""]
[null,null,null,null,null,null,null,null,"","",null,null,null,null,null,null,null,"",null,null,"",""]
[]
["Room Type","Type",null,"Ballast",null,"Lamps",null,"New or Retro",null,"Control","DLC Energy Star Qualified?"]
["Kitchen","Incandescent",null,null,null,null,null,null,null,null,"DLC"]
["Living Room","Pin Fluorescent",null,"Magnetic",null,1,null,"New Fixture",null,"YES","EnergyStar"]
["Outdoor","Screw-in CFL",null,"Electronic",null,2,null,"Retrofit Kit",null,"NO"]
["Family Room","Hardwired CFL",null,"Pulse-start",null,3,null,"Lamp to Lamp"]
["Garage","2x4 Troffer",null,"N/A",null,4,null,"Remove"]
["Utility Room","2x2 Troffer",null,null,null,5]
["Dining Room","2' Strip",null,null,null,6]
["Office","4' Strip",null,null,null,7]
["Bedroom","6' Strip",null,null,null,8]
["Bathroom","8' Strip",null,null,null,9]
["Hall/Entry","Wallpack",null,null,null,10]
["Laundry Room","Pole"]
["Closet","HID"]
["Other","Exit INC"]
[null,"HighBay T8"]
[null,"HighBay T5"]
[null,"Sign"]
[null,"Other"]
[]
[]
[null,"Type2"]
[null,"LED Screw-in"]
[null,"LED T8 Lamp"]
[null,"Pin LED"]
[null,"LED 2x4 Troffer"]
[null,"LED 2x2 Troffer"]
[null,"2' LED Strip"]
[null,"4' LED Strip"]
[null,"6' LED Strip"]
[null,"8' LED Strip"]
[null,"LED Wallpack"]
[null,"LED Pole Fixture"]
[null,"LED Sign"]
[null,"Other"]

{"sheet":"Lighting","index":7,"n_rows":318,"n_cols":58,"rows_kept":318,"cut":false,"hidden":false,"merged":[[1,0,1,1],[30,9,30,10],[7,10,7,11],[38,3,38,4],[38,5,38,6],[38,7,38,8],[39,3,39,4],[39,5,39,6],[39,7,39,8],[30,11,30,12],[37,3,37,4],[37,5,37,6],[37,7,37,8],[138,12,138,13],[138,0,138,11],[133,12,133,13],[141,0,142,13],[134,12,134,13],[135,12,135,13],[136,12,136,13],[137,12,137,13],[124,12,124,13],[125,12,125,13],[126,12,126,13],[127,12,127,13],[128,12,128,13],[129,12,129,13],[130,12,130,13],[127,5,127,6],[127,7,127,8],[128,3,128,4],[128,5,128,6],[128,7,128,8],[136,3,136,4],[136,5,136,6],[136,7,136,8],[137,3,137,4],[62,7,62,8],[45,3,45,4],[45,5,45,6],[46,5,46,6],[43,3,43,4],[143,0,144,13],[145,0,146,13],[112,0,112,12],[111,0,111,12],[76,0,76,6],[44,5,44,6],[44,7,44,8],[49,0,49,8],[50,3,50,4],[50,5,50,6],[50,7,50,8],[51,3,51,4],[51,5,51,6],[56,5,56,6],[56,7,56,8],[52,7,52,8],[53,3,53,4],[53,5,53,6],[53,7,53,8],[44,3,44,4],[47,5,47,6],[47,7,47,8],[45,7,45,8],[46,7,46,8],[43,5,43,6],[43,7,43,8],[11,2,11,7],[36,3,36,4],[36,5,36,6],[36,7,36,8],[34,3,34,4],[46,3,46,4],[47,3,47,4],[28,1,28,2],[29,1,29,2],[32,7,32,8],[32,5,32,6],[32,3,32,4],[42,3,42,4],[42,5,42,6],[42,7,42,8],[34,5,34,6],[34,7,34,8],[41,5,41,6],[41,7,41,8],[40,3,40,4],[40,5,40,6],[40,7,40,8],[31,0,31,5],[33,3,33,4],[35,5,35,6],[35,7,35,8],[35,3,35,4],[41,3,41,4],[3,0,3,13],[4,0,4,8],[11,0,11,1],[24,9,25,10],[26,9,26,10],[24,5,24,6],[24,7,24,8],[24,1,25,2],[24,11,25,12],[16,0,16,12],[15,0,15,12],[4,10,4,11],[12,10,12,11],[12,0,12,7],[6,0,6,8],[7,0,7,8],[13,10,13,11],[10,0,10,8],[10,10,10,11],[8,0,8,8],[8,10,8,11],[9,0,9,8],[5,0,5,7],[6,10,6,11],[54,7,54,8],[55,3,55,4],[55,5,55,6],[55,7,55,8],[54,3,54,4],[58,7,58,8],[52,3,52,4],[52,5,52,6],[56,3,56,4],[73,11,73,12],[74,1,74,2],[74,11,74,12],[75,1,75,8],[75,11,75,12],[71,11,71,12],[63,3,63,4],[63,5,63,6],[63,7,63,8],[64,3,64,4],[64,5,64,6],[64,7,64,8],[73,1,73,2],[69,11,70,12],[65,3,65,4],[65,5,65,6],[65,7,65,8],[69,3,69,4],[66,0,66,12],[72,1,72,2],[72,9,72,10],[72,11,72,12],[77,3,77,4],[77,5,77,6],[77,7,77,8],[69,7,69,8],[69,9,70,10],[71,9,71,10],[73,9,73,10],[74,9,74,10],[75,9,75,10],[69,5,69,6],[78,3,78,4],[78,5,78,6],[78,7,78,8],[79,3,79,4],[79,5,79,6],[79,7,79,8],[80,3,80,4],[80,5,80,6],[80,7,80,8],[81,3,81,4],[81,5,81,6],[81,7,81,8],[82,3,82,4],[82,5,82,6],[82,7,82,8],[83,3,83,4],[83,5,83,6],[83,7,83,8],[84,3,84,4],[84,5,84,6],[84,7,84,8],[85,3,85,4],[85,5,85,6],[85,7,85,8],[86,3,86,4],[86,5,86,6],[86,7,86,8],[87,3,87,4],[87,5,87,6],[87,7,87,8],[88,3,88,4],[88,5,88,6],[88,7,88,8],[89,3,89,4],[89,5,89,6],[89,7,89,8],[90,3,90,4],[90,5,90,6],[90,7,90,8],[91,3,91,4],[91,5,91,6],[91,7,91,8],[92,3,92,4],[92,5,92,6],[92,7,92,8],[98,7,98,8],[99,3,99,4],[99,5,99,6],[99,7,99,8],[93,0,93,12],[95,3,95,4],[95,5,95,6],[95,7,95,8],[96,3,96,4],[96,5,96,6],[96,7,96,8],[94,0,94,7],[97,3,97,4],[97,5,97,6],[97,7,97,8],[98,3,98,4],[98,5,98,6],[119,1,119,2],[119,7,119,8],[120,7,120,8],[114,1,115,2],[114,3,114,4],[114,7,115,8],[116,1,116,2],[116,7,116,8],[118,1,118,2],[118,7,118,8],[120,1,120,4],[114,5,115,6],[116,5,116,6],[118,5,118,6],[119,5,119,6],[120,5,120,6],[117,1,117,2],[117,5,117,6],[117,7,117,8],[121,0,121,5],[123,3,123,4],[123,5,123,6],[123,7,123,8],[124,3,124,4],[124,5,124,6],[124,7,124,8],[125,3,125,4],[125,5,125,6],[125,7,125,8],[122,3,122,4],[122,5,122,6],[122,7,122,8],[122,12,122,13],[135,3,135,4],[135,5,135,6],[135,7,135,8],[129,3,129,4],[129,5,129,6],[129,7,129,8],[130,3,130,4],[130,5,130,6],[131,5,131,6],[131,7,131,8],[126,3,126,4],[126,5,126,6],[126,7,126,8],[127,3,127,4],[131,12,131,13],[132,12,132,13],[130,7,130,8],[131,3,131,4],[123,12,123,13],[137,5,137,6],[137,7,137,8],[132,3,132,4],[132,5,132,6],[132,7,132,8],[133,3,133,4],[133,5,133,6],[133,7,133,8],[134,3,134,4],[134,5,134,6],[134,7,134,8],[103,3,103,4],[103,5,103,6],[103,7,103,8],[104,3,104,4],[104,5,104,6],[104,7,104,8],[105,3,105,4],[105,5,105,6],[105,7,105,8],[100,3,100,4],[100,5,100,6],[100,7,100,8],[101,3,101,4],[101,5,101,6],[101,7,101,8],[102,3,102,4],[102,5,102,6],[102,7,102,8],[109,3,109,4],[109,5,109,6],[109,7,109,8],[110,3,110,4],[110,5,110,6],[110,7,110,8],[106,3,106,4],[106,5,106,6],[106,7,106,8],[107,3,107,4],[107,5,107,6],[107,7,107,8],[108,3,108,4],[108,7,108,8],[108,5,108,6],[22,20,24,20],[5,25,5,26],[4,25,4,26],[6,25,6,26],[7,25,7,26],[13,25,13,26],[12,25,12,26],[11,25,11,26],[10,25,10,26],[9,25,9,26],[8,25,8,26],[5,19,7,19],[8,19,10,19],[11,19,13,19],[23,0,23,12],[67,0,67,12],[60,3,60,4],[60,5,60,6],[60,7,60,8],[61,3,61,4],[61,5,61,6],[61,7,61,8],[62,3,62,4],[62,5,62,6],[32,17,32,18],[13,0,13,7],[24,3,24,4],[33,5,33,6],[33,7,33,8],[29,11,29,12],[28,11,28,12],[26,11,26,12],[28,9,28,10],[29,9,29,10],[30,1,30,8],[0,10,0,13],[0,1,0,9],[2,0,2,12],[9,10,9,11],[71,1,71,2],[26,1,26,2],[14,2,14,7],[22,16,24,17],[5,16,7,17],[27,1,27,2],[27,9,27,10],[27,11,27,12],[69,1,70,2],[48,0,48,12],[59,5,59,6],[59,7,59,8],[59,3,59,4],[51,7,51,8],[54,5,54,6],[57,3,57,4],[57,5,57,6],[57,7,57,8],[58,3,58,4],[58,5,58,6]]}
[null,"MULTIFAMILY LIGHTING RETROFIT INCENTIVES",null,null,null,null,null,null,null,null,"See specs at the bottom of the page!"]
["Applicant: fill in gray fields"]
["IMPORTANT NOTICE: Only qualified LED lighting is eligible for a rebate. No fluorescent replacements are eligible for rebates. Scope of work is REQUIRED for all lighting projects."]
["1. Interior Retrofits",null,null,null,null,null,null,null,null,null,null,null,null,null,null,null,null,"2022 Changes ---->",null,"Energy Factor"]
["Equipment Type*",null,null,null,null,null,null,null,null,"Incentive","Unit",null,"# of Units","Incentive Subtotal","Old Incentive",null,null,null,null,1.3720000000000001,null,"watts reduced","Old $/watt reduced","Old Incentive","kWh","Old Cost/kWh",null,"New $/watt reduced","New Incentive","New $/kWh","Delta","Incentive W","kWh W","2020 rates"]
["LED Lighting",null,null,null,null,null,null,null,null,null,null,null,null,null,null,null,null,null,null,"Fix to Fix","In",100,0.3,{"$f":"V6*W6","v":30},{"$f":"V6*818*T5/1000","v":112.2296},{"$f":"X6/Y6","v":0.26730915908102676},null,0.32,{"$f":"V6*AB6","v":32},{"$f":"IF(Y6=0, \"0\", AC6/Y6)","v":0.2851297696864285},{"$f":"AD6-Z6","v":1.7820610605401743E-2},0.29539520823847143,0.28659167344273073,9.4234631038437364E-2]
["20W or less LED Lamp replacing Incandescent less than 75W: Ceiling Fans, Bath Vanity, Track Lights, Recessed Can, Pendants",null,null,null,null,null,null,null,null,2,"LED Lamp",null,null,{"$f":"J7*M7","v":0},2,null,null,null,null,null,"Ext",100,0.6,{"$f":"V7*W7","v":60},{"$f":"V7*4192/1000","v":419.2},{"$f":"X7/Y7","v":0.14312977099236643},null,0.63,{"$f":"V7*AB7","v":63},{"$f":"IF(Y7=0, \"0\", AC7/Y7)","v":0.15028625954198474},{"$f":"AD7-Z7","v":7.1564885496183117E-3},0.22773923357591014,0.16414205732482676,0.11927480916030533]
["20W or less LED Lamp replacing CFL Lamp less than 28W: Ceiling Fans, Vanity, Track Lights, Recessed Can, Pendants",null,null,null,null,null,null,null,null,1,"LED Lamp",null,null,{"$f":"J8*M8","v":0},1,null,null,null,null,null,24,100,1.3,130,{"$f":"V8*8760/1000","v":876},0.14840182648401826,null,1.37,137,0.15639269406392695,7.9908675799086892E-3,6.0188263316320892E-2,5.9260126587693224E-2,6.8493150684931503E-2]
["LED Exit Signs replacing Incandescent Exit Signs",null,null,null,null,null,null,null,null,10,"LED Sign",null,null,{"$f":"J9*M9","v":0},null,null,null,null,null,"Fix to Retro","In",100,0.25,25,{"$f":"V9*818*T5/1000","v":112.2296},0.22275763256752229,null,0.27,27,0.24057824317292406,1.7820610605401771E-2,4.1395029136537774E-2,5.8900140280927438E-2,4.7117315519218682E-2]
["LED Exit Signs replacing CFL Exit Signs",null,null,null,null,null,null,null,null,10,"LED Sign",null,null,{"$f":"J10*M10","v":0},null,0.14234693528845399,null,null,null,null,"Ext",100,0.44999999999999996,44.999999999999993,{"$f":"V10*4192/1000","v":419.2},0.1073473282442748,null,0.48,48,0.11450381679389313,7.1564885496183256E-3,5.6339259638688542E-3,5.1853896193481634E-3,5.9637404580152667E-2]
["LED Open Signs",null,null,null,null,null,null,null,null,20,"LED Sign",null,null,{"$f":"J11*M11","v":0},null,null,null,null,null,null,24,100,0.9,90,{"$f":"V11*8760/1000","v":876},0.10273972602739725,null,0.95,95,0.10844748858447488,5.7077625570776253E-3,0.11641011339915397,0.17953448418384541,3.4246575342465752E-2]
["Interior Lighting Controls*                                                                                                                                  ",null,null,null,null,null,null,null,null,null,null,null,null,null,null,null,null,null,null,"L to L","In",100,0.2,20,{"$f":"V12*818*T5/1000","v":112.2296},0.17820610605401782,null,0.21,21,0.18711641135671872,8.9103053027008994E-3,0.12487712779368208,0.16443819468929888,3.533798663941401E-2]
["Occupancy Sensors",null,null,null,null,null,null,null,null,0.16,"Watts Controlled",null,null,{"$f":"J13*M13","v":0},null,null,{"$f":"N17","v":0},null,null,null,"Ext",100,0.35,35,{"$f":"V13*4192/1000","v":419.2},8.3492366412213748E-2,null,0.37,37,8.8263358778625955E-2,4.7709923664122078E-3,6.1865669302938655E-3,7.2256297647197388E-3,4.7709923664122134E-2]
["Daylighting Sensor Controls",null,null,null,null,null,null,null,null,0.1,"Watts Controlled",null,null,{"$f":"J14*M14","v":0},null,null,null,null,null,null,24,100,0.7,70,{"$f":"V14*8760/1000","v":876},7.9908675799086754E-2,null,0.74,74,8.4474885844748854E-2,4.5662100456621002E-3,2.8818520431191066E-2,5.3394108606867781E-2,2.8538812785388126E-2]
[]
[{"$f":"IF('Applicant Info'!P13=TRUE,\"Income Qualifier Bonus\",\"Total Interior Retrofits Incentives\")","v":"Total Interior Retrofits Incentives"},null,null,null,null,null,null,null,null,null,null,null,null,{"$f":"IF('Applicant Info'!$P$13=TRUE,SUM(N7:N11,N13:N14)*0.1,SUM(N7:N11,N13:N14))","v":0}]
["Total Interior Retrofits Incentives",null,null,null,null,null,null,null,null,null,null,null,null,{"$f":"SUM(N7:N11,N13:N14)+N16","v":0}]
["*Please provide a description of the retrofit, including any lighting layouts, fixture counts or calculation spreadsheets."]
["** Interior controls for non apartment units (i.e. Leasing Office, Hall/Entry, Laundry Room, Gym, etc.)."]
["*** A dwelling unit is defined as an interior space that is residential in nature (i.e. Appartments,hotel rooms, dormitories, retirement and senior  living communities, etc.)."]
["****Watts Reduced = old connected wattage - new connected wattage"]
[]
[]
["2. LED Replacing HID (Lamps, Fixtures & Retrofit kits)"]
[null,"Type of Retrofit",null,"Fixture Replacing Fixture",null,"Lamp Replacing Lamp",null,"Fixture to Retrofit Kit",null,{"$f":"IF('Applicant Info'!$P$13=TRUE,\"Income Qualifier Bonus\",\"Total Incentive\")","v":"Total Incentive"},null,{"$f":"IF('Applicant Info'!$P$13=TRUE,\"Total Incentive\",\"\")","v":""}]
[null,null,null,"Incentive","Watts Reduced","Incentive","Watts Reduced","Incentive","Watts Reduced",null,null,null,null,null,null,null,{"$f":"L31","v":""}]
[null,"Interior",null,{"$f":"AB6","v":0.32},{"$f":"SUMIFS($N$34:$N$48,$B$34:$B$48,$B27,$C$34:$C$48,D$25)-SUMIFS($N$52:$N$66,$B$52:$B$66,$B27,$C$52:$C$66,D$25)","v":0},{"$f":"AB12","v":0.21},{"$f":"SUMIFS($N$34:$N$48,$B$34:$B$48,$B27,$C$34:$C$48,F$25)-SUMIFS($N$52:$N$66,$B$52:$B$66,$B27,$C$52:$C$66,F$25)","v":0},{"$f":"AB9","v":0.27},{"$f":"SUMIFS($N$34:$N$48,$B$34:$B$48,$B27,$C$34:$C$48,H$25)-SUMIFS($N$52:$N$66,$B$52:$B$66,$B27,$C$52:$C$66,H$25)","v":0},{"$f":"IF('Applicant Info'!$P$13=TRUE,ROUND(IF(OR(D27*E27+F27*G27+H27*I27<0,$N$67=\"\",$N$67=0), 0, (D27*E27+F27*G27+H27*I27)*0.1),2),IF(OR(D27*E27+F27*G27+H27*I27<0,$N$67=\"\",$N$67=0), 0, D27*E27+F27*G27+H27*I27))","v":0},null,{"$f":"IF('Applicant Info'!$P$13=TRUE,IF(OR(D27*E27+F27*G27+H27*I27<0,$N$67=\"\",$N$67=0), 0, D27*E27+F27*G27+H27*I27)+Lighting!J27,\"\")","v":""}]
[null,"Interior 18 Hour",null,1,{"$f":"SUMIFS($N$34:$N$48,$B$34:$B$48,$B28,$C$34:$C$48,D$25)-SUMIFS($N$52:$N$66,$B$52:$B$66,$B28,$C$52:$C$66,D$25)","v":0},0.57999999999999996,{"$f":"SUMIFS($N$34:$N$48,$B$34:$B$48,$B28,$C$34:$C$48,F$25)-SUMIFS($N$52:$N$66,$B$52:$B$66,$B28,$C$52:$C$66,F$25)","v":0},0.74,{"$f":"SUMIFS($N$34:$N$48,$B$34:$B$48,$B28,$C$34:$C$48,H$25)-SUMIFS($N$52:$N$66,$B$52:$B$66,$B28,$C$52:$C$66,H$25)","v":0},{"$f":"IF('Applicant Info'!$P$13=TRUE,ROUND(IF(OR(D28*E28+F28*G28+H28*I28<0,$N$67=\"\",$N$67=0), 0, (D28*E28+F28*G28+H28*I28)*0.1),2),IF(OR(D28*E28+F28*G28+H28*I28<0,$N$67=\"\",$N$67=0), 0, D28*E28+F28*G28+H28*I28))","v":0},null,{"$f":"IF('Applicant Info'!$P$13=TRUE,IF(OR(D28*E28+F28*G28+H28*I28<0,$N$67=\"\",$N$67=0), 0, D28*E28+F28*G28+H28*I28)+Lighting!J28,\"\")","v":""}]
[null,"Exterior/12 Hour",null,{"$f":"AB7","v":0.63},{"$f":"SUMIFS($N$34:$N$48,$B$34:$B$48,$B29,$C$34:$C$48,D$25)-SUMIFS($N$52:$N$66,$B$52:$B$66,$B29,$C$52:$C$66,D$25)","v":0},{"$f":"AB13","v":0.37},{"$f":"SUMIFS($N$34:$N$48,$B$34:$B$48,$B29,$C$34:$C$48,F$25)-SUMIFS($N$52:$N$66,$B$52:$B$66,$B29,$C$52:$C$66,F$25)","v":0},{"$f":"AB10","v":0.48},{"$f":"SUMIFS($N$34:$N$48,$B$34:$B$48,$B29,$C$34:$C$48,H$25)-SUMIFS($N$52:$N$66,$B$52:$B$66,$B29,$C$52:$C$66,H$25)","v":0},{"$f":"IF('Applicant Info'!$P$13=TRUE,ROUND(IF(OR(D29*E29+F29*G29+H29*I29<0,$N$67=\"\",$N$67=0), 0, (D29*E29+F29*G29+H29*I29)*0.1),2),IF(OR(D29*E29+F29*G29+H29*I29<0,$N$67=\"\",$N$67=0), 0, D29*E29+F29*G29+H29*I29))","v":0},null,{"$f":"IF('Applicant Info'!$P$13=TRUE,IF(OR(D29*E29+F29*G29+H29*I29<0,$N$67=\"\",$N$67=0), 0, D29*E29+F29*G29+H29*I29)+Lighting!J29,\"\")","v":""}]
[null,"24 Hour/Garage/3-Shift",null,{"$f":"AB8","v":1.37},{"$f":"SUMIFS($N$34:$N$48,$B$34:$B$48,$B30,$C$34:$C$48,D$25)-SUMIFS($N$52:$N$66,$B$52:$B$66,$B30,$C$52:$C$66,D$25)","v":0},{"$f":"AB14","v":0.74},{"$f":"SUMIFS($N$34:$N$48,$B$34:$B$48,$B30,$C$34:$C$48,F$25)-SUMIFS($N$52:$N$66,$B$52:$B$66,$B30,$C$52:$C$66,F$25)","v":0},{"$f":"AB11","v":0.95},{"$f":"SUMIFS($N$34:$N$48,$B$34:$B$48,$B30,$C$34:$C$48,H$25)-SUMIFS($N$52:$N$66,$B$52:$B$66,$B30,$C$52:$C$66,H$25)","v":0},{"$f":"IF('Applicant Info'!$P$13=TRUE,ROUND(IF(OR(D30*E30+F30*G30+H30*I30<0,$N$67=\"\",$N$67=0), 0, (D30*E30+F30*G30+H30*I30)*0.1),2),IF(OR(D30*E30+F30*G30+H30*I30<0,$N$67=\"\",$N$67=0), 0, D30*E30+F30*G30+H30*I30))","v":0},null,{"$f":"IF('Applicant Info'!$P$13=TRUE,IF(OR(D30*E30+F30*G30+H30*I30<0,$N$67=\"\",$N$67=0), 0, D30*E30+F30*G30+H30*I30)+Lighting!J30,\"\")","v":""}]
[null,"Total High Efficiency LED replacing HID Incentives",null,null,null,null,null,null,null,{"$f":"SUM(J27:K30)","v":0},null,{"$f":"IF('Applicant Info'!$P$13=TRUE,SUM(L27:M30),\"\")","v":""}]
["Existing equipment: HID fixtures and/or lamps being removed"]
["#","Measure Type","Retrofit Type","Fixture Type",null,"Ballast Type",null,"Description",null,"Lamps/ Fixture","Lamp Wattage","Fixture Quantity","Fixture Wattage","Base Watts"]
[1,null,null,null,null,null,null,null,null,{"$f":"IF($H34=\"\",\"\",VLOOKUP($H34,$BB:$BF,3,FALSE))","v":""},{"$f":"IF($H34=\"\",\"\",VLOOKUP($H34,$BB:$BF,4,FALSE))","v":""},null,{"$f":"IF($H34=\"\",\"\",VLOOKUP($H34,$BB:$BF,5,FALSE))","v":""},{"$f":"IF((IF($H34=\"\",\"\",M34*L34))=0,\"Missing Value\",(IF($H34=\"\",\"\",M34*L34)))","v":""}]
[2,null,null,null,null,null,null,null,null,"","",null,"",""]
[3,null,null,null,null,null,null,null,null,"","",null,"",""]
[4,null,null,null,null,null,null,null,null,"","",null,"",""]
[5,null,null,null,null,null,null,null,null,"","",null,"",""]
[6,null,null,null,null,null,null,null,null,"","",null,"",""]
[7,null,null,null,null,null,null,null,null,"","",null,"",{"$f":"IF((IF($H40=\"\",\"\",M40*L40))=0,\"Missing Value\",(IF($H40=\"\",\"\",M40*L40)))","v":""}]
[8,null,null,null,null,null,null,null,null,"","",null,"",""]
[9,null,null,null,null,null,null,null,null,"","",null,"",""]
[10,null,null,null,null,null,null,null,null,"","",null,"",""]
[11,null,null,null,null,null,null,null,null,"","",null,"",""]
[12,null,null,null,null,null,null,null,null,"","",null,"",""]
[13,null,null,null,null,null,null,null,null,"","",null,"",""]
[14,null,null,null,null,null,null,null,null,"","",null,"",""]
[15,null,null,null,null,null,null,null,null,"","",null,"",""]
["Subtotal HID Base Case Wattage",null,null,null,null,null,null,null,null,null,null,null,null,{"$f":"IF(SUM(N34:N48)=0,\"\",SUM(N34:N48))","v":""}]
["Replacement equipment: New LED lamps, fixtures, or fixture retrofit kit being installed"]
["#","Measure Type","Retrofit Type","Fixture Type",null,"Fixture or Ballast   Sub Type",null,"Description (type in model number)",null,"Lamps/ Fixture","Lamp Wattage","Fixture Quantity","Fixture Wattage","Installed Watts"]
[1,null,null,null,null,null,null,null,null,null,null,null,{"$f":"IF($H52=\"\",\"\",J52*K52)","v":""},{"$f":"IF((IF($H52=\"\",\"\",M52*L52))=0,\"Missing Value\",(IF($H52=\"\",\"\",M52*L52)))","v":""}]
[2,null,null,null,null,null,null,null,null,null,null,null,"",""]
[3,null,null,null,null,null,null,null,null,null,null,null,"",""]
[4,null,null,null,null,null,null,null,null,null,null,null,"",""]
[5,null,null,null,null,null,null,null,null,null,null,null,"",""]
[6,null,null,null,null,null,null,null,null,null,null,null,"",""]
[7,null,null,null,null,null,null,null,null,null,null,null,"",""]
[8,null,null,null,null,null,null,null,null,null,null,null,"",""]
[9,null,null,null,null,null,null,null,null,null,null,null,{"$f":"IF($H60=\"\",\"\",J60*K60)","v":""},{"$f":"IF((IF($H60=\"\",\"\",M60*L60))=0,\"Missing Value\",(IF($H60=\"\",\"\",M60*L60)))","v":""}]
[10,null,null,null,null,null,null,null,null,null,null,null,"",""]
[11,null,null,null,null,null,null,null,null,null,null,null,"",""]
[12,null,null,null,null,null,null,null,null,null,null,null,"","",null,null,null,"Ranges and lookup values for calculated lighting tables. Use caution when editing ranges that are used for data validation lists"]
[13,null,null,null,null,null,null,null,null,null,null,null,"","",null,null,null,"(tips: no symbols allowed, no spaces allowed unless removed with substitute function, any change to a range could delete it, so it must be re-created, use ctrl shift F3 to create a range, range name must begin and end with a letter and no spaces)"]
[14,null,null,null,null,null,null,null,null,null,null,null,"","",null,null,null,"TABLE 1: EXISTING HID"]
[15,null,null,null,null,null,null,null,null,null,null,null,"","",null,null,null,"Measure Type",null,"1. Retrofit Type",null,null,null,null,"2. Fixture Type",null,null,null,null,"3. Ballast Type",null,null,null,null,null,null,null,null,null,"4. Description",null,null,null,null,null,null,null,null,null,null,null,null,"5. Description lookup (all measures)"]
["Subtotal Installed T8, T5, or LED Wattage",null,null,null,null,null,null,null,null,null,null,null,null,{"$f":"IF(SUM(N52:N66)=0,\"\",SUM(N52:N66))","v":""},null,null,null,null,null,null,null,null,null,null,"HIDFixturereplacingFixture","HIDLampreplacingLamp","HIDFixturetoRetrofitKit",null,null,"CFL","HPS","I/H","MV","MH",null,null,null,null,null,null,null,null,null,null,null,null,null,null,null,null,null,null,"TYPE","DESCRIPTION","Ballast Type","LAMP / FIXTURE","WATT / LAMP","WATT / FIXTURE"]
["3. LED Replacing T5, T8 or T12 (Lamps, Fixtures & Retrofit Kits)",null,null,null,null,null,null,null,null,null,null,null,null,null,null,null,null,"MeasureType",null,"1. Retrofit Type",null,null,null,null,"CFL","CFL","CFL",null,null,"HIDCFL","HIDHighPressureSodium","HIDIncanorHalogen","HIDMercuryVapor","HIDMetalHalide",null,null,null,null,null,"HighPressureSodiumMagnetic","IncanorHalogenNone",null,"MercuryVaporMagnetic","MetalHalideElectronic","MetalHalideMagnetic","FixturetoRetrofitKitFixturetoRetrofitKit","CFLNone",null,null,null,null,null,"CFL","25 Watt Compact Fluorescent","None",1,25,25]
[null,null,null,null,null,null,null,null,null,null,null,null,null,null,null,null,null,"Interior",null,"Fixture replacing Fixture",null,null,null,null,"High Pressure Sodium","High Pressure Sodium","High Pressure Sodium",null,null,"None","Magnetic","None","Magnetic","Magnetic",null,null,null,null,null,"35 Watt HPS Lamp, Magnetic ballast","110 Watt Incandescent or Halogen Lamp",null,"40 Watt MV Lamp","20 Watt MH Lamp, Electronic Ballast","32 Watt MH Lamp, Magnetic ballast","Fixture to Retrofit Kit","25 Watt Compact Fluorescent",null,null,null,null,null,"CFL","30 Watt Compact Fluorescent","None",1,30,30]
[null,"Type of Retrofit",null,"Fixture Replacing Fixture",null,"Lamp Replacing Lamp",null,"Fixture to Retrofit Kit",null,{"$f":"IF('Applicant Info'!$P$13=TRUE,\"Income Qualifier Bonus\",\"Total Incentive\")","v":"Total Incentive"},null,{"$f":"IF('Applicant Info'!$P$13=TRUE,\"Total Incentive\",\"\")","v":""},null,null,null,null,{"$f":"L75","v":""},"Interior 18 Hour",null,"Lamp replacing Lamp",null,null,null,null,"Incan or Halogen","Incan or Halogen","Incan or Halogen",null,null,null,null,null,null,"Electronic",null,null,null,null,null,"50 Watt HPS Lamp, Magnetic ballast","116 Watt Incandescent or Halogen Lamp",null,"50 Watt MV Lamp","22 Watt MH Lamp, Electronic Ballast","39 Watt MH Lamp, Magnetic ballast",null,"30 Watt Compact Fluorescent",null,null,null,null,null,"CFL","35 Watt Compact Fluorescent","None",1,35,35]
[null,null,null,"Incentive","Watts Reduced","Incentive","Watts Reduced","Incentive","Watts Reduced",null,null,null,null,null,null,null,{"$f":"L76","v":""},"Exterior/12 Hour",null,"Fixture to Retrofit Kit",null,null,null,null,"Mercury Vapor","Mercury Vapor","Mercury Vapor",null,null,null,null,null,null,null,null,null,null,null,null,"70 Watt HPS Lamp, Magnetic ballast","120 Watt Incandescent or Halogen Lamp",null,"75 Watt MV Lamp","39 Watt MH Lamp, Electronic Ballast","50 Watt MH Lamp, Magnetic ballast",null,"35 Watt Compact Fluorescent",null,null,null,null,null,"CFL","40 Watt Compact Fluorescent","None",1,40,40]
[null,"Interior",null,{"$f":"AB6","v":0.32},{"$f":"SUMIFS($N$79:$N$93,$B$79:$B$93,$B72,$C$79:$C$93,D$70)-SUMIFS($N$97:$N$111,$B$97:$B$111,$B72,$C$97:$C$111,D$70)","v":0},{"$f":"AB12","v":0.21},{"$f":"SUMIFS($N$79:$N$93,$B$79:$B$93,$B72,$C$79:$C$93,F$70)-SUMIFS($N$97:$N$111,$B$97:$B$111,$B72,$C$97:$C$111,F$70)","v":0},{"$f":"AB9","v":0.27},{"$f":"SUMIFS($N$79:$N$93,$B$79:$B$93,$B72,$C$79:$C$93,H$70)-SUMIFS($N$97:$N$111,$B$97:$B$111,$B72,$C$97:$C$111,H$70)","v":0},{"$f":"IF('Applicant Info'!$P$13=TRUE,ROUND(IF(OR(D72*E72+F72*G72+H72*I72<0,$N$112=\"\",$N$112=0), 0, (D72*E72+F72*G72+H72*I72)*0.1),2),IF(OR(D72*E72+F72*G72+H72*I72<0,$N$112=\"\",$N$112=0), 0, D72*E72+F72*G72+H72*I72))","v":0},null,{"$f":"IF('Applicant Info'!$P$13=TRUE,IF(OR(D72*E72+F72*G72+H72*I72<0,$N$112=\"\",$N$112=0), 0, D72*E72+F72*G72+H72*I72)+Lighting!J72,\"\")","v":""},null,null,null,null,null,"24 Hour/Garage/3-Shift",null,null,null,null,null,null,"Metal Halide","Metal Halide","Metal Halide",null,null,null,null,null,null,null,null,null,null,null,null,"100 Watt HPS Lamp, Magnetic ballast","125 Watt Incandescent or Halogen Lamp",null,"100 Watt MV Lamp","50 Watt MH Lamp, Electronic Ballast","70 Watt MH Lamp, Magnetic ballast",null,"40 Watt Compact Fluorescent",null,null,null,null,null,"CFL","45 Watt Compact Fluorescent","None",1,45,45]
[null,"Interior 18 Hour",null,1,{"$f":"SUMIFS($N$79:$N$93,$B$79:$B$93,$B73,$C$79:$C$93,D$70)-SUMIFS($N$97:$N$111,$B$97:$B$111,$B73,$C$97:$C$111,D$70)","v":0},0.57999999999999996,{"$f":"SUMIFS($N$79:$N$93,$B$79:$B$93,$B73,$C$79:$C$93,F$70)-SUMIFS($N$97:$N$111,$B$97:$B$111,$B73,$C$97:$C$111,F$70)","v":0},0.74,{"$f":"SUMIFS($N$79:$N$93,$B$79:$B$93,$B73,$C$79:$C$93,H$70)-SUMIFS($N$97:$N$111,$B$97:$B$111,$B73,$C$97:$C$111,H$70)","v":0},{"$f":"IF('Applicant Info'!$P$13=TRUE,ROUND(IF(OR(D73*E73+F73*G73+H73*I73<0,$N$112=\"\",$N$112=0), 0, (D73*E73+F73*G73+H73*I73)*0.1),2),IF(OR(D73*E73+F73*G73+H73*I73<0,$N$112=\"\",$N$112=0), 0, D73*E73+F73*G73+H73*I73))","v":0},null,{"$f":"IF('Applicant Info'!$P$13=TRUE,IF(OR(D73*E73+F73*G73+H73*I73<0,$N$112=\"\",$N$112=0), 0, D73*E73+F73*G73+H73*I73)+Lighting!J73,\"\")","v":""},null,null,null,null,null,null,null,null,null,null,null,null,null,null,null,null,null,null,null,null,null,null,null,null,null,null,null,"150 Watt HPS Lamp, Magnetic ballast","130 Watt Incandescent or Halogen Lamp",null,"160 Watt MV self-ballasted Lamp","70 Watt MH Lamp, Electronic Ballast","100 Watt MH Lamp, Magnetic ballast",null,"45 Watt Compact Fluorescent",null,null,null,null,null,"CFL","50 Watt Compact Fluorescent","None",1,50,50]
[null,"Exterior/12 Hour",null,{"$f":"AB7","v":0.63},{"$f":"SUMIFS($N$79:$N$93,$B$79:$B$93,$B74,$C$79:$C$93,D$70)-SUMIFS($N$97:$N$111,$B$97:$B$111,$B74,$C$97:$C$111,D$70)","v":0},{"$f":"AB13","v":0.37},{"$f":"SUMIFS($N$79:$N$93,$B$79:$B$93,$B74,$C$79:$C$93,F$70)-SUMIFS($N$97:$N$111,$B$97:$B$111,$B74,$C$97:$C$111,F$70)","v":0},{"$f":"AB10","v":0.48},{"$f":"SUMIFS($N$79:$N$93,$B$79:$B$93,$B74,$C$79:$C$93,H$70)-SUMIFS($N$97:$N$111,$B$97:$B$111,$B74,$C$97:$C$111,H$70)","v":0},{"$f":"IF('Applicant Info'!$P$13=TRUE,ROUND(IF(OR(D74*E74+F74*G74+H74*I74<0,$N$112=\"\",$N$112=0), 0, (D74*E74+F74*G74+H74*I74)*0.1),2),IF(OR(D74*E74+F74*G74+H74*I74<0,$N$112=\"\",$N$112=0), 0, D74*E74+F74*G74+H74*I74))","v":0},null,{"$f":"IF('Applicant Info'!$P$13=TRUE,IF(OR(D74*E74+F74*G74+H74*I74<0,$N$112=\"\",$N$112=0), 0, D74*E74+F74*G74+H74*I74)+Lighting!J74,\"\")","v":""},null,null,null,null,null,null,null,null,null,null,null,null,null,null,null,null,null,null,null,null,null,null,null,null,null,null,null,"200 Watt HPS Lamp, Magnetic ballast","135 Watt Incandescent or Halogen Lamp",null,"175 Watt MV Lamp","100 Watt MH Lamp, Electronic Ballast","125 Watt MH Lamp, Magnetic ballast",null,"50 Watt Compact Fluorescent",null,null,null,null,null,"CFL","55 Watt Compact Fluorescent","None",1,55,55]
[null,"24 Hour/Garage/3-Shift",null,{"$f":"AB8","v":1.37},{"$f":"SUMIFS($N$79:$N$93,$B$79:$B$93,$B75,$C$79:$C$93,D$70)-SUMIFS($N$97:$N$111,$B$97:$B$111,$B75,$C$97:$C$111,D$70)","v":0},{"$f":"AB14","v":0.74},{"$f":"SUMIFS($N$79:$N$93,$B$79:$B$93,$B75,$C$79:$C$93,F$70)-SUMIFS($N$97:$N$111,$B$97:$B$111,$B75,$C$97:$C$111,F$70)","v":0},{"$f":"AB11","v":0.95},{"$f":"SUMIFS($N$79:$N$93,$B$79:$B$93,$B75,$C$79:$C$93,H$70)-SUMIFS($N$97:$N$111,$B$97:$B$111,$B75,$C$97:$C$111,H$70)","v":0},{"$f":"IF('Applicant Info'!$P$13=TRUE,ROUND(IF(OR(D75*E75+F75*G75+H75*I75<0,$N$112=\"\",$N$112=0), 0, (D75*E75+F75*G75+H75*I75)*0.1),2),IF(OR(D75*E75+F75*G75+H75*I75<0,$N$112=\"\",$N$112=0), 0, D75*E75+F75*G75+H75*I75))","v":0},null,{"$f":"IF('Applicant Info'!$P$13=TRUE,IF(OR(D75*E75+F75*G75+H75*I75<0,$N$112=\"\",$N$112=0), 0, D75*E75+F75*G75+H75*I75)+Lighting!J75,\"\")","v":""},null,null,null,null,null,null,null,null,null,null,null,null,null,null,null,null,null,null,null,null,null,null,null,null,null,null,null,"250 Watt HPS Lamp, Magnetic ballast","150 Watt Incandescent or Halogen Lamp",null,"250 Watt MV Lamp","150 Watt MH Lamp, Electronic Ballast","150 Watt MH Lamp, Magnetic Ballast",null,"55 Watt Compact Fluorescent",null,null,null,null,null,"CFL","60 Watt Compact Fluorescent","None",1,60,60]
[null,"Total High Efficiency LED replacing T5, T8, or T12 Incentives",null,null,null,null,null,null,null,{"$f":"SUM(J72:K75)","v":0},null,{"$f":"IF('Applicant Info'!$P$13=TRUE,SUM(L72:M75),\"\")","v":""},null,null,null,null,null,null,null,null,null,null,null,null,null,null,null,null,null,null,null,null,null,null,null,null,null,null,null,"310 Watt HPS Lamp, Magnetic ballast","160 Watt Incandescent or Halogen Lamp",null,"400 Watt MV Lamp","175 Watt MH Lamp, Electronic Ballast","175 Watt MH Lamp, Magnetic ballast",null,"60 Watt Compact Fluorescent",null,null,null,null,null,"CFL","65 Watt Compact Fluorescent","None",1,65,65]
["Existing equipment: T5, T8 or T12 fixtures and/or lamps being removed",null,null,null,null,null,null,null,null,null,null,null,null,null,null,null,null,null,null,null,null,null,null,null,null,null,null,null,null,null,null,null,null,null,null,null,null,null,null,"360 Watt HPS Lamp, Magnetic ballast","170 Watt Incandescent or Halogen Lamp",null,"700 Watt MV Lamp","200 Watt MH Lamp, Electronic Ballast","200 Watt MH Lamp, Magnetic ballast",null,"65 Watt Compact Fluorescent",null,null,null,null,null,"CFL","70 Watt Compact Fluorescent","None",1,70,70]
["#","Measure Type","Retrofit Type","Fixture Type",null,"Ballast Type",null,"Description",null,"Lamps/ Fixture","Lamp Wattage","Fixture Quantity","Fixture Wattage","Base Watts",null,null,null,null,null,null,null,null,null,null,null,null,null,null,null,null,null,null,null,null,null,null,null,null,null,"400 Watt HPS Lamp, Magnetic ballast","200 Watt Incandescent or Halogen Lamp",null,"1000 Watt MV Lamp","250 Watt MH Lamp, Electronic Ballast","250 Watt MH Lamp, Magnetic ballast",null,"70 Watt Compact Fluorescent",null,null,null,null,null,"CFL","75 Watt Compact Fluorescent","None",1,75,75]
[1,null,null,null,null,null,null,null,null,{"$f":"IF($H79=\"\",\"\",VLOOKUP($H79,$BB:$BF,3,FALSE))","v":""},{"$f":"IF($H79=\"\",\"\",VLOOKUP($H79,$BB:$BF,4,FALSE))","v":""},null,{"$f":"IF($H79=\"\",\"\",VLOOKUP($H79,$BB:$BF,5,FALSE))","v":""},{"$f":"IF((IF($H79=\"\",\"\",M79*L79))=0,\"Missing Value\",(IF($H79=\"\",\"\",M79*L79)))","v":""},null,null,null,null,null,null,null,null,null,null,null,null,null,null,null,null,null,null,null,null,null,null,null,null,null,"1000 Watt HPS Lamp, Magnetic ballast","250 Watt Incandescent or Halogen Lamp",null,null,"320 Watt MH Lamp, Electronic Ballast","320 Watt MH Lamp, Magnetic ballast",null,"75 Watt Compact Fluorescent",null,null,null,null,null,"CFL","80 Watt Compact Fluorescent","None",1,80,80]
[2,null,null,null,null,null,null,null,null,"","",null,"","",null,null,null,null,null,null,null,null,null,null,null,null,null,null,null,null,null,null,null,null,null,null,null,null,null,null,"300 Watt Incandescent or Halogen Lamp",null,null,"350 Watt MH Lamp, Electronic Ballast","350 Watt MH Lamp, Magnetic ballast",null,"80 Watt Compact Fluorescent",null,null,null,null,null,"CFL","85 Watt Compact Fluorescent","None",1,85,85]
[3,null,null,null,null,null,null,null,null,"","",null,"","",null,null,null,null,null,null,null,null,null,null,null,null,null,null,null,null,null,null,null,null,null,null,null,null,null,null,"400 Watt Incandescent or Halogen Lamp",null,null,"400 Watt MH Lamp, Electronic Ballast","360 Watt MH Lamp, Magnetic ballast",null,"85 Watt Compact Fluorescent",null,null,null,null,null,"CFL","90 Watt Compact Fluorescent","None",1,90,90]
[4,null,null,null,null,null,null,null,null,"","",null,"","",null,null,null,null,null,null,null,null,null,null,null,null,null,null,null,null,null,null,null,null,null,null,null,null,null,null,"448 Watt Incandescent or Halogen Lamp",null,null,"450 Watt MH Lamp, Electronic Ballast","400 Watt MH Lamp, Magnetic ballast",null,"90 Watt Compact Fluorescent",null,null,null,null,null,"CFL","95 Watt Compact Fluorescent","None",1,95,95]
[5,null,null,null,null,null,null,null,null,"","",null,"","",null,null,null,null,null,null,null,null,null,null,null,null,null,null,null,null,null,null,null,null,null,null,null,null,null,null,"500 Watt Incandescent or Halogen Lamp",null,null,null,"450 Watt MH Lamp, Magnetic ballast",null,"95 Watt Compact Fluorescent",null,null,null,null,null,"CFL","100 Watt Compact Fluorescent","None",1,100,100]
[6,null,null,null,null,null,null,null,null,"","",null,"","",null,null,null,null,null,null,null,null,null,null,null,null,null,null,null,null,null,null,null,null,null,null,null,null,null,null,"750 Watt Incandescent or Halogen Lamp",null,null,null,"750 Watt MH Lamp, Magnetic ballast",null,"100 Watt Compact Fluorescent",null,null,null,null,null,"CFL","105 Watt Compact Fluorescent","None",1,105,105]
[7,null,null,null,null,null,null,null,null,"","",null,"","",null,null,null,null,null,null,null,null,null,null,"2. Fixture Type",null,null,null,null,"3. Ballast Type",null,null,null,null,null,null,null,null,null,null,"1000 Watt Incandescent or Halogen Lamp",null,null,null,"1000 Watt MH Lamp, Magnetic ballast",null,"105 Watt Compact Fluorescent",null,null,null,null,null,"CFL","110 Watt Compact Fluorescent","None",1,110,110]
[8,null,null,null,null,null,null,null,null,"","",null,"","",null,null,null,"TABLE 2: REPLACEMENT FROM HID",null,null,null,null,null,null,"RFixturereplacingFixture","RLampreplacingLamp","RFixturetoRetrofitKit",null,null,"RT5R","RT8R","RFUTT8R","RLEDR","RRetrofitKitR",null,null,null,null,null,null,"1500 Watt Incandescent or Halogen Lamp",null,null,null,"1500 Watt MH Lamp, Magnetic ballast",null,"110 Watt Compact Fluorescent",null,null,null,null,null,"High Pressure Sodium","35 Watt HPS Lamp, Magnetic ballast","Magnetic",1,35,46]
[9,null,null,null,null,null,null,null,null,"","",null,"","",null,null,null,null,null,null,null,null,null,null,"LED","LED","Retrofit Kit",null,null,"PRS Elec","Electronic HO","Electronic","LEDs Over 20W","LED Retrofit Kit",null,null,null,null,null,null,"2000 Watt Incandescent or Halogen Lamp",null,null,null,null,null,null,null,null,null,null,null,"High Pressure Sodium","50 Watt HPS Lamp, Magnetic ballast","Magnetic",1,50,66]
[10,null,null,null,null,null,null,null,null,"","",null,"","",null,null,null,null,null,null,null,null,null,null,null,null,null,null,null,null,"Electronic Std","Electronic HO","Downlight Can Over 20W",null,null,null,null,null,null,null,null,null,null,null,null,null,null,null,null,null,null,null,"High Pressure Sodium","70 Watt HPS Lamp, Magnetic ballast","Magnetic",1,70,95]
[11,null,null,null,null,null,null,null,null,"","",null,"","",null,null,null,null,null,null,null,null,null,null,null,null,null,null,null,null,null,null,"Outdoor Pole-Mounted LEDs",null,null,null,null,null,null,null,null,null,null,null,null,null,null,null,null,null,null,null,"High Pressure Sodium","100 Watt HPS Lamp, Magnetic ballast","Magnetic",1,100,138]
[12,null,null,null,null,null,null,null,null,"","",null,"","",null,null,null,null,null,null,null,null,null,null,null,null,null,null,null,null,null,null,"Outdoor Wall-Mounted LEDs",null,null,null,null,null,null,null,null,null,null,null,null,null,null,null,null,null,null,null,"High Pressure Sodium","150 Watt HPS Lamp, Magnetic ballast","Magnetic",1,150,188]
[13,null,null,null,null,null,null,null,null,"","",null,"","",null,null,null,null,null,null,null,null,null,null,null,null,null,null,null,null,null,null,"Parking Garage LEDs",null,null,null,null,null,null,null,null,null,null,null,null,null,null,null,null,null,null,null,"High Pressure Sodium","200 Watt HPS Lamp, Magnetic ballast","Magnetic",1,200,250]
[14,null,null,null,null,null,null,null,null,"","",null,"","",null,null,null,null,null,null,null,null,null,null,null,null,null,null,null,null,null,null,"High-Bay LEDs ",null,null,null,null,null,null,null,null,null,null,null,null,null,null,null,null,null,null,null,"High Pressure Sodium","250 Watt HPS Lamp, Magnetic ballast","Magnetic",1,250,295]
[15,null,null,null,null,null,null,null,null,"","",null,"","",null,null,null,null,null,null,null,null,null,null,null,null,null,null,null,null,null,null,"Low-Bay LEDs ",null,null,null,null,null,null,null,null,null,null,null,null,null,null,null,null,null,null,null,"High Pressure Sodium","310 Watt HPS Lamp, Magnetic ballast","Magnetic",1,310,365]
["Subtotal HID Base Case Wattage",null,null,null,null,null,null,null,null,null,null,null,null,{"$f":"IF(SUM(N79:N93)=0,\"\",SUM(N79:N93))","v":""},null,null,null,null,null,null,null,null,null,null,null,null,null,null,null,null,null,null,"Stairway / Passageway LEDs",null,null,null,null,null,null,null,null,null,null,null,null,null,null,null,null,null,null,null,"High Pressure Sodium","360 Watt HPS Lamp, Magnetic ballast","Magnetic",1,360,414]
["Replacement equipment: LED lamps, fixtures, or fixture retrofit kits being installed",null,null,null,null,null,null,null,null,null,null,null,null,null,null,null,null,null,null,null,null,null,null,null,null,null,null,null,null,null,null,null,"Outdoor Signage",null,null,null,null,null,null,null,null,null,null,null,null,null,null,null,null,null,null,null,"High Pressure Sodium","400 Watt HPS Lamp, Magnetic ballast","Magnetic",1,400,465]
["#","Measure Type","Retrofit Type","Fixture Type",null,"LED Fixture Sub Type",null,"Description (type in model number)",null,"Lamps/ Fixture","Lamp Wattage","Fixture Quantity","Fixture Wattage","Installed Watts",null,null,null,null,null,null,null,null,null,null,null,null,null,null,null,null,null,null,"Bollards",null,null,null,null,null,null,null,null,null,null,null,null,null,null,null,null,null,null,null,"High Pressure Sodium","1000 Watt HPS Lamp, Magnetic ballast","Magnetic",1,1000,1100]
[1,null,null,null,null,null,null,null,null,null,null,null,{"$f":"IF($H97=\"\",\"\",J97*K97)","v":""},{"$f":"IF((IF($H97=\"\",\"\",M97*L97))=0,\"Missing Value\",(IF($H97=\"\",\"\",M97*L97)))","v":""},null,null,null,null,null,null,null,null,null,null,null,null,null,null,null,null,null,null,"1x2 Luminaires",null,null,null,null,null,null,null,null,null,null,null,null,null,null,null,null,null,null,null,"Incan or Halogen","110 Watt Incandescent or Halogen Lamp","None",1,110,110]
[2,null,null,null,null,null,null,null,null,null,null,null,"","",null,null,null,null,null,null,null,null,null,null,null,null,null,null,null,null,null,null,"1x4 Luminaires",null,null,null,null,null,null,null,null,null,null,null,null,null,null,null,null,null,null,null,"Incan or Halogen","116 Watt Incandescent or Halogen Lamp","None",1,116,116]
[3,null,null,null,null,null,null,null,null,null,null,null,"","",null,null,null,null,null,null,null,null,null,null,null,null,null,null,null,null,null,null,"2x2 Luminaires",null,null,null,null,null,null,null,null,null,null,null,null,null,null,null,null,null,null,null,"Incan or Halogen","120 Watt Incandescent or Halogen Lamp","None",1,120,120]
[4,null,null,null,null,null,null,null,null,null,null,null,"","",null,null,null,null,null,null,null,null,null,null,null,null,null,null,null,null,null,null,"2x4 Luminaires",null,null,null,null,null,null,null,null,null,null,null,null,null,null,null,null,null,null,null,"Incan or Halogen","125 Watt Incandescent or Halogen Lamp","None",1,125,125]
[5,null,null,null,null,null,null,null,null,null,null,null,"","",null,null,null,null,null,null,null,null,null,null,null,null,null,null,null,null,null,null,"1x8 Luminaires",null,null,null,null,null,null,null,null,null,null,null,null,null,null,null,null,null,null,null,"Incan or Halogen","130 Watt Incandescent or Halogen Lamp","None",1,130,130]
[6,null,null,null,null,null,null,null,null,null,null,null,"","",null,null,null,null,null,null,null,null,null,null,null,null,null,null,null,null,null,null,null,null,null,null,null,null,null,null,null,null,null,null,null,null,null,null,null,null,null,null,"Incan or Halogen","135 Watt Incandescent or Halogen Lamp","None",1,135,135]
[7,null,null,null,null,null,null,null,null,null,null,null,"","",null,null,null,null,null,null,null,null,null,null,null,null,null,null,null,null,null,null,null,null,null,null,null,null,null,null,null,null,null,null,null,null,null,null,null,null,null,null,"Incan or Halogen","150 Watt Incandescent or Halogen Lamp","None",1,150,150]
[8,null,null,null,null,null,null,null,null,null,null,null,"","",null,null,null,null,null,null,null,null,null,null,null,null,null,null,null,null,null,null,null,null,null,null,null,null,null,null,null,null,null,null,null,null,null,null,null,null,null,null,"Incan or Halogen","160 Watt Incandescent or Halogen Lamp","None",1,160,160]
[9,null,null,null,null,null,null,null,null,null,null,null,"","",null,null,null,null,null,null,null,null,null,null,null,null,null,null,null,null,null,null,null,null,null,null,null,null,null,null,null,null,null,null,null,null,null,null,null,null,null,null,"Incan or Halogen","170 Watt Incandescent or Halogen Lamp","None",1,170,170]
[10,null,null,null,null,null,null,null,null,null,null,null,"","",null,null,null,null,null,null,null,null,null,null,null,null,null,null,null,null,null,null,null,null,null,null,null,null,null,null,null,null,null,null,null,null,null,null,null,null,null,null,"Incan or Halogen","200 Watt Incandescent or Halogen Lamp","None",1,200,200]
[11,null,null,null,null,null,null,null,null,null,null,null,"","",null,null,null,null,null,null,null,null,null,null,null,null,null,null,null,null,null,null,null,null,null,null,null,null,null,null,null,null,null,null,null,null,null,null,null,null,null,null,"Incan or Halogen","250 Watt Incandescent or Halogen Lamp","None",1,250,250]
[12,null,null,null,null,null,null,null,null,null,null,null,"","",null,null,null,null,null,null,null,null,null,null,null,null,null,null,null,null,null,null,null,null,null,null,null,null,null,null,null,null,null,null,null,null,null,null,null,null,null,null,"Incan or Halogen","300 Watt Incandescent or Halogen Lamp","None",1,300,300]
[13,null,null,null,null,null,null,null,null,null,null,null,"","",null,null,null,null,null,null,null,null,null,null,null,null,null,null,null,null,null,null,null,null,null,null,null,null,null,null,null,null,null,null,null,null,null,null,null,null,null,null,"Incan or Halogen","400 Watt Incandescent or Halogen Lamp","None",1,400,400]
[14,null,null,null,null,null,null,null,null,null,null,null,"","",null,null,null,null,null,null,null,null,null,null,"2. Fixture Type",null,null,null,null,"3. Ballast Type",null,null,null,null,null,null,null,null,null,null,null,null,null,null,null,null,null,null,null,null,null,null,"Incan or Halogen","448 Watt Incandescent or Halogen Lamp","None",1,448,448]
[15,null,null,null,null,null,null,null,null,null,null,null,"","",null,null,null,null,null,null,null,null,null,null,"TFixturereplacingFixture","TLampreplacingLamp","TFixturetoRetrofitKit",null,null,"FUT12","FUT8","T12","T8","F2RK","T5",null,null,null,null,null,null,null,null,null,null,null,null,null,null,null,null,null,"Incan or Halogen","500 Watt Incandescent or Halogen Lamp","None",1,500,500]
["Subtotal Installed LED Wattage",null,null,null,null,null,null,null,null,null,null,null,null,{"$f":"IF(SUM(N97:N111)=0,\"\",SUM(N97:N111))","v":""},null,null,null,"TMeasureType",null,"TRetrofitType",null,null,null,null,"T5","T5","T5",null,null,"TFUT12T","TFUT8T","TT12T","TT8T","TFixturetoRetrofitKitT","TT5T",null,null,null,null,"FUT12Magnetic","FUT8Electronic","FUT8ElectronicHO","T12Magnetic","T8ElectronicHO","T8ElectronicStd","T5PRSElec",null,null,null,null,null,null,"Incan or Halogen","750 Watt Incandescent or Halogen Lamp","None",1,750,750]
["4. Controls for Existing LED Fixtures (Refer to Section 1 for Interior Controls)",null,null,null,null,null,null,null,null,null,null,null,null,null,null,null,null,"Interior",null,"Fixture replacing Fixture",null,null,null,null,"T8","T8","T8",null,null,"Magnetic","Electronic","Magnetic","Electronic HO","Fixture to Retrofit Kit","PRS Elec",null,null,null,null,"(1) U-Tube, T12 STD Lamp, STD Mag Ballast, 34 Watt Lamps","(1) U-Tube, T8 Standard ballast, 32 Watt Lamp","(1) U-Tube, T8 High Output Ballast, 32 Watt Lamp","(1) 24\" T12, STD Lamps, 20 Watt Lamps","(1) 24\", T8, High Output Ballast, 17 Watt Lamps","(1) 24\", T8, Std Elec Ballast, 17 Watt Lamps","(1) 22\" T-5 14W Lamp (1) Prog Start or PRS Ballast, HLO (.95<BF<1.1)",null,null,null,null,null,null,"Incan or Halogen","1000 Watt Incandescent or Halogen Lamp","None",1,1000,1000]
[null,null,null,null,null,null,null,null,null,null,null,null,null,null,null,null,null,"Interior 18 Hour",null,"Lamp replacing Lamp",null,null,null,null,"T12","T12","T12",null,null,null,"Electronic HO",null,"Electronic Std",null,null,null,null,null,null,"(1) U-Tube, T12 STD Lamp, STD Mag Ballast, 40 Watt Lamps","(2) U-Tube, T8 Standard ballast, 32 Watt Lamp","(2) U-Tube, T8 High Output Ballast, 32 Watt Lamp","(1) 36\" T12, STD  Lamps Mag-STD, 30 Watt Lamps","(1) 36\", T8, High Output Ballast, 25 Watt Lamps","(1) 36\", T8, Std Elec Ballast, 25 Watt Lamps","(1) 22\" T-5 24W HO Lamp (1) Prog Start or PRS Ballast, HLO (.95<BF<1)",null,null,null,null,null,null,"Incan or Halogen","1500 Watt Incandescent or Halogen Lamp","None",1,1500,1500]
[null,"Type of Retrofit",null,"Controlled Fixture",null,{"$f":"IF('Applicant Info'!$P$13=TRUE,\"Income Qualifier Bonus\",\"Total Incentive\")","v":"Total Incentive"},null,"Total Incentive",null,null,null,null,null,null,null,null,null,"Exterior/12 Hour",null,"Fixture to Retrofit Kit",null,null,null,null,"FUT8","FUT8","FUT8",null,null,null,null,null,null,null,null,null,null,null,null,"(2) U-Tube, T12 STD Lamp, STD Mag Ballast, 34 Watt Lamps",null,null,"(1) 48\" T12, ES Lamp, Magnetic Ballast-STD, 34 Watt Lamps","(1) 48\", T8,  High Output Ballast, 28 Watt Lamps","(1) 48\", T8, Std Ballast, 25 Watt Lamps","(1) 34\" T-5 21W Lamp (1) Prog Start or PRS Ballast, HLO (.95<BF<1.1)",null,null,null,null,null,null,"Incan or Halogen","2000 Watt Incandescent or Halogen Lamp","None",1,2000,2000]
[null,null,null,"Incentive","Watts Reduced",null,null,null,null,null,null,null,null,null,null,null,{"$f":"+H121","v":0},"24 Hour/Garage/3-Shift",null,null,null,null,null,null,"FUT12","FUT12","FUT12",null,null,null,null,null,null,null,null,null,null,null,null,"(2) U-Tube, T12 STD Lamp, STD Mag Ballast, 40 Watt Lamps",null,null,"(1) 48\" T12, STD Lamp, Magnetic Ballast-STD, 40 Watt Lamps","(1) 48\", T8, High Output Ballast, 25 Watt Lamps","(1) 48\", T8, Std Ballast, 28 Watt Lamps","(1) 34\" T-5 39W HO Lamp (1) Prog Start or PRS Ballast, HLO (.95<BF<1.1)",null,null,null,null,null,null,"Mercury Vapor","40 Watt MV Lamp","Magnetic",1,40,50]
[null,"Interior",null,"NA","NA","NA",null,"NA",null,null,null,null,null,null,null,null,null,null,null,null,null,null,null,null,null,null,null,null,null,null,null,null,null,null,null,null,null,null,null,null,null,null,"(1) 48\" T12, STD Lamp, Magnetic Ballast-STD, 40 Watt Lamps","(1) 48\", T8, High Output Ballast, 32 Watt Lamps","(1) 48\", T8, Std Ballast, 32 Watt Lamps","(1) 45.8\" T-5 28W Lamp (1) Prog Start or PRS Ballast, HLO (.95<BF<1.1)",null,null,null,null,null,null,"Mercury Vapor","50 Watt MV Lamp","Magnetic",1,50,74]
[null,"Interior 18 Hour",null,"NA","NA","NA",null,"NA",null,null,null,null,null,null,null,null,null,null,null,null,null,null,null,null,null,null,null,null,null,null,null,null,null,null,null,null,null,null,null,null,null,null,"(1) 48\" T12, HO Lamps, 60 Watt Lamps","(1) 96\", T8, High Output Ballast, 57 Watt Lamps","(1) 96\", T8 Std Ballast, 57 Watt Lamps","(1) 45.8\" T-5 54W HO Lamps (1) Prog RS Ballast, HLO(.95<BF<1.1)",null,null,null,null,null,null,"Mercury Vapor","75 Watt MV Lamp","Magnetic",1,75,93]
[null,"Exterior/12 Hour",null,0.42,{"$f":"SUMIFS($M$124:$M$138,$B$124:$B$138,$B119,$D$124:$D$138,D$115)","v":0},{"$f":"IF('Applicant Info'!$P$13=TRUE,D119*E119*0.1,D119*E119)","v":0},null,{"$f":"D119*E119+F119","v":0},null,null,null,null,null,null,null,null,null,null,null,null,null,null,null,null,null,null,null,null,null,null,null,null,null,null,null,null,null,null,null,null,null,null,"(1) 72\" T12, HO Lamps, 85 Watt Lamps","(1) 96\", T8, High Output Ballast, 59 Watt Lamps","(1) 96\", T8 Std Ballast, 59 Watt Lamps","(1) 57.6\" T-5 35W Lamp (1) Prog Start or PRS Ballast, HLO (.95<BF<1.1)",null,null,null,null,null,null,"Mercury Vapor","100 Watt MV Lamp","Magnetic",1,100,125]
[null,"24 Hour/Garage/3-Shift",null,0.53,{"$f":"SUMIFS($M$124:$M$138,$B$124:$B$138,$B120,$D$124:$D$138,D$115)","v":0},{"$f":"IF('Applicant Info'!$P$13=TRUE,D120*E120*0.1,D120*E120)","v":0},null,{"$f":"D120*E120+F120","v":0},null,null,null,null,null,null,null,null,null,null,null,null,null,null,null,null,null,null,null,null,null,null,null,null,null,null,null,null,null,null,null,null,null,null,"(1) 96\" T12, ES HO Lamps Mag-STD, 95 Watt Lamps","(1) 96\", T8, High Output Ballast, 86 Watt Lamps","(1) 96\", T8 Std Ballast, 86 Watt Lamps","(1) 57.6\" T-5 80W HO Lamp (1) Prog Start or PRS Ballast, HLO (.95<BF<1.1)",null,null,null,null,null,null,"Mercury Vapor","160 Watt MV self-ballasted Lamp","Magnetic",1,160,160]
[null,"Controls on Existing LED Fixtures",null,null,null,{"$f":"SUM(F117:G120)","v":0},null,{"$f":"SUM(H117:I120)","v":0},null,null,null,null,null,null,null,null,null,null,null,null,null,null,null,null,null,null,null,null,null,null,null,null,null,null,null,null,null,null,null,null,null,null,"(1) 96\" T12, ES Lamps Mag-STD, 60 Watt Lamps","(2) 24\", T8, High Output Ballast, 17 Watt Lamps","(2) 24\", T8, Std Elec Ballast, 17 Watt Lamps","(2) 22\" T-5 14W Lamps (1) Prog Start or PRS Ballast, HLO (.95<BF<1.1)",null,null,null,null,null,null,"Mercury Vapor","175 Watt MV Lamp","Magnetic",1,175,205]
["Controlled Existing LED Fixture with High and Low Settings",null,null,null,null,null,null,null,null,null,null,null,null,null,null,null,null,null,null,null,null,null,null,null,null,null,null,null,null,null,null,null,null,null,null,null,null,null,null,null,null,null,"(1) 96\" T12, STD HO Lamps Mag-STD, 110 Watt Lamps","(2) 36\", T8, High Output Ballast, 25 Watt Lamps","(2) 36\", T8, Std Elec Ballast, 25 Watt Lamps","(2) 22\" T-5 24W HO Lamps (1) Prog Start or PRS Ballast, HLO (.95<BF<1)",null,null,null,null,null,null,"Mercury Vapor","250 Watt MV Lamp","Magnetic",1,250,290]
["#","Measure Type","Retrofit Type","Fixture Type",null,"Sub Type",null,"Description (type in)",null,"Fixture Quantity","High Setting Wattage","Low Setting Wattage","Weighted Average Watts Reduced",null,null,null,null,null,null,null,null,null,null,null,null,null,null,null,null,null,null,null,null,null,null,null,null,null,null,null,null,null,"(1) 108\" T12 F108, HO Lamps, 124 Watt Lamps","(2) 48\", T8,  High Output Ballast, 28 Watt Lamps","(2) 48\", T8, Std Ballast, 25 Watt Lamps","(2) 34\" T-5 21W Lamps (1) Prog.Start or PRS Ballast HLO (.95<BF<1.1)",null,null,null,null,null,null,"Mercury Vapor","400 Watt MV Lamp","Magnetic",1,400,455]
[1,null,{"$f":"IFERROR(VLOOKUP($B124,$R$167:$U$169,3,FALSE),\"\")","v":""},{"$f":"IFERROR(VLOOKUP($B124,$R$167:$U$169,4,FALSE),\"\")","v":""},{"$f":"VLOOKUP($B124,$R$167:$U$169,3,FALSE)","v":{"$error":"#N/A"}},null,null,null,null,null,null,null,{"$f":"IF((IF($H124=\"\",\"\",(ROUND(((K124-L124)*0.85*J124),0))))=0,\"Missing Value\",(IF($H124=\"\",\"\",(ROUND(((K124-L124)*0.85*J124),0)))))","v":""},null,null,null,null,null,null,null,null,null,null,null,null,null,null,null,null,null,null,null,null,null,null,null,null,null,null,null,null,null,"(1) 114\" T12 F117, HO Lamps, 132 Watt Lamps","(2) 48\", T8, High Output Ballast, 25 Watt Lamps","(2) 48\", T8, Std Ballast, 28 Watt Lamps","(2) 34\" T-5 39W HO Lamps (1) Prog Start or PRS Ballast, HLO (.95<BF<1.1)",null,null,null,null,null,null,"Mercury Vapor","700 Watt MV Lamp","Magnetic",1,700,780]
[2,null,"","",{"$error":"#N/A"},null,null,null,null,null,null,null,{"$f":"IF((IF($H125=\"\",\"\",(ROUND(((K125-L125)*0.85*J125),0))))=0,\"Missing Value\",(IF($H125=\"\",\"\",(ROUND(((K125-L125)*0.85*J125),0)))))","v":""},null,null,null,null,null,null,null,null,null,null,null,null,null,null,null,null,null,null,null,null,null,null,null,null,null,null,null,null,null,"(2) 24\" T12, STD Lamps, 20 Watt Lamps","(2) 48\", T8, High Output Ballast, 32 Watt Lamps","(2) 48\", T8, Std Ballast, 32 Watt Lamps","(2) 45.8\" T-5 28W Lamps (1) Prog Start or PRS Ballast, HLO (.95<BF<1.1)",null,null,null,null,null,null,"Mercury Vapor","1000 Watt MV Lamp","Magnetic",1,1000,1075]
[3,null,"","",{"$error":"#N/A"},null,null,null,null,null,null,null,"",null,null,null,null,null,null,null,null,null,null,null,null,null,null,null,null,null,null,null,null,null,null,null,null,null,null,null,null,null,"(2) 36\" T12, STD  Lamps Mag-STD, 30 Watt Lamps","(2) 96\", T8, High Output Ballast, 57 Watt Lamps","(2) 96\", T8 Std Ballast, 57 Watt Lamps","(2) 45.8\" T-5 49W HO Lamps, (1) Prog Start or RS Ballast, HLO (.95<BF<1.1)",null,null,null,null,null,null,"Metal Halide","20 Watt MH Lamp, Electronic Ballast","Electronic",1,20,24]
[4,null,"","",{"$error":"#N/A"},null,null,null,null,null,null,null,"",null,null,null,null,null,null,null,null,null,null,null,null,null,null,null,null,null,null,null,null,null,null,null,null,null,null,null,null,null,"(2) 40\" T12 F42, HO Lamps, 55 Watt Lamps","(2) 96\", T8, High Output Ballast, 59 Watt Lamps","(2) 96\", T8 Std Ballast, 59 Watt Lamps","(2) 45.8\" T-5 54W HO Lamps (1) Prog RS Ballast, HLO (.95<BF<1.1)",null,null,null,null,null,null,"Metal Halide","22 Watt MH Lamp, Electronic Ballast","Electronic",1,22,26]
[5,null,"","",{"$error":"#N/A"},null,null,null,null,null,null,null,"",null,null,null,null,null,null,null,null,null,null,null,null,null,null,null,null,null,null,null,null,null,null,null,null,null,null,null,null,null,"(2) 48\" T12, ES Lamp, Magnetic Ballast-STD, 34 Watt Lamps","(2) 96\", T8, High Output Ballast, 86 Watt Lamps","(2) 96\", T8 Std Ballast, 86 Watt Lamps","(2) 57.6\" T-5 35W Lamps (1) Prog Start or PRS Ballast, HLO (.95<BF<1.1)",null,null,null,null,null,null,"Metal Halide","39 Watt MH Lamp, Electronic Ballast","Electronic",1,39,44]
[6,null,"","",{"$error":"#N/A"},null,null,null,null,null,null,null,"",null,null,null,null,null,null,null,null,null,null,null,null,null,null,null,null,null,null,null,null,null,null,null,null,null,null,null,null,null,"(2) 48\" T12, HO Lamps, 60 Watt Lamps","(3) 24\", T8, High Output Ballast, 17 Watt Lamps","(3) 24\", T8, Std Elec Ballast, 17 Watt Lamps","(2) 57.6\" T-5 80W HO Lamps (1) Prog Start or PRS Ballast, HLO (.95<BF<1.1)",null,null,null,null,null,null,"Metal Halide","50 Watt MH Lamp, Electronic Ballast","Electronic",1,50,56]
[7,null,"","",{"$error":"#N/A"},null,null,null,null,null,null,null,"",null,null,null,null,null,null,null,null,null,null,null,null,null,null,null,null,null,null,null,null,null,null,null,null,null,null,null,null,null,"(2) 48\" T12, STD Lamp, Magnetic Ballast-STD, 40 Watt Lamps","(3) 36\", T8, High Output Ballast, 25 Watt Lamps","(3) 36\", T8, Std Elec Ballast, 25 Watt Lamps","(3) 22\" T-5 14W Lamps (2) Prog Start or PRS Ballasts, HLO (.95<BF<1.1)",null,null,null,null,null,null,"Metal Halide","70 Watt MH Lamp, Electronic Ballast","Electronic",1,70,78]
[8,null,"","",{"$error":"#N/A"},null,null,null,null,null,null,null,"",null,null,null,null,null,null,null,null,null,null,null,"2. Fixture Type",null,null,null,null,"3. Ballast Type",null,null,null,null,null,null,null,null,null,null,null,null,"(2) 72\" T12, HO Lamps, 85 Watt Lamps","(3) 48\", T8,  High Output Ballast, 28 Watt Lamps","(3) 48\", T8, Std Ballast, 25 Watt Lamps","(3) 22\" T-5 24W HO Lamps (2) Prog Start or PRS Ballasts, HLO (.95<BF<1.1)",null,null,null,null,null,null,"Metal Halide","100 Watt MH Lamp, Electronic Ballast","Electronic",1,100,109]
[9,null,"","",{"$error":"#N/A"},null,null,null,null,null,null,null,"",null,null,null,null,null,null,null,null,null,null,null,"RTFixturereplacingFixture","RTLampreplacingLamp","RTFixturetoRetrofitKit",null,null,"RTLEDR","RTRetrofitKitR",null,null,null,null,null,null,null,null,null,null,null,"(2) 96\" T12, ES HO Lamps Mag-STD, 95 Watt Lamps","(3) 48\", T8, High Output Ballast, 25 Watt Lamps","(3) 48\", T8, Std Ballast, 28 Watt Lamps","(3) 34\" T-5 21W Lamps (2) Prog Start or PRS Ballasts, HLO (.95<BF<1.1)",null,null,null,null,null,null,"Metal Halide","150 Watt MH Lamp, Electronic Ballast","Electronic",1,150,163]
[10,null,"","",{"$error":"#N/A"},null,null,null,null,null,null,null,"",null,null,null,null,null,null,null,null,null,null,null,"LED","LED","Retrofit Kit",null,null,"Flood and Spot LEDs Over 20W","LED Retrofit Kit",null,null,null,null,null,null,null,null,null,null,null,"(2) 96\" T12, ES Lamps Mag-STD, 60 Watt Lamps","(3) 48\", T8, High Output Ballast, 32 Watt Lamps","(3) 48\", T8, Std Ballast, 32 Watt Lamps","(3) 34\" T-5 39W HO Lamps (2) Prog Start or PRS Ballasts, HLO (.95<BF<1.1)",null,null,null,null,null,null,"Metal Halide","175 Watt MH Lamp, Electronic Ballast","Electronic",1,175,191]
[11,null,"","",{"$error":"#N/A"},null,null,null,null,null,null,null,"",null,null,null,null,null,null,null,null,null,null,null,null,null,null,null,null,"Downlight Can Fixture Over 20W",null,null,null,null,null,null,null,null,null,null,null,null,"(2) 96\" T12, STD HO Lamps Mag-STD, 110 Watt Lamps","(3) 96\", T8, High Output Ballast, 57 Watt Lamps","(3) 96\", T8 Std Ballast, 57 Watt Lamps","(3) 45.8\" T-5 28W Lamps (2) Prog Start or PRS Ballasts, HLO(.95<BF<1.1)",null,null,null,null,null,null,"Metal Halide","200 Watt MH Lamp, Electronic Ballast","Electronic",1,200,216]
[12,null,"","",{"$error":"#N/A"},null,null,null,null,null,null,null,"",null,null,null,null,null,null,null,null,null,null,null,null,null,null,null,null,"Parking Garage LEDs",null,null,null,null,null,null,null,null,null,null,null,null,"(2) 108\" T12 F108, HO Lamps, 124 Watt Lamps","(3) 96\", T8, High Output Ballast, 59 Watt Lamps","(3) 96\", T8 Std Ballast, 59 Watt Lamps","(3) 45.8\" T-5 49W HO Lamps, (1) Prog Start or RS Ballast, HLO (.95<BF<1.1)",null,null,null,null,null,null,"Metal Halide","250 Watt MH Lamp, Electronic Ballast","Electronic",1,250,266]
[13,null,"","",{"$error":"#N/A"},null,null,null,null,null,null,null,"",null,null,null,null,null,null,null,null,null,null,null,null,null,null,null,null,"High-Bay LEDs ",null,null,null,null,null,null,null,null,null,null,null,null,"(2) 114\" T12 F117, HO Lamps, 132 Watt Lamps","(3) 96\", T8, High Output Ballast, 86 Watt Lamps","(3) 96\", T8 Std Ballast, 86 Watt Lamps","(3) 45.8\" T-5 54W HO Lamps, Prog RS (2) Ballast, HLO (.95<BF<1.1)",null,null,null,null,null,null,"Metal Halide","320 Watt MH Lamp, Electronic Ballast","Electronic",1,320,341]
[14,null,"","",{"$error":"#N/A"},null,null,null,null,null,null,null,"",null,null,null,null,null,null,null,null,null,null,null,null,null,null,null,null,"Low-Bay LEDs ",null,null,null,null,null,null,null,null,null,null,null,null,"(3) 24\" T12, STD Lamps, 20 Watt Lamps","(4) 24\", T8, High Output Ballast, 17 Watt Lamps","(4) 24\", T8, Std Elec Ballast, 17 Watt Lamps","(3) 57.6\" T-5 35W Lamps (2) Prog Start or PRS Ballasts, HLO (.95<BF<1.1)",null,null,null,null,null,null,"Metal Halide","350 Watt MH Lamp, Electronic Ballast","Electronic",1,350,371]
[15,null,"","",{"$error":"#N/A"},null,null,null,null,null,null,null,"",null,null,null,null,null,null,null,null,null,null,null,null,null,null,null,null,"Indoor Wall-Mounted Area LEDs",null,null,null,null,null,null,null,null,null,null,null,null,"(3) 36\" T12, STD  Lamps Mag-STD, 30 Watt Lamps","(4) 36\", T8, High Output Ballast, 25 Watt Lamps","(4) 36\", T8, Std Elec Ballast, 25 Watt Lamps","(4) 22\" T-5 14W Lamps (2) Prog Start or PRS Ballasts, HLO (.95<BF<1.1)",null,null,null,null,null,null,"Metal Halide","400 Watt MH Lamp, Electronic Ballast","Electronic",1,400,424]
["Subtotal Controls on LED Fixtures",null,null,null,null,null,null,null,null,null,null,null,{"$f":"IF(SUM(M124:N138)=0,\"\",SUM(M124:N138))","v":""},null,null,null,null,null,null,null,null,null,null,null,null,null,null,null,null,"Stairwell and Passageway LEDs",null,null,null,null,null,null,null,null,null,null,null,null,"(3) 48\" T12, ES Lamp, Magnetic Ballast-STD, 34 Watt Lamps","(4) 48\", T8,  High Output Ballast, 28 Watt Lamps","(4) 48\", T8, Std Ballast, 25 Watt Lamps","(4) 22\" T-5 24W HO Lamps (2) Prog Start or PRS Ballasts, HLO (.95<BF<1.1)",null,null,null,null,null,null,"Metal Halide","450 Watt MH Lamp, Electronic Ballast","Electronic",1,450,465]
[null,null,null,null,null,null,null,null,null,null,null,null,null,null,null,null,null,null,null,null,null,null,null,null,null,null,null,null,null,"Bollards",null,null,null,null,null,null,null,null,null,null,null,null,"(3) 48\" T12, STD Lamp, Magnetic Ballast-STD, 40 Watt Lamps","(4) 48\", T8, High Output Ballast, 25 Watt Lamps","(4) 48\", T8, Std Ballast, 28 Watt Lamps","(4) 34\" T-5 39W HO Lamps (2 )Prog.Start or PRS Ballasts, HLO (.95<BF<1.1)",null,null,null,null,null,null,"Metal Halide","32 Watt MH Lamp, Magnetic ballast","Magnetic",1,32,42]
[null,null,null,null,null,null,null,null,null,null,null,null,null,null,null,null,null,null,null,null,null,null,null,null,null,null,null,null,null,"Display Case LEDs",null,null,null,null,null,null,null,null,null,null,null,null,"(3) 96\" T12, ES HO Lamps Mag-STD, 95 Watt Lamps","(4) 48\", T8, High Output Ballast, 32 Watt Lamps","(4) 48\", T8, Std Ballast, 32 Watt Lamps","(4) 34\" T-5 39W Lamps (2) Prog Start or PRS Ballasts, HLO (.95<BF<1.1)",null,null,null,null,null,null,"Metal Halide","39 Watt MH Lamp, Magnetic ballast","Magnetic",1,39,56]
["IMPORTANT NOTICE: Only qualified LED lighting is eligible for a rebate. No fluorescent replacements are eligible for rebates.",null,null,null,null,null,null,null,null,null,null,null,null,null,null,null,null,null,null,null,null,null,null,null,null,null,null,null,null,"1x4 Luminaires",null,null,null,null,null,null,null,null,null,null,null,null,"(3) 96\" T12, ES Lamps Mag-STD, 60 Watt Lamps","(4) 96\", T8, High Output Ballast, 57 Watt Lamps","(4) 96\", T8 Std Ballast, 25 Watt Lamps","(4) 45.8\" T-5 28W Lamps (2) Prog Start or PRS Ballasts, HLO (.95<BF<1.1)",null,null,null,null,null,null,"Metal Halide","50 Watt MH Lamp, Magnetic ballast","Magnetic",1,50,67]
[null,null,null,null,null,null,null,null,null,null,null,null,null,null,null,null,null,null,null,null,null,null,null,null,null,null,null,null,null,"2x2 Luminaires",null,null,null,null,null,null,null,null,null,null,null,null,"(3) 96\" T12, STD HO Lamps Mag-STD, 110 Watt Lamps","(4) 96\", T8, High Output Ballast, 59 Watt Lamps","(4) 96\", T8 Std Ballast, 57 Watt Lamps","(4) 45.8\" T-5 49W HO Lamps, (2) Prog Start or RS Ballast, HLO (.95<BF<1.1)",null,null,null,null,null,null,"Metal Halide","70 Watt MH Lamp, Magnetic ballast","Magnetic",1,70,94]
["Lighting Scope of Work is REQUIRED for all lighting measures.",null,null,null,null,null,null,null,null,null,null,null,null,null,null,null,null,null,null,null,null,null,null,null,null,null,null,null,null,"2x4 Luminaires",null,null,null,null,null,null,null,null,null,null,null,null,"(4) 24\" T12, STD Lamps, 20 Watt Lamps","(4) 96\", T8, High Output Ballast, 86 Watt Lamps","(4) 96\", T8 Std Ballast, 59 Watt Lamps","(4) 45.8\" T-5 54W HO Lamps, (2) Prog RS Ballast, HLO (.95<BF<1.1)",null,null,null,null,null,null,"Metal Halide","100 Watt MH Lamp, Magnetic ballast","Magnetic",1,100,127]
[null,null,null,null,null,null,null,null,null,null,null,null,null,null,null,null,null,null,null,null,null,null,null,null,null,null,null,null,null,"1x8 Luminaires",null,null,null,null,null,null,null,null,null,null,null,null,"(4) 36\" T12, STD  Lamps Mag-STD, 30 Watt Lamps","(6) 48\", T8,  High Output Ballast, 28 Watt Lamps","(4) 96\", T8 Std Ballast, 86 Watt Lamps","(4) 45.8\" T-5 54W HO Lamps, (2) Prog RS Ballast, HLO (.95<BF<1.1), alt 1",null,null,null,null,null,null,"Metal Halide","125 Watt MH Lamp, Magnetic ballast","Magnetic",1,125,150]
["In no case will the program pay a rebate for lamps and retrofit kits that have been installed in fixtures with cracked, broken, or yellowed lenses.",null,null,null,null,null,null,null,null,null,null,null,null,null,null,null,null,null,null,null,null,null,null,null,null,null,null,null,null,null,null,null,null,null,null,null,null,null,null,null,null,null,"(4) 48\" T12, ES Lamp, Magnetic Ballast-STD, 34 Watt Lamps","(6) 48\", T8, High Output Ballast, 32 Watt Lamps","(6) 48\", T8, Std Ballast, 28 Watt Lamps","(5) 45.9\" T-5 54W Lamps (2) Prog.Start or PRS Ballasts, HLO (.95<BF<1.1)",null,null,null,null,null,null,"Metal Halide","150 Watt MH Lamp, Magnetic Ballast","Magnetic",1,150,184]
[null,null,null,null,null,null,null,null,null,null,null,null,null,null,null,null,null,null,null,null,null,null,null,null,null,null,null,null,null,null,null,null,null,null,null,null,null,null,null,null,null,null,"(4) 48\" T12, STD Lamp, Magnetic Ballast-STD, 40 Watt Lamps","(6) 96\", T8, High Output Ballast, 57 Watt Lamps","(6) 48\", T8, Std Ballast, 32 Watt Lamps","(6) 45.8\" T-5 54W HO Lamps (3) Prog RS Ballast, HLO(.95<BF<1.1)",null,null,null,null,null,null,"Metal Halide","175 Watt MH Lamp, Magnetic ballast","Magnetic",1,175,209]
[null,null,null,null,null,null,null,null,null,null,null,null,null,null,null,null,null,null,null,null,null,null,null,null,null,null,null,null,null,null,null,null,null,null,null,null,null,null,null,null,null,null,"(4) 96\" T12, ES HO Lamps Mag-STD, 95 Watt Lamps","(6) 96\", T8, High Output Ballast, 59 Watt Lamps","(6) 96\", T8 Std Ballast, 57 Watt Lamps","(6) 45.8\" T-5 54W HO Lamps (3) Prog RS Ballast, HLO(.95<BF<1.1), alt 1",null,null,null,null,null,null,"Metal Halide","200 Watt MH Lamp, Magnetic ballast","Magnetic",1,200,232]
[null,null,null,null,null,null,null,null,null,null,null,null,null,null,null,null,null,null,null,null,null,null,null,null,null,null,null,null,null,null,null,null,null,null,null,null,null,null,null,null,null,null,"(4) 96\" T12, ES Lamps Mag-STD, 60 Watt Lamps","(6) 96\", T8, High Output Ballast, 86 Watt Lamps","(6) 96\", T8 Std Ballast, 59 Watt Lamps","(6) 45.9\" T-5 49W HO Lamps, (3) Prog Start or RS Ballast, HLO (.95<BF<1.1)",null,null,null,null,null,null,"Metal Halide","250 Watt MH Lamp, Magnetic ballast","Magnetic",1,250,291]
[null,null,null,null,null,null,null,null,null,null,null,null,null,null,null,null,null,null,null,null,null,null,null,null,null,null,null,null,null,null,null,null,null,null,null,null,null,null,null,null,null,null,"(4) 96\" T12, STD HO Lamps Mag-STD, 110 Watt Lamps",null,"(6) 96\", T8 Std Ballast, 86 Watt Lamps","(8) 45.8\" T-5 49W HO Lamps, (4) Prog Start or RS Ballast, HLO(.95<BF<1.1)",null,null,null,null,null,null,"Metal Halide","320 Watt MH Lamp, Magnetic ballast","Magnetic",1,320,367]
[null,null,null,null,null,null,null,null,null,null,null,null,null,null,null,null,null,null,null,null,null,null,null,null,null,null,null,null,null,null,null,null,null,null,null,null,null,null,null,null,null,null,null,null,null,"(10) 45.8\" T-5 54W HO Lamps (5) Prog RS Ballast, HLO (.95<BF<1.1)",null,null,null,null,null,null,"Metal Halide","350 Watt MH Lamp, Magnetic ballast","Magnetic",1,350,395]
[null,null,null,null,null,null,null,null,null,null,null,null,null,null,null,null,null,null,null,null,null,null,null,null,null,null,null,null,null,null,null,null,null,null,null,null,null,null,null,null,null,null,null,null,null,"(12) 45.8\" T-5 54W HO Lamps (6) Prog RS Ballast, HLO (.95<BF<1.1)",null,null,null,null,null,null,"Metal Halide","360 Watt MH Lamp, Magnetic ballast","Magnetic",1,360,418]
[null,null,null,null,null,null,null,null,null,null,null,null,null,null,null,null,null,null,null,null,null,null,null,null,null,null,null,null,null,null,null,null,null,null,null,null,null,null,null,null,null,null,null,null,null,null,null,null,null,null,null,null,"Metal Halide","400 Watt MH Lamp, Magnetic ballast","Magnetic",1,400,456]
[null,null,null,null,null,null,null,null,null,null,null,null,null,null,null,null,null,null,null,null,null,null,null,null,null,null,null,null,null,null,null,null,null,null,null,null,null,null,null,null,null,null,null,null,null,null,null,null,null,null,null,null,"Metal Halide","450 Watt MH Lamp, Magnetic ballast","Magnetic",1,450,507]
[null,null,null,null,null,null,null,null,null,null,null,null,null,null,null,null,null,null,null,null,null,null,null,null,null,null,null,null,null,null,null,null,null,null,null,null,null,null,null,null,null,null,null,null,null,null,null,null,null,null,null,null,"Metal Halide","750 Watt MH Lamp, Magnetic ballast","Magnetic",1,750,814]
[null,null,null,null,null,null,null,null,null,null,null,null,null,null,null,null,null,null,null,null,null,null,null,null,null,null,null,null,null,null,null,null,null,null,null,null,null,null,null,null,null,null,null,null,null,null,null,null,null,null,null,null,"Metal Halide","1000 Watt MH Lamp, Magnetic ballast","Magnetic",1,1000,1077]
[null,null,null,null,null,null,null,null,null,null,null,null,null,null,null,null,null,null,null,null,null,null,null,null,null,null,null,null,null,null,null,null,null,null,null,null,null,null,null,null,null,null,null,null,null,null,null,null,null,null,null,null,"Metal Halide","1500 Watt MH Lamp, Magnetic ballast","Magnetic",1,1500,1608]
[null,null,null,null,null,null,null,null,null,null,null,null,null,null,null,null,null,null,null,null,null,null,null,null,null,null,null,null,null,null,null,null,null,null,null,null,null,null,null,null,null,null,null,null,null,null,null,null,null,null,null,null,"T8","(1) 24\", T8, Std Elec Ballast, 17 Watt Lamps","Electronic Std",1,17,16]
[null,null,null,null,null,null,null,null,null,null,null,null,null,null,null,null,null,null,null,null,null,null,null,null,null,null,null,null,null,null,null,null,null,null,null,null,null,null,null,null,null,null,null,null,null,null,null,null,null,null,null,null,"T8","(1) 24\", T8, High Output Ballast, 17 Watt Lamps","Electronic HO",1,17,20]
[null,null,null,null,null,null,null,null,null,null,null,null,null,null,null,null,null,null,null,null,null,null,null,null,null,null,null,null,null,null,null,null,null,null,null,null,null,null,null,null,null,null,null,null,null,null,null,null,null,null,null,null,"T8","(1) 36\", T8, Std Elec Ballast, 25 Watt Lamps","Electronic Std",1,25,23]
[null,null,null,null,null,null,null,null,null,null,null,null,null,null,null,null,null,null,null,null,null,null,null,null,null,null,null,null,null,null,null,null,null,null,null,null,null,null,null,null,null,null,null,null,null,null,null,null,null,null,null,null,"T8","(1) 36\", T8, High Output Ballast, 25 Watt Lamps","Electronic HO",1,25,28]
[null,null,null,null,null,null,null,null,null,null,null,null,null,null,null,null,null,null,null,null,null,null,null,null,null,null,null,null,null,null,null,null,null,null,null,null,null,null,null,null,null,null,null,null,null,null,null,null,null,null,null,null,"T8","(1) 48\", T8, Std Ballast, 25 Watt Lamps","Electronic Std",1,25,23]
[null,null,null,null,null,null,null,null,null,null,null,null,null,null,null,null,null,null,null,null,null,null,null,null,null,null,null,null,null,null,null,null,null,null,null,null,null,null,null,null,null,null,null,null,null,null,null,null,null,null,null,null,"T8","(1) 48\", T8, High Output Ballast, 25 Watt Lamps","Electronic HO",1,25,28]
[null,null,null,null,null,null,null,null,null,null,null,null,null,null,null,null,null,null,null,null,null,null,null,null,null,null,null,null,null,null,null,null,null,null,null,null,null,null,null,null,null,null,null,null,null,null,null,null,null,null,null,null,"T8","(1) 48\", T8, Std Ballast, 28 Watt Lamps","Electronic Std",1,28,25]
[null,null,null,null,null,null,null,null,null,null,null,null,null,null,null,null,null,null,null,null,null,null,null,null,null,null,null,null,null,null,null,null,null,null,null,null,null,null,null,null,null,null,null,null,null,null,null,null,null,null,null,null,"T8","(1) 48\", T8,  High Output Ballast, 28 Watt Lamps","Electronic HO",1,28,32]
[null,null,null,null,null,null,null,null,null,null,null,null,null,null,null,null,null,null,"2. Fixture Type",null,null,null,null,null,null,null,null,null,null,null,null,null,null,null,null,null,null,null,null,null,null,null,null,null,null,null,null,null,null,null,null,null,"T8","(1) 48\", T8, Std Ballast, 32 Watt Lamps","Electronic Std",1,32,30]
[null,null,null,null,null,null,null,null,null,null,null,null,null,null,null,null,null,"CMeasureType",null,"Retrofit Type","Fixture Type",null,null,null,null,null,null,null,null,null,null,null,null,null,null,null,null,null,null,null,null,null,null,null,null,null,null,null,null,null,null,null,"T8","(1) 48\", T8, High Output Ballast, 32 Watt Lamps","Electronic HO",1,32,36]
[null,null,null,null,null,null,null,null,null,null,null,null,null,null,null,null,null,"Exterior/12 Hour",null,"LED","Controlled Fixture",null,null,null,null,null,null,null,null,null,null,null,null,null,null,null,null,null,null,null,null,null,null,null,null,null,null,null,null,null,null,null,"T8","(1) 96\", T8 Std Ballast, 57 Watt Lamps","Electronic Std",1,57,52]
[null,null,null,null,null,null,null,null,null,null,null,null,null,null,null,null,null,"24 Hour/Garage/3-Shift",null,"LED","Controlled Fixture",null,null,null,null,null,null,null,null,null,null,null,null,null,null,null,null,null,null,null,null,null,null,null,null,null,null,null,null,null,null,null,"T8","(1) 96\", T8, High Output Ballast, 57 Watt Lamps","Electronic HO",1,57,59]
[null,null,null,null,null,null,null,null,null,null,null,null,null,null,null,null,null,null,null,null,null,null,null,null,null,null,null,null,null,null,null,null,null,null,null,null,null,null,null,null,null,null,null,null,null,null,null,null,null,null,null,null,"T8","(1) 96\", T8 Std Ballast, 59 Watt Lamps","Electronic Std",1,59,55]
[null,null,null,null,null,null,null,null,null,null,null,null,null,null,null,null,null,null,null,null,null,null,null,null,null,null,null,null,null,null,null,null,null,null,null,null,null,null,null,null,null,null,null,null,null,null,null,null,null,null,null,null,"T8","(1) 96\", T8, High Output Ballast, 59 Watt Lamps","Electronic HO",1,59,62]
[null,null,null,null,null,null,null,null,null,null,null,null,null,null,null,null,null,null,null,null,null,null,null,null,null,null,null,null,null,null,null,null,null,null,null,null,null,null,null,null,null,null,null,null,null,null,null,null,null,null,null,null,"T8","(1) 96\", T8 Std Ballast, 86 Watt Lamps","Electronic Std",1,86,82]
[null,null,null,null,null,null,null,null,null,null,null,null,null,null,null,null,null,null,null,null,null,null,null,null,null,null,null,null,null,null,null,null,null,null,null,null,null,null,null,null,null,null,null,null,null,null,null,null,null,null,null,null,"T8","(1) 96\", T8, High Output Ballast, 86 Watt Lamps","Electronic HO",1,86,90]
[null,null,null,null,null,null,null,null,null,null,null,null,null,null,null,null,null,null,null,null,null,null,null,null,null,null,null,null,null,null,null,null,null,null,null,null,null,null,null,null,null,null,null,null,null,null,null,null,null,null,null,null,"T8","(2) 24\", T8, Std Elec Ballast, 17 Watt Lamps","Electronic Std",2,17,32]
[null,null,null,null,null,null,null,null,null,null,null,null,null,null,null,null,null,null,null,null,null,null,null,null,null,null,null,null,null,null,null,null,null,null,null,null,null,null,null,null,null,null,null,null,null,null,null,null,null,null,null,null,"T8","(2) 24\", T8, High Output Ballast, 17 Watt Lamps","Electronic HO",2,17,40]
[null,null,null,null,null,null,null,null,null,null,null,null,null,null,null,null,null,null,null,null,null,null,null,null,null,null,null,null,null,null,null,null,null,null,null,null,null,null,null,null,null,null,null,null,null,null,null,null,null,null,null,null,"T8","(2) 36\", T8, Std Elec Ballast, 25 Watt Lamps","Electronic Std",2,25,46]
[null,null,null,null,null,null,null,null,null,null,null,null,null,null,null,null,null,null,null,null,null,null,null,null,null,null,null,null,null,null,null,null,null,null,null,null,null,null,null,null,null,null,null,null,null,null,null,null,null,null,null,null,"T8","(2) 36\", T8, High Output Ballast, 25 Watt Lamps","Electronic HO",2,25,56]
[null,null,null,null,null,null,null,null,null,null,null,null,null,null,null,null,null,null,null,null,null,null,null,null,null,null,null,null,null,null,null,null,null,null,null,null,null,null,null,null,null,null,null,null,null,null,null,null,null,null,null,null,"T8","(2) 48\", T8, Std Ballast, 25 Watt Lamps","Electronic Std",2,25,46]
[null,null,null,null,null,null,null,null,null,null,null,null,null,null,null,null,null,null,null,null,null,null,null,null,null,null,null,null,null,null,null,null,null,null,null,null,null,null,null,null,null,null,null,null,null,null,null,null,null,null,null,null,"T8","(2) 48\", T8, High Output Ballast, 25 Watt Lamps","Electronic HO",2,25,56]
[null,null,null,null,null,null,null,null,null,null,null,null,null,null,null,null,null,null,null,null,null,null,null,null,null,null,null,null,null,null,null,null,null,null,null,null,null,null,null,null,null,null,null,null,null,null,null,null,null,null,null,null,"T8","(2) 48\", T8, Std Ballast, 28 Watt Lamps","Electronic Std",2,28,50]
[null,null,null,null,null,null,null,null,null,null,null,null,null,null,null,null,null,null,null,null,null,null,null,null,null,null,null,null,null,null,null,null,null,null,null,null,null,null,null,null,null,null,null,null,null,null,null,null,null,null,null,null,"T8","(2) 48\", T8,  High Output Ballast, 28 Watt Lamps","Electronic HO",2,28,64]
[null,null,null,null,null,null,null,null,null,null,null,null,null,null,null,null,null,null,null,null,null,null,null,null,null,null,null,null,null,null,null,null,null,null,null,null,null,null,null,null,null,null,null,null,null,null,null,null,null,null,null,null,"T8","(2) 48\", T8, Std Ballast, 32 Watt Lamps","Electronic Std",2,32,60]
[null,null,null,null,null,null,null,null,null,null,null,null,null,null,null,null,null,null,null,null,null,null,null,null,null,null,null,null,null,null,null,null,null,null,null,null,null,null,null,null,null,null,null,null,null,null,null,null,null,null,null,null,"T8","(2) 48\", T8, High Output Ballast, 32 Watt Lamps","Electronic HO",2,32,72]
[null,null,null,null,null,null,null,null,null,null,null,null,null,null,null,null,null,null,null,null,null,null,null,null,null,null,null,null,null,null,null,null,null,null,null,null,null,null,null,null,null,null,null,null,null,null,null,null,null,null,null,null,"T8","(2) 96\", T8 Std Ballast, 57 Watt Lamps","Electronic Std",2,57,100]
[null,null,null,null,null,null,null,null,null,null,null,null,null,null,null,null,null,null,null,null,null,null,null,null,null,null,null,null,null,null,null,null,null,null,null,null,null,null,null,null,null,null,null,null,null,null,null,null,null,null,null,null,"T8","(2) 96\", T8, High Output Ballast, 57 Watt Lamps","Electronic HO",2,57,105]
[null,null,null,null,null,null,null,null,null,null,null,null,null,null,null,null,null,null,null,null,null,null,null,null,null,null,null,null,null,null,null,null,null,null,null,null,null,null,null,null,null,null,null,null,null,null,null,null,null,null,null,null,"T8","(2) 96\", T8 Std Ballast, 59 Watt Lamps","Electronic Std",2,59,109]
[null,null,null,null,null,null,null,null,null,null,null,null,null,null,null,null,null,null,null,null,null,null,null,null,null,null,null,null,null,null,null,null,null,null,null,null,null,null,null,null,null,null,null,null,null,null,null,null,null,null,null,null,"T8","(2) 96\", T8, High Output Ballast, 59 Watt Lamps","Electronic HO",2,59,160]
[null,null,null,null,null,null,null,null,null,null,null,null,null,null,null,null,null,null,null,null,null,null,null,null,null,null,null,null,null,null,null,null,null,null,null,null,null,null,null,null,null,null,null,null,null,null,null,null,null,null,null,null,"T8","(2) 96\", T8 Std Ballast, 86 Watt Lamps","Electronic Std",2,86,164]
[null,null,null,null,null,null,null,null,null,null,null,null,null,null,null,null,null,null,null,null,null,null,null,null,null,null,null,null,null,null,null,null,null,null,null,null,null,null,null,null,null,null,null,null,null,null,null,null,null,null,null,null,"T8","(2) 96\", T8, High Output Ballast, 86 Watt Lamps","Electronic HO",2,86,180]
[null,null,null,null,null,null,null,null,null,null,null,null,null,null,null,null,null,null,null,null,null,null,null,null,null,null,null,null,null,null,null,null,null,null,null,null,null,null,null,null,null,null,null,null,null,null,null,null,null,null,null,null,"T8","(3) 24\", T8, Std Elec Ballast, 17 Watt Lamps","Electronic Std",3,17,48]
[null,null,null,null,null,null,null,null,null,null,null,null,null,null,null,null,null,null,null,null,null,null,null,null,null,null,null,null,null,null,null,null,null,null,null,null,null,null,null,null,null,null,null,null,null,null,null,null,null,null,null,null,"T8","(3) 24\", T8, High Output Ballast, 17 Watt Lamps","Electronic HO",3,17,60]
[null,null,null,null,null,null,null,null,null,null,null,null,null,null,null,null,null,null,null,null,null,null,null,null,null,null,null,null,null,null,null,null,null,null,null,null,null,null,null,null,null,null,null,null,null,null,null,null,null,null,null,null,"T8","(3) 36\", T8, Std Elec Ballast, 25 Watt Lamps","Electronic Std",3,25,69]
[null,null,null,null,null,null,null,null,null,null,null,null,null,null,null,null,null,null,null,null,null,null,null,null,null,null,null,null,null,null,null,null,null,null,null,null,null,null,null,null,null,null,null,null,null,null,null,null,null,null,null,null,"T8","(3) 36\", T8, High Output Ballast, 25 Watt Lamps","Electronic HO",3,25,84]
[null,null,null,null,null,null,null,null,null,null,null,null,null,null,null,null,null,null,null,null,null,null,null,null,null,null,null,null,null,null,null,null,null,null,null,null,null,null,null,null,null,null,null,null,null,null,null,null,null,null,null,null,"T8","(3) 48\", T8, Std Ballast, 25 Watt Lamps","Electronic Std",3,25,69]
[null,null,null,null,null,null,null,null,null,null,null,null,null,null,null,null,null,null,null,null,null,null,null,null,null,null,null,null,null,null,null,null,null,null,null,null,null,null,null,null,null,null,null,null,null,null,null,null,null,null,null,null,"T8","(3) 48\", T8, High Output Ballast, 25 Watt Lamps","Electronic HO",3,25,84]
[null,null,null,null,null,null,null,null,null,null,null,null,null,null,null,null,null,null,null,null,null,null,null,null,null,null,null,null,null,null,null,null,null,null,null,null,null,null,null,null,null,null,null,null,null,null,null,null,null,null,null,null,"T8","(3) 48\", T8, Std Ballast, 28 Watt Lamps","Electronic Std",3,28,75]
[null,null,null,null,null,null,null,null,null,null,null,null,null,null,null,null,null,null,null,null,null,null,null,null,null,null,null,null,null,null,null,null,null,null,null,null,null,null,null,null,null,null,null,null,null,null,null,null,null,null,null,null,"T8","(3) 48\", T8,  High Output Ballast, 28 Watt Lamps","Electronic HO",3,28,96]
[null,null,null,null,null,null,null,null,null,null,null,null,null,null,null,null,null,null,null,null,null,null,null,null,null,null,null,null,null,null,null,null,null,null,null,null,null,null,null,null,null,null,null,null,null,null,null,null,null,null,null,null,"T8","(3) 48\", T8, Std Ballast, 32 Watt Lamps","Electronic Std",3,32,90]
[null,null,null,null,null,null,null,null,null,null,null,null,null,null,null,null,null,null,null,null,null,null,null,null,null,null,null,null,null,null,null,null,null,null,null,null,null,null,null,null,null,null,null,null,null,null,null,null,null,null,null,null,"T8","(3) 48\", T8, High Output Ballast, 32 Watt Lamps","Electronic HO",3,32,108]
[null,null,null,null,null,null,null,null,null,null,null,null,null,null,null,null,null,null,null,null,null,null,null,null,null,null,null,null,null,null,null,null,null,null,null,null,null,null,null,null,null,null,null,null,null,null,null,null,null,null,null,null,"T8","(3) 96\", T8 Std Ballast, 57 Watt Lamps","Electronic Std",3,57,156]
[null,null,null,null,null,null,null,null,null,null,null,null,null,null,null,null,null,null,null,null,null,null,null,null,null,null,null,null,null,null,null,null,null,null,null,null,null,null,null,null,null,null,null,null,null,null,null,null,null,null,null,null,"T8","(3) 96\", T8, High Output Ballast, 57 Watt Lamps","Electronic HO",3,57,177]
[null,null,null,null,null,null,null,null,null,null,null,null,null,null,null,null,null,null,null,null,null,null,null,null,null,null,null,null,null,null,null,null,null,null,null,null,null,null,null,null,null,null,null,null,null,null,null,null,null,null,null,null,"T8","(3) 96\", T8 Std Ballast, 59 Watt Lamps","Electronic Std",3,59,165]
[null,null,null,null,null,null,null,null,null,null,null,null,null,null,null,null,null,null,null,null,null,null,null,null,null,null,null,null,null,null,null,null,null,null,null,null,null,null,null,null,null,null,null,null,null,null,null,null,null,null,null,null,"T8","(3) 96\", T8, High Output Ballast, 59 Watt Lamps","Electronic HO",3,59,186]
[null,null,null,null,null,null,null,null,null,null,null,null,null,null,null,null,null,null,null,null,null,null,null,null,null,null,null,null,null,null,null,null,null,null,null,null,null,null,null,null,null,null,null,null,null,null,null,null,null,null,null,null,"T8","(3) 96\", T8 Std Ballast, 86 Watt Lamps","Electronic Std",3,86,246]
[null,null,null,null,null,null,null,null,null,null,null,null,null,null,null,null,null,null,null,null,null,null,null,null,null,null,null,null,null,null,null,null,null,null,null,null,null,null,null,null,null,null,null,null,null,null,null,null,null,null,null,null,"T8","(3) 96\", T8, High Output Ballast, 86 Watt Lamps","Electronic HO",3,86,270]
[null,null,null,null,null,null,null,null,null,null,null,null,null,null,null,null,null,null,null,null,null,null,null,null,null,null,null,null,null,null,null,null,null,null,null,null,null,null,null,null,null,null,null,null,null,null,null,null,null,null,null,null,"T8","(4) 24\", T8, Std Elec Ballast, 17 Watt Lamps","Electronic Std",4,17,64]
[null,null,null,null,null,null,null,null,null,null,null,null,null,null,null,null,null,null,null,null,null,null,null,null,null,null,null,null,null,null,null,null,null,null,null,null,null,null,null,null,null,null,null,null,null,null,null,null,null,null,null,null,"T8","(4) 24\", T8, High Output Ballast, 17 Watt Lamps","Electronic HO",4,17,80]
[null,null,null,null,null,null,null,null,null,null,null,null,null,null,null,null,null,null,null,null,null,null,null,null,null,null,null,null,null,null,null,null,null,null,null,null,null,null,null,null,null,null,null,null,null,null,null,null,null,null,null,null,"T8","(4) 36\", T8, Std Elec Ballast, 25 Watt Lamps","Electronic Std",4,25,92]
[null,null,null,null,null,null,null,null,null,null,null,null,null,null,null,null,null,null,null,null,null,null,null,null,null,null,null,null,null,null,null,null,null,null,null,null,null,null,null,null,null,null,null,null,null,null,null,null,null,null,null,null,"T8","(4) 36\", T8, High Output Ballast, 25 Watt Lamps","Electronic HO",4,25,112]
[null,null,null,null,null,null,null,null,null,null,null,null,null,null,null,null,null,null,null,null,null,null,null,null,null,null,null,null,null,null,null,null,null,null,null,null,null,null,null,null,null,null,null,null,null,null,null,null,null,null,null,null,"T8","(4) 48\", T8, Std Ballast, 25 Watt Lamps","Electronic Std",4,25,138]
[null,null,null,null,null,null,null,null,null,null,null,null,null,null,null,null,null,null,null,null,null,null,null,null,null,null,null,null,null,null,null,null,null,null,null,null,null,null,null,null,null,null,null,null,null,null,null,null,null,null,null,null,"T8","(4) 48\", T8, High Output Ballast, 25 Watt Lamps","Electronic HO",4,25,112]
[null,null,null,null,null,null,null,null,null,null,null,null,null,null,null,null,null,null,null,null,null,null,null,null,null,null,null,null,null,null,null,null,null,null,null,null,null,null,null,null,null,null,null,null,null,null,null,null,null,null,null,null,"T8","(4) 48\", T8, Std Ballast, 28 Watt Lamps","Electronic Std",4,28,100]
[null,null,null,null,null,null,null,null,null,null,null,null,null,null,null,null,null,null,null,null,null,null,null,null,null,null,null,null,null,null,null,null,null,null,null,null,null,null,null,null,null,null,null,null,null,null,null,null,null,null,null,null,"T8","(4) 48\", T8,  High Output Ballast, 28 Watt Lamps","Electronic HO",4,28,128]
[null,null,null,null,null,null,null,null,null,null,null,null,null,null,null,null,null,null,null,null,null,null,null,null,null,null,null,null,null,null,null,null,null,null,null,null,null,null,null,null,null,null,null,null,null,null,null,null,null,null,null,null,"T8","(4) 48\", T8, Std Ballast, 32 Watt Lamps","Electronic Std",4,32,120]
[null,null,null,null,null,null,null,null,null,null,null,null,null,null,null,null,null,null,null,null,null,null,null,null,null,null,null,null,null,null,null,null,null,null,null,null,null,null,null,null,null,null,null,null,null,null,null,null,null,null,null,null,"T8","(4) 48\", T8, High Output Ballast, 32 Watt Lamps","Electronic HO",4,32,144]
[null,null,null,null,null,null,null,null,null,null,null,null,null,null,null,null,null,null,null,null,null,null,null,null,null,null,null,null,null,null,null,null,null,null,null,null,null,null,null,null,null,null,null,null,null,null,null,null,null,null,null,null,"T8","(4) 96\", T8 Std Ballast, 25 Watt Lamps","Electronic Std",4,25,138]
[null,null,null,null,null,null,null,null,null,null,null,null,null,null,null,null,null,null,null,null,null,null,null,null,null,null,null,null,null,null,null,null,null,null,null,null,null,null,null,null,null,null,null,null,null,null,null,null,null,null,null,null,"T8","(4) 96\", T8 Std Ballast, 57 Watt Lamps","Electronic Std",4,57,208]
[null,null,null,null,null,null,null,null,null,null,null,null,null,null,null,null,null,null,null,null,null,null,null,null,null,null,null,null,null,null,null,null,null,null,null,null,null,null,null,null,null,null,null,null,null,null,null,null,null,null,null,null,"T8","(4) 96\", T8, High Output Ballast, 57 Watt Lamps","Electronic HO",4,57,236]
[null,null,null,null,null,null,null,null,null,null,null,null,null,null,null,null,null,null,null,null,null,null,null,null,null,null,null,null,null,null,null,null,null,null,null,null,null,null,null,null,null,null,null,null,null,null,null,null,null,null,null,null,"T8","(4) 96\", T8 Std Ballast, 59 Watt Lamps","Electronic Std",4,59,220]
[null,null,null,null,null,null,null,null,null,null,null,null,null,null,null,null,null,null,null,null,null,null,null,null,null,null,null,null,null,null,null,null,null,null,null,null,null,null,null,null,null,null,null,null,null,null,null,null,null,null,null,null,"T8","(4) 96\", T8, High Output Ballast, 59 Watt Lamps","Electronic HO",4,59,248]
[null,null,null,null,null,null,null,null,null,null,null,null,null,null,null,null,null,null,null,null,null,null,null,null,null,null,null,null,null,null,null,null,null,null,null,null,null,null,null,null,null,null,null,null,null,null,null,null,null,null,null,null,"T8","(4) 96\", T8 Std Ballast, 86 Watt Lamps","Electronic Std",4,86,328]
[null,null,null,null,null,null,null,null,null,null,null,null,null,null,null,null,null,null,null,null,null,null,null,null,null,null,null,null,null,null,null,null,null,null,null,null,null,null,null,null,null,null,null,null,null,null,null,null,null,null,null,null,"T8","(4) 96\", T8, High Output Ballast, 86 Watt Lamps","Electronic HO",4,86,360]
[null,null,null,null,null,null,null,null,null,null,null,null,null,null,null,null,null,null,null,null,null,null,null,null,null,null,null,null,null,null,null,null,null,null,null,null,null,null,null,null,null,null,null,null,null,null,null,null,null,null,null,null,"T8","(6) 48\", T8, Std Ballast, 28 Watt Lamps","Electronic Std",6,28,150]
[null,null,null,null,null,null,null,null,null,null,null,null,null,null,null,null,null,null,null,null,null,null,null,null,null,null,null,null,null,null,null,null,null,null,null,null,null,null,null,null,null,null,null,null,null,null,null,null,null,null,null,null,"T8","(6) 48\", T8,  High Output Ballast, 28 Watt Lamps","Electronic HO",6,28,192]
[null,null,null,null,null,null,null,null,null,null,null,null,null,null,null,null,null,null,null,null,null,null,null,null,null,null,null,null,null,null,null,null,null,null,null,null,null,null,null,null,null,null,null,null,null,null,null,null,null,null,null,null,"T8","(6) 48\", T8, Std Ballast, 32 Watt Lamps","Electronic Std",6,32,180]
[null,null,null,null,null,null,null,null,null,null,null,null,null,null,null,null,null,null,null,null,null,null,null,null,null,null,null,null,null,null,null,null,null,null,null,null,null,null,null,null,null,null,null,null,null,null,null,null,null,null,null,null,"T8","(6) 48\", T8, High Output Ballast, 32 Watt Lamps","Electronic HO",6,32,216]
[null,null,null,null,null,null,null,null,null,null,null,null,null,null,null,null,null,null,null,null,null,null,null,null,null,null,null,null,null,null,null,null,null,null,null,null,null,null,null,null,null,null,null,null,null,null,null,null,null,null,null,null,"T8","(6) 96\", T8 Std Ballast, 57 Watt Lamps","Electronic Std",6,57,312]
[null,null,null,null,null,null,null,null,null,null,null,null,null,null,null,null,null,null,null,null,null,null,null,null,null,null,null,null,null,null,null,null,null,null,null,null,null,null,null,null,null,null,null,null,null,null,null,null,null,null,null,null,"T8","(6) 96\", T8, High Output Ballast, 57 Watt Lamps","Electronic HO",6,57,354]
[null,null,null,null,null,null,null,null,null,null,null,null,null,null,null,null,null,null,null,null,null,null,null,null,null,null,null,null,null,null,null,null,null,null,null,null,null,null,null,null,null,null,null,null,null,null,null,null,null,null,null,null,"T8","(6) 96\", T8 Std Ballast, 59 Watt Lamps","Electronic Std",6,59,330]
[null,null,null,null,null,null,null,null,null,null,null,null,null,null,null,null,null,null,null,null,null,null,null,null,null,null,null,null,null,null,null,null,null,null,null,null,null,null,null,null,null,null,null,null,null,null,null,null,null,null,null,null,"T8","(6) 96\", T8, High Output Ballast, 59 Watt Lamps","Electronic HO",6,59,372]
[null,null,null,null,null,null,null,null,null,null,null,null,null,null,null,null,null,null,null,null,null,null,null,null,null,null,null,null,null,null,null,null,null,null,null,null,null,null,null,null,null,null,null,null,null,null,null,null,null,null,null,null,"T8","(6) 96\", T8 Std Ballast, 86 Watt Lamps","Electronic Std",6,86,492]
[null,null,null,null,null,null,null,null,null,null,null,null,null,null,null,null,null,null,null,null,null,null,null,null,null,null,null,null,null,null,null,null,null,null,null,null,null,null,null,null,null,null,null,null,null,null,null,null,null,null,null,null,"T8","(6) 96\", T8, High Output Ballast, 86 Watt Lamps","Electronic HO",6,86,540]
[null,null,null,null,null,null,null,null,null,null,null,null,null,null,null,null,null,null,null,null,null,null,null,null,null,null,null,null,null,null,null,null,null,null,null,null,null,null,null,null,null,null,null,null,null,null,null,null,null,null,null,null,"FUT8","(1) U-Tube, T8 Standard ballast, 32 Watt Lamp","Electronic",1,32,30]
[null,null,null,null,null,null,null,null,null,null,null,null,null,null,null,null,null,null,null,null,null,null,null,null,null,null,null,null,null,null,null,null,null,null,null,null,null,null,null,null,null,null,null,null,null,null,null,null,null,null,null,null,"FUT8","(1) U-Tube, T8 High Output Ballast, 32 Watt Lamp","Electronic HO",1,32,36]
[null,null,null,null,null,null,null,null,null,null,null,null,null,null,null,null,null,null,null,null,null,null,null,null,null,null,null,null,null,null,null,null,null,null,null,null,null,null,null,null,null,null,null,null,null,null,null,null,null,null,null,null,"FUT8","(2) U-Tube, T8 Standard ballast, 32 Watt Lamp","Electronic",2,32,60]
[null,null,null,null,null,null,null,null,null,null,null,null,null,null,null,null,null,null,null,null,null,null,null,null,null,null,null,null,null,null,null,null,null,null,null,null,null,null,null,null,null,null,null,null,null,null,null,null,null,null,null,null,"FUT8","(2) U-Tube, T8 High Output Ballast, 32 Watt Lamp","Electronic HO",2,32,72]
[null,null,null,null,null,null,null,null,null,null,null,null,null,null,null,null,null,null,null,null,null,null,null,null,null,null,null,null,null,null,null,null,null,null,null,null,null,null,null,null,null,null,null,null,null,null,null,null,null,null,null,null,"T12","(1) 24\" T12, STD Lamps, 20 Watt Lamps","Magnetic",1,20,25]
[null,null,null,null,null,null,null,null,null,null,null,null,null,null,null,null,null,null,null,null,null,null,null,null,null,null,null,null,null,null,null,null,null,null,null,null,null,null,null,null,null,null,null,null,null,null,null,null,null,null,null,null,"T12","(1) 36\" T12, STD  Lamps Mag-STD, 30 Watt Lamps","Magnetic",1,30,38]
[null,null,null,null,null,null,null,null,null,null,null,null,null,null,null,null,null,null,null,null,null,null,null,null,null,null,null,null,null,null,null,null,null,null,null,null,null,null,null,null,null,null,null,null,null,null,null,null,null,null,null,null,"T12","(1) 40\" T12 F42, HO Lamps, 55 Watt Lamps","Magnetic",1,55,63]
[null,null,null,null,null,null,null,null,null,null,null,null,null,null,null,null,null,null,null,null,null,null,null,null,null,null,null,null,null,null,null,null,null,null,null,null,null,null,null,null,null,null,null,null,null,null,null,null,null,null,null,null,"T12","(1) 48\" T12, ES Lamp, Magnetic Ballast-STD, 34 Watt Lamps","Magnetic",1,34,42]
[null,null,null,null,null,null,null,null,null,null,null,null,null,null,null,null,null,null,null,null,null,null,null,null,null,null,null,null,null,null,null,null,null,null,null,null,null,null,null,null,null,null,null,null,null,null,null,null,null,null,null,null,"T12","(1) 48\" T12, STD Lamp, Magnetic Ballast-STD, 40 Watt Lamps","Magnetic",1,40,48]
[null,null,null,null,null,null,null,null,null,null,null,null,null,null,null,null,null,null,null,null,null,null,null,null,null,null,null,null,null,null,null,null,null,null,null,null,null,null,null,null,null,null,null,null,null,null,null,null,null,null,null,null,"T12","(1) 48\" T12, HO Lamps, 60 Watt Lamps","Magnetic",1,60,68]
[null,null,null,null,null,null,null,null,null,null,null,null,null,null,null,null,null,null,null,null,null,null,null,null,null,null,null,null,null,null,null,null,null,null,null,null,null,null,null,null,null,null,null,null,null,null,null,null,null,null,null,null,"T12","(1) 72\" T12, HO Lamps, 85 Watt Lamps","Magnetic",1,85,102]
[null,null,null,null,null,null,null,null,null,null,null,null,null,null,null,null,null,null,null,null,null,null,null,null,null,null,null,null,null,null,null,null,null,null,null,null,null,null,null,null,null,null,null,null,null,null,null,null,null,null,null,null,"T12","(1) 96\" T12, ES Lamps Mag-STD, 60 Watt Lamps","Magnetic",1,60,75]
[null,null,null,null,null,null,null,null,null,null,null,null,null,null,null,null,null,null,null,null,null,null,null,null,null,null,null,null,null,null,null,null,null,null,null,null,null,null,null,null,null,null,null,null,null,null,null,null,null,null,null,null,"T12","(1) 96\" T12, ES HO Lamps Mag-STD, 95 Watt Lamps","Magnetic",1,95,120]
[null,null,null,null,null,null,null,null,null,null,null,null,null,null,null,null,null,null,null,null,null,null,null,null,null,null,null,null,null,null,null,null,null,null,null,null,null,null,null,null,null,null,null,null,null,null,null,null,null,null,null,null,"T12","(1) 96\" T12, STD HO Lamps Mag-STD, 110 Watt Lamps","Magnetic",1,110,138]
[null,null,null,null,null,null,null,null,null,null,null,null,null,null,null,null,null,null,null,null,null,null,null,null,null,null,null,null,null,null,null,null,null,null,null,null,null,null,null,null,null,null,null,null,null,null,null,null,null,null,null,null,"T12","(1) 108\" T12 F108, HO Lamps, 124 Watt Lamps","Magnetic",1,124,132]
[null,null,null,null,null,null,null,null,null,null,null,null,null,null,null,null,null,null,null,null,null,null,null,null,null,null,null,null,null,null,null,null,null,null,null,null,null,null,null,null,null,null,null,null,null,null,null,null,null,null,null,null,"T12","(1) 114\" T12 F117, HO Lamps, 132 Watt Lamps","Magnetic",1,132,140]
[null,null,null,null,null,null,null,null,null,null,null,null,null,null,null,null,null,null,null,null,null,null,null,null,null,null,null,null,null,null,null,null,null,null,null,null,null,null,null,null,null,null,null,null,null,null,null,null,null,null,null,null,"FUT12","(1) U-Tube, T12 STD Lamp, STD Mag Ballast, 34 Watt Lamps","Magnetic",1,34,42]
[null,null,null,null,null,null,null,null,null,null,null,null,null,null,null,null,null,null,null,null,null,null,null,null,null,null,null,null,null,null,null,null,null,null,null,null,null,null,null,null,null,null,null,null,null,null,null,null,null,null,null,null,"FUT12","(1) U-Tube, T12 STD Lamp, STD Mag Ballast, 40 Watt Lamps","Magnetic",1,40,48]
[null,null,null,null,null,null,null,null,null,null,null,null,null,null,null,null,null,null,null,null,null,null,null,null,null,null,null,null,null,null,null,null,null,null,null,null,null,null,null,null,null,null,null,null,null,null,null,null,null,null,null,null,"T12","(2) 24\" T12, STD Lamps, 20 Watt Lamps","Magnetic",2,20,50]
[null,null,null,null,null,null,null,null,null,null,null,null,null,null,null,null,null,null,null,null,null,null,null,null,null,null,null,null,null,null,null,null,null,null,null,null,null,null,null,null,null,null,null,null,null,null,null,null,null,null,null,null,"T12","(2) 36\" T12, STD  Lamps Mag-STD, 30 Watt Lamps","Magnetic",2,30,76]
[null,null,null,null,null,null,null,null,null,null,null,null,null,null,null,null,null,null,null,null,null,null,null,null,null,null,null,null,null,null,null,null,null,null,null,null,null,null,null,null,null,null,null,null,null,null,null,null,null,null,null,null,"T12","(2) 40\" T12 F42, HO Lamps, 55 Watt Lamps","Magnetic",1,55,126]
[null,null,null,null,null,null,null,null,null,null,null,null,null,null,null,null,null,null,null,null,null,null,null,null,null,null,null,null,null,null,null,null,null,null,null,null,null,null,null,null,null,null,null,null,null,null,null,null,null,null,null,null,"T12","(2) 48\" T12, ES Lamp, Magnetic Ballast-STD, 34 Watt Lamps","Magnetic",2,34,84]
[null,null,null,null,null,null,null,null,null,null,null,null,null,null,null,null,null,null,null,null,null,null,null,null,null,null,null,null,null,null,null,null,null,null,null,null,null,null,null,null,null,null,null,null,null,null,null,null,null,null,null,null,"T12","(2) 48\" T12, STD Lamp, Magnetic Ballast-STD, 40 Watt Lamps","Magnetic",2,40,96]
[null,null,null,null,null,null,null,null,null,null,null,null,null,null,null,null,null,null,null,null,null,null,null,null,null,null,null,null,null,null,null,null,null,null,null,null,null,null,null,null,null,null,null,null,null,null,null,null,null,null,null,null,"T12","(2) 48\" T12, HO Lamps, 60 Watt Lamps",null,2,60,136]
[null,null,null,null,null,null,null,null,null,null,null,null,null,null,null,null,null,null,null,null,null,null,null,null,null,null,null,null,null,null,null,null,null,null,null,null,null,null,null,null,null,null,null,null,null,null,null,null,null,null,null,null,"T12","(2) 72\" T12, HO Lamps, 85 Watt Lamps","Magnetic",2,85,204]
[null,null,null,null,null,null,null,null,null,null,null,null,null,null,null,null,null,null,null,null,null,null,null,null,null,null,null,null,null,null,null,null,null,null,null,null,null,null,null,null,null,null,null,null,null,null,null,null,null,null,null,null,"T12","(2) 96\" T12, ES Lamps Mag-STD, 60 Watt Lamps","Magnetic",2,60,150]
[null,null,null,null,null,null,null,null,null,null,null,null,null,null,null,null,null,null,null,null,null,null,null,null,null,null,null,null,null,null,null,null,null,null,null,null,null,null,null,null,null,null,null,null,null,null,null,null,null,null,null,null,"T12","(2) 96\" T12, ES HO Lamps Mag-STD, 95 Watt Lamps","Magnetic",2,95,240]
[null,null,null,null,null,null,null,null,null,null,null,null,null,null,null,null,null,null,null,null,null,null,null,null,null,null,null,null,null,null,null,null,null,null,null,null,null,null,null,null,null,null,null,null,null,null,null,null,null,null,null,null,"T12","(2) 96\" T12, STD HO Lamps Mag-STD, 110 Watt Lamps","Magnetic",2,110,276]
[null,null,null,null,null,null,null,null,null,null,null,null,null,null,null,null,null,null,null,null,null,null,null,null,null,null,null,null,null,null,null,null,null,null,null,null,null,null,null,null,null,null,null,null,null,null,null,null,null,null,null,null,"T12","(2) 108\" T12 F108, HO Lamps, 124 Watt Lamps","Magnetic",2,124,264]
[null,null,null,null,null,null,null,null,null,null,null,null,null,null,null,null,null,null,null,null,null,null,null,null,null,null,null,null,null,null,null,null,null,null,null,null,null,null,null,null,null,null,null,null,null,null,null,null,null,null,null,null,"T12","(2) 114\" T12 F117, HO Lamps, 132 Watt Lamps","Magnetic",2,132,280]
[null,null,null,null,null,null,null,null,null,null,null,null,null,null,null,null,null,null,null,null,null,null,null,null,null,null,null,null,null,null,null,null,null,null,null,null,null,null,null,null,null,null,null,null,null,null,null,null,null,null,null,null,"FUT12","(2) U-Tube, T12 STD Lamp, STD Mag Ballast, 34 Watt Lamps","Magnetic",2,34,84]
[null,null,null,null,null,null,null,null,null,null,null,null,null,null,null,null,null,null,null,null,null,null,null,null,null,null,null,null,null,null,null,null,null,null,null,null,null,null,null,null,null,null,null,null,null,null,null,null,null,null,null,null,"FUT12","(2) U-Tube, T12 STD Lamp, STD Mag Ballast, 40 Watt Lamps","Magnetic",2,40,96]
[null,null,null,null,null,null,null,null,null,null,null,null,null,null,null,null,null,null,null,null,null,null,null,null,null,null,null,null,null,null,null,null,null,null,null,null,null,null,null,null,null,null,null,null,null,null,null,null,null,null,null,null,"T12","(3) 24\" T12, STD Lamps, 20 Watt Lamps","Magnetic",3,20,75]
[null,null,null,null,null,null,null,null,null,null,null,null,null,null,null,null,null,null,null,null,null,null,null,null,null,null,null,null,null,null,null,null,null,null,null,null,null,null,null,null,null,null,null,null,null,null,null,null,null,null,null,null,"T12","(3) 36\" T12, STD  Lamps Mag-STD, 30 Watt Lamps","Magnetic",3,30,114]
[null,null,null,null,null,null,null,null,null,null,null,null,null,null,null,null,null,null,null,null,null,null,null,null,null,null,null,null,null,null,null,null,null,null,null,null,null,null,null,null,null,null,null,null,null,null,null,null,null,null,null,null,"T12","(3) 48\" T12, ES Lamp, Magnetic Ballast-STD, 34 Watt Lamps","Magnetic",3,34,126]
[null,null,null,null,null,null,null,null,null,null,null,null,null,null,null,null,null,null,null,null,null,null,null,null,null,null,null,null,null,null,null,null,null,null,null,null,null,null,null,null,null,null,null,null,null,null,null,null,null,null,null,null,"T12","(3) 48\" T12, STD Lamp, Magnetic Ballast-STD, 40 Watt Lamps","Magnetic",3,40,144]
[null,null,null,null,null,null,null,null,null,null,null,null,null,null,null,null,null,null,null,null,null,null,null,null,null,null,null,null,null,null,null,null,null,null,null,null,null,null,null,null,null,null,null,null,null,null,null,null,null,null,null,null,"T12","(3) 96\" T12, ES Lamps Mag-STD, 60 Watt Lamps","Magnetic",3,60,225]
[null,null,null,null,null,null,null,null,null,null,null,null,null,null,null,null,null,null,null,null,null,null,null,null,null,null,null,null,null,null,null,null,null,null,null,null,null,null,null,null,null,null,null,null,null,null,null,null,null,null,null,null,"T12","(3) 96\" T12, ES HO Lamps Mag-STD, 95 Watt Lamps","Magnetic",3,95,360]
[null,null,null,null,null,null,null,null,null,null,null,null,null,null,null,null,null,null,null,null,null,null,null,null,null,null,null,null,null,null,null,null,null,null,null,null,null,null,null,null,null,null,null,null,null,null,null,null,null,null,null,null,"T12","(3) 96\" T12, STD HO Lamps Mag-STD, 110 Watt Lamps","Magnetic",3,110,414]
[null,null,null,null,null,null,null,null,null,null,null,null,null,null,null,null,null,null,null,null,null,null,null,null,null,null,null,null,null,null,null,null,null,null,null,null,null,null,null,null,null,null,null,null,null,null,null,null,null,null,null,null,"T12","(4) 24\" T12, STD Lamps, 20 Watt Lamps","Magnetic",4,20,100]
[null,null,null,null,null,null,null,null,null,null,null,null,null,null,null,null,null,null,null,null,null,null,null,null,null,null,null,null,null,null,null,null,null,null,null,null,null,null,null,null,null,null,null,null,null,null,null,null,null,null,null,null,"T12","(4) 36\" T12, STD  Lamps Mag-STD, 30 Watt Lamps","Magnetic",4,30,152]
[null,null,null,null,null,null,null,null,null,null,null,null,null,null,null,null,null,null,null,null,null,null,null,null,null,null,null,null,null,null,null,null,null,null,null,null,null,null,null,null,null,null,null,null,null,null,null,null,null,null,null,null,"T12","(4) 48\" T12, ES Lamp, Magnetic Ballast-STD, 34 Watt Lamps","Magnetic",4,34,168]
[null,null,null,null,null,null,null,null,null,null,null,null,null,null,null,null,null,null,null,null,null,null,null,null,null,null,null,null,null,null,null,null,null,null,null,null,null,null,null,null,null,null,null,null,null,null,null,null,null,null,null,null,"T12","(4) 48\" T12, STD Lamp, Magnetic Ballast-STD, 40 Watt Lamps","Magnetic",4,40,192]
[null,null,null,null,null,null,null,null,null,null,null,null,null,null,null,null,null,null,null,null,null,null,null,null,null,null,null,null,null,null,null,null,null,null,null,null,null,null,null,null,null,null,null,null,null,null,null,null,null,null,null,null,"T12","(4) 96\" T12, ES Lamps Mag-STD, 60 Watt Lamps","Magnetic",4,60,300]
[null,null,null,null,null,null,null,null,null,null,null,null,null,null,null,null,null,null,null,null,null,null,null,null,null,null,null,null,null,null,null,null,null,null,null,null,null,null,null,null,null,null,null,null,null,null,null,null,null,null,null,null,"T12","(4) 96\" T12, ES HO Lamps Mag-STD, 95 Watt Lamps","Magnetic",4,95,480]
[null,null,null,null,null,null,null,null,null,null,null,null,null,null,null,null,null,null,null,null,null,null,null,null,null,null,null,null,null,null,null,null,null,null,null,null,null,null,null,null,null,null,null,null,null,null,null,null,null,null,null,null,"T12","(4) 96\" T12, STD HO Lamps Mag-STD, 110 Watt Lamps","PRS Elec",4,110,552]
[null,null,null,null,null,null,null,null,null,null,null,null,null,null,null,null,null,null,null,null,null,null,null,null,null,null,null,null,null,null,null,null,null,null,null,null,null,null,null,null,null,null,null,null,null,null,null,null,null,null,null,null,"T5","(1) 22\" T-5 14W Lamp (1) Prog Start or PRS Ballast, HLO (.95<BF<1.1)","PRS Elec",1,14,18]
[null,null,null,null,null,null,null,null,null,null,null,null,null,null,null,null,null,null,null,null,null,null,null,null,null,null,null,null,null,null,null,null,null,null,null,null,null,null,null,null,null,null,null,null,null,null,null,null,null,null,null,null,"T5","(1) 22\" T-5 24W HO Lamp (1) Prog Start or PRS Ballast, HLO (.95<BF<1)","PRS Elec",1,24,27]
[null,null,null,null,null,null,null,null,null,null,null,null,null,null,null,null,null,null,null,null,null,null,null,null,null,null,null,null,null,null,null,null,null,null,null,null,null,null,null,null,null,null,null,null,null,null,null,null,null,null,null,null,"T5","(1) 34\" T-5 21W Lamp (1) Prog Start or PRS Ballast, HLO (.95<BF<1.1)","PRS Elec",1,21,25]
[null,null,null,null,null,null,null,null,null,null,null,null,null,null,null,null,null,null,null,null,null,null,null,null,null,null,null,null,null,null,null,null,null,null,null,null,null,null,null,null,null,null,null,null,null,null,null,null,null,null,null,null,"T5","(1) 34\" T-5 39W HO Lamp (1) Prog Start or PRS Ballast, HLO (.95<BF<1.1)","PRS Elec",1,39,44]
[null,null,null,null,null,null,null,null,null,null,null,null,null,null,null,null,null,null,null,null,null,null,null,null,null,null,null,null,null,null,null,null,null,null,null,null,null,null,null,null,null,null,null,null,null,null,null,null,null,null,null,null,"T5","(1) 45.8\" T-5 28W Lamp (1) Prog Start or PRS Ballast, HLO (.95<BF<1.1)","PRS Elec",1,28,33]
[null,null,null,null,null,null,null,null,null,null,null,null,null,null,null,null,null,null,null,null,null,null,null,null,null,null,null,null,null,null,null,null,null,null,null,null,null,null,null,null,null,null,null,null,null,null,null,null,null,null,null,null,"T5","(1) 45.8\" T-5 54W HO Lamps (1) Prog RS Ballast, HLO(.95<BF<1.1)","PRS Elec",1,54,62]
[null,null,null,null,null,null,null,null,null,null,null,null,null,null,null,null,null,null,null,null,null,null,null,null,null,null,null,null,null,null,null,null,null,null,null,null,null,null,null,null,null,null,null,null,null,null,null,null,null,null,null,null,"T5","(1) 57.6\" T-5 35W Lamp (1) Prog Start or PRS Ballast, HLO (.95<BF<1.1)","PRS Elec",1,35,40]
[null,null,null,null,null,null,null,null,null,null,null,null,null,null,null,null,null,null,null,null,null,null,null,null,null,null,null,null,null,null,null,null,null,null,null,null,null,null,null,null,null,null,null,null,null,null,null,null,null,null,null,null,"T5","(1) 57.6\" T-5 80W HO Lamp (1) Prog Start or PRS Ballast, HLO (.95<BF<1.1)","PRS Elec",1,80,90]
[null,null,null,null,null,null,null,null,null,null,null,null,null,null,null,null,null,null,null,null,null,null,null,null,null,null,null,null,null,null,null,null,null,null,null,null,null,null,null,null,null,null,null,null,null,null,null,null,null,null,null,null,"T5","(2) 22\" T-5 14W Lamps (1) Prog Start or PRS Ballast, HLO (.95<BF<1.1)","PRS Elec",2,14,33]
[null,null,null,null,null,null,null,null,null,null,null,null,null,null,null,null,null,null,null,null,null,null,null,null,null,null,null,null,null,null,null,null,null,null,null,null,null,null,null,null,null,null,null,null,null,null,null,null,null,null,null,null,"T5","(2) 22\" T-5 24W HO Lamps (1) Prog Start or PRS Ballast, HLO (.95<BF<1)","PRS Elec",2,24,52]
[null,null,null,null,null,null,null,null,null,null,null,null,null,null,null,null,null,null,null,null,null,null,null,null,null,null,null,null,null,null,null,null,null,null,null,null,null,null,null,null,null,null,null,null,null,null,null,null,null,null,null,null,"T5","(2) 34\" T-5 21W Lamps (1) Prog.Start or PRS Ballast HLO (.95<BF<1.1)","PRS Elec",2,21,48]
[null,null,null,null,null,null,null,null,null,null,null,null,null,null,null,null,null,null,null,null,null,null,null,null,null,null,null,null,null,null,null,null,null,null,null,null,null,null,null,null,null,null,null,null,null,null,null,null,null,null,null,null,"T5","(2) 34\" T-5 39W HO Lamps (1) Prog Start or PRS Ballast, HLO (.95<BF<1.1)","PRS Elec",2,39,86]
[null,null,null,null,null,null,null,null,null,null,null,null,null,null,null,null,null,null,null,null,null,null,null,null,null,null,null,null,null,null,null,null,null,null,null,null,null,null,null,null,null,null,null,null,null,null,null,null,null,null,null,null,"T5","(2) 45.8\" T-5 28W Lamps (1) Prog Start or PRS Ballast, HLO (.95<BF<1.1)","PRS Elec",2,28,63]
[null,null,null,null,null,null,null,null,null,null,null,null,null,null,null,null,null,null,null,null,null,null,null,null,null,null,null,null,null,null,null,null,null,null,null,null,null,null,null,null,null,null,null,null,null,null,null,null,null,null,null,null,"T5","(2) 45.8\" T-5 49W HO Lamps, (1) Prog Start or RS Ballast, HLO (.95<BF<1.1)","PRS Elec",2,49,98]
[null,null,null,null,null,null,null,null,null,null,null,null,null,null,null,null,null,null,null,null,null,null,null,null,null,null,null,null,null,null,null,null,null,null,null,null,null,null,null,null,null,null,null,null,null,null,null,null,null,null,null,null,"T5","(2) 45.8\" T-5 54W HO Lamps (1) Prog RS Ballast, HLO (.95<BF<1.1)","PRS Elec",2,54,117]
[null,null,null,null,null,null,null,null,null,null,null,null,null,null,null,null,null,null,null,null,null,null,null,null,null,null,null,null,null,null,null,null,null,null,null,null,null,null,null,null,null,null,null,null,null,null,null,null,null,null,null,null,"T5","(2) 57.6\" T-5 35W Lamps (1) Prog Start or PRS Ballast, HLO (.95<BF<1.1)","PRS Elec",2,35,78]
[null,null,null,null,null,null,null,null,null,null,null,null,null,null,null,null,null,null,null,null,null,null,null,null,null,null,null,null,null,null,null,null,null,null,null,null,null,null,null,null,null,null,null,null,null,null,null,null,null,null,null,null,"T5","(2) 57.6\" T-5 80W HO Lamps (1) Prog Start or PRS Ballast, HLO (.95<BF<1.1)","PRS Elec",2,80,180]
[null,null,null,null,null,null,null,null,null,null,null,null,null,null,null,null,null,null,null,null,null,null,null,null,null,null,null,null,null,null,null,null,null,null,null,null,null,null,null,null,null,null,null,null,null,null,null,null,null,null,null,null,"T5","(3) 22\" T-5 14W Lamps (2) Prog Start or PRS Ballasts, HLO (.95<BF<1.1)","PRS Elec",3,14,51]
[null,null,null,null,null,null,null,null,null,null,null,null,null,null,null,null,null,null,null,null,null,null,null,null,null,null,null,null,null,null,null,null,null,null,null,null,null,null,null,null,null,null,null,null,null,null,null,null,null,null,null,null,"T5","(3) 22\" T-5 24W HO Lamps (2) Prog Start or PRS Ballasts, HLO (.95<BF<1.1)","PRS Elec",3,24,79]
[null,null,null,null,null,null,null,null,null,null,null,null,null,null,null,null,null,null,null,null,null,null,null,null,null,null,null,null,null,null,null,null,null,null,null,null,null,null,null,null,null,null,null,null,null,null,null,null,null,null,null,null,"T5","(3) 34\" T-5 21W Lamps (2) Prog Start or PRS Ballasts, HLO (.95<BF<1.1)","PRS Elec",3,21,73]
[null,null,null,null,null,null,null,null,null,null,null,null,null,null,null,null,null,null,null,null,null,null,null,null,null,null,null,null,null,null,null,null,null,null,null,null,null,null,null,null,null,null,null,null,null,null,null,null,null,null,null,null,"T5","(3) 34\" T-5 39W HO Lamps (2) Prog Start or PRS Ballasts, HLO (.95<BF<1.1)","PRS Elec",3,39,130]
[null,null,null,null,null,null,null,null,null,null,null,null,null,null,null,null,null,null,null,null,null,null,null,null,null,null,null,null,null,null,null,null,null,null,null,null,null,null,null,null,null,null,null,null,null,null,null,null,null,null,null,null,"T5","(3) 45.8\" T-5 28W Lamps (2) Prog Start or PRS Ballasts, HLO(.95<BF<1.1)","PRS Elec",3,28,96]
[null,null,null,null,null,null,null,null,null,null,null,null,null,null,null,null,null,null,null,null,null,null,null,null,null,null,null,null,null,null,null,null,null,null,null,null,null,null,null,null,null,null,null,null,null,null,null,null,null,null,null,null,"T5","(3) 45.8\" T-5 49W HO Lamps, (1) Prog Start or RS Ballast, HLO (.95<BF<1.1)","PRS Elec",3,49,147]
[null,null,null,null,null,null,null,null,null,null,null,null,null,null,null,null,null,null,null,null,null,null,null,null,null,null,null,null,null,null,null,null,null,null,null,null,null,null,null,null,null,null,null,null,null,null,null,null,null,null,null,null,"T5","(3) 45.8\" T-5 54W HO Lamps, Prog RS (2) Ballast, HLO (.95<BF<1.1)","PRS Elec",3,54,179]
[null,null,null,null,null,null,null,null,null,null,null,null,null,null,null,null,null,null,null,null,null,null,null,null,null,null,null,null,null,null,null,null,null,null,null,null,null,null,null,null,null,null,null,null,null,null,null,null,null,null,null,null,"T5","(3) 57.6\" T-5 35W Lamps (2) Prog Start or PRS Ballasts, HLO (.95<BF<1.1)","PRS Elec",3,35,118]
[null,null,null,null,null,null,null,null,null,null,null,null,null,null,null,null,null,null,null,null,null,null,null,null,null,null,null,null,null,null,null,null,null,null,null,null,null,null,null,null,null,null,null,null,null,null,null,null,null,null,null,null,"T5","(4) 22\" T-5 14W Lamps (2) Prog Start or PRS Ballasts, HLO (.95<BF<1.1)","PRS Elec",4,14,66]
[null,null,null,null,null,null,null,null,null,null,null,null,null,null,null,null,null,null,null,null,null,null,null,null,null,null,null,null,null,null,null,null,null,null,null,null,null,null,null,null,null,null,null,null,null,null,null,null,null,null,null,null,"T5","(4) 22\" T-5 24W HO Lamps (2) Prog Start or PRS Ballasts, HLO (.95<BF<1.1)","PRS Elec",4,24,104]
[null,null,null,null,null,null,null,null,null,null,null,null,null,null,null,null,null,null,null,null,null,null,null,null,null,null,null,null,null,null,null,null,null,null,null,null,null,null,null,null,null,null,null,null,null,null,null,null,null,null,null,null,"T5","(4) 34\" T-5 39W HO Lamps (2 )Prog.Start or PRS Ballasts, HLO (.95<BF<1.1)","PRS Elec",4,39,172]
[null,null,null,null,null,null,null,null,null,null,null,null,null,null,null,null,null,null,null,null,null,null,null,null,null,null,null,null,null,null,null,null,null,null,null,null,null,null,null,null,null,null,null,null,null,null,null,null,null,null,null,null,"T5","(4) 34\" T-5 39W Lamps (2) Prog Start or PRS Ballasts, HLO (.95<BF<1.1)","PRS Elec",4,21,96]
[null,null,null,null,null,null,null,null,null,null,null,null,null,null,null,null,null,null,null,null,null,null,null,null,null,null,null,null,null,null,null,null,null,null,null,null,null,null,null,null,null,null,null,null,null,null,null,null,null,null,null,null,"T5","(4) 45.8\" T-5 28W Lamps (2) Prog Start or PRS Ballasts, HLO (.95<BF<1.1)","PRS Elec",4,28,126]
[null,null,null,null,null,null,null,null,null,null,null,null,null,null,null,null,null,null,null,null,null,null,null,null,null,null,null,null,null,null,null,null,null,null,null,null,null,null,null,null,null,null,null,null,null,null,null,null,null,null,null,null,"T5","(4) 45.8\" T-5 49W HO Lamps, (2) Prog Start or RS Ballast, HLO (.95<BF<1.1)","PRS Elec",4,49,196]
[null,null,null,null,null,null,null,null,null,null,null,null,null,null,null,null,null,null,null,null,null,null,null,null,null,null,null,null,null,null,null,null,null,null,null,null,null,null,null,null,null,null,null,null,null,null,null,null,null,null,null,null,"T5","(4) 45.8\" T-5 54W HO Lamps, (2) Prog RS Ballast, HLO (.95<BF<1.1)","PRS Elec",4,54,234]
[null,null,null,null,null,null,null,null,null,null,null,null,null,null,null,null,null,null,null,null,null,null,null,null,null,null,null,null,null,null,null,null,null,null,null,null,null,null,null,null,null,null,null,null,null,null,null,null,null,null,null,null,"T5","(4) 45.8\" T-5 54W HO Lamps, (2) Prog RS Ballast, HLO (.95<BF<1.1), alt 1","PRS Elec",4,54,220]
[null,null,null,null,null,null,null,null,null,null,null,null,null,null,null,null,null,null,null,null,null,null,null,null,null,null,null,null,null,null,null,null,null,null,null,null,null,null,null,null,null,null,null,null,null,null,null,null,null,null,null,null,"T5","(5) 45.9\" T-5 54W Lamps (2) Prog.Start or PRS Ballasts, HLO (.95<BF<1.1)","PRS Elec",5,54,296]
[null,null,null,null,null,null,null,null,null,null,null,null,null,null,null,null,null,null,null,null,null,null,null,null,null,null,null,null,null,null,null,null,null,null,null,null,null,null,null,null,null,null,null,null,null,null,null,null,null,null,null,null,"T5","(6) 45.8\" T-5 54W HO Lamps (3) Prog RS Ballast, HLO(.95<BF<1.1)","PRS Elec",6,54,351]
[null,null,null,null,null,null,null,null,null,null,null,null,null,null,null,null,null,null,null,null,null,null,null,null,null,null,null,null,null,null,null,null,null,null,null,null,null,null,null,null,null,null,null,null,null,null,null,null,null,null,null,null,"T5","(6) 45.8\" T-5 54W HO Lamps (3) Prog RS Ballast, HLO(.95<BF<1.1), alt 1","PRS Elec",6,54,354]
[null,null,null,null,null,null,null,null,null,null,null,null,null,null,null,null,null,null,null,null,null,null,null,null,null,null,null,null,null,null,null,null,null,null,null,null,null,null,null,null,null,null,null,null,null,null,null,null,null,null,null,null,"T5","(6) 45.9\" T-5 49W HO Lamps, (3) Prog Start or RS Ballast, HLO (.95<BF<1.1)","PRS Elec",6,49,294]
[null,null,null,null,null,null,null,null,null,null,null,null,null,null,null,null,null,null,null,null,null,null,null,null,null,null,null,null,null,null,null,null,null,null,null,null,null,null,null,null,null,null,null,null,null,null,null,null,null,null,null,null,"T5","(8) 45.8\" T-5 49W HO Lamps, (4) Prog Start or RS Ballast, HLO(.95<BF<1.1)","PRS Elec",8,49,392]
[null,null,null,null,null,null,null,null,null,null,null,null,null,null,null,null,null,null,null,null,null,null,null,null,null,null,null,null,null,null,null,null,null,null,null,null,null,null,null,null,null,null,null,null,null,null,null,null,null,null,null,null,"T5","(10) 45.8\" T-5 54W HO Lamps (5) Prog RS Ballast, HLO (.95<BF<1.1)","PRS Elec",10,54,585]
[null,null,null,null,null,null,null,null,null,null,null,null,null,null,null,null,null,null,null,null,null,null,null,null,null,null,null,null,null,null,null,null,null,null,null,null,null,null,null,null,null,null,null,null,null,null,null,null,null,null,null,null,"T5","(12) 45.8\" T-5 54W HO Lamps (6) Prog RS Ballast, HLO (.95<BF<1.1)",null,12,54,702]

{"sheet":"HVAC","index":8,"n_rows":158,"n_cols":49,"rows_kept":158,"cut":false,"hidden":false,"merged":[[96,1,96,2],[94,7,94,8],[95,7,95,8],[96,7,96,8],[94,4,94,5],[95,4,95,5],[96,4,96,5],[98,0,98,6],[98,7,98,8],[97,0,97,6],[97,7,97,8],[87,6,87,8],[88,6,88,8],[87,3,87,5],[88,3,88,5],[88,1,88,2],[86,1,86,2],[87,1,87,2],[94,1,94,2],[95,1,95,2],[89,0,89,5],[89,6,89,8],[90,0,90,5],[90,6,90,8],[86,6,86,8],[86,3,86,5],[92,0,92,8],[93,1,93,2],[93,4,93,5],[93,7,93,8],[52,4,52,5],[52,6,52,7],[54,0,54,7],[85,0,85,8],[55,0,59,8],[60,0,60,8],[61,1,61,8],[62,1,62,8],[63,1,63,8],[64,1,64,8],[65,1,65,8],[66,1,66,8],[67,0,67,8],[73,1,73,2],[74,1,74,2],[75,1,75,2],[49,4,49,5],[49,6,49,7],[50,4,50,5],[50,6,50,7],[51,4,51,5],[51,6,51,7],[53,0,53,7],[46,4,46,5],[46,6,46,7],[47,4,47,5],[47,6,47,7],[48,4,48,5],[48,6,48,7],[44,4,44,5],[44,6,44,7],[45,4,45,5],[45,6,45,7],[45,13,45,16],[45,17,45,20],[41,4,41,5],[41,6,41,7],[42,4,42,5],[42,6,42,7],[43,4,43,5],[43,6,43,7],[38,4,38,5],[38,6,38,7],[39,4,39,5],[39,6,39,7],[40,4,40,5],[40,6,40,7],[35,16,37,16],[35,17,37,17],[36,3,36,5],[36,12,36,14],[37,3,37,5],[37,12,37,14],[34,0,37,2],[34,3,34,5],[34,11,37,11],[34,12,34,14],[35,3,35,5],[35,7,37,7],[35,8,37,8],[35,12,35,14],[31,12,31,14],[32,0,32,2],[32,3,32,5],[32,8,33,8],[32,12,32,14],[28,3,28,5],[32,17,33,17],[33,0,33,2],[33,3,33,5],[33,12,33,14],[28,12,28,14],[29,3,29,5],[29,12,29,14],[30,0,31,2],[30,3,30,5],[30,7,31,7],[30,8,31,8],[30,11,31,11],[30,12,30,14],[31,3,31,5],[20,0,24,2],[20,3,20,5],[20,7,29,7],[20,8,29,8],[20,11,24,11],[20,12,20,14],[20,16,29,16],[20,17,29,17],[21,3,21,5],[21,12,21,14],[22,3,22,5],[22,12,22,14],[23,3,23,5],[23,12,23,14],[24,3,24,5],[24,12,24,14],[25,0,29,2],[25,3,25,5],[25,11,29,11],[25,12,25,14],[26,3,26,5],[26,12,26,14],[27,3,27,5],[27,12,27,14],[13,16,19,16],[13,17,19,17],[14,3,15,5],[14,6,15,6],[14,9,15,9],[14,12,15,14],[14,15,15,15],[16,3,17,5],[16,6,17,6],[16,9,17,9],[18,3,19,5],[18,6,19,6],[18,9,19,9],[18,12,19,14],[18,15,19,15],[13,0,19,2],[13,3,13,5],[13,7,19,7],[13,8,19,8],[13,11,19,11],[13,12,13,14],[16,12,17,14],[16,15,17,15],[4,0,12,2],[11,9,12,9],[4,16,12,16],[4,17,12,17],[5,3,6,5],[5,6,6,6],[5,9,6,9],[5,12,6,14],[5,15,6,15],[7,3,8,5],[7,6,8,6],[7,9,8,9],[4,3,4,5],[4,7,12,7],[4,8,12,8],[4,11,12,11],[4,12,4,14],[7,12,8,14],[11,3,12,5],[11,6,12,6],[11,12,12,14],[11,15,12,15],[0,1,0,5],[1,7,1,8],[3,0,3,2],[3,3,3,5],[3,12,3,14],[7,15,8,15],[9,3,10,5],[9,6,10,6],[9,9,10,9],[9,12,10,14],[9,15,10,15],[1,1,1,6],[107,7,107,8],[101,7,101,8],[102,7,102,8],[103,7,103,8],[101,4,101,6],[102,4,102,6],[103,4,103,6],[101,1,101,3],[102,1,102,3],[103,1,103,3],[104,1,104,2],[105,1,105,2],[106,1,106,2],[107,1,107,2],[76,3,76,4],[77,3,77,4],[78,3,78,4],[79,3,79,4],[80,3,80,4],[111,0,111,7],[2,0,2,8],[81,0,81,7],[82,0,82,7],[70,1,70,2],[71,1,71,2],[72,1,72,2],[108,7,108,8],[109,7,109,8],[108,0,108,6],[109,0,109,6],[100,0,100,8],[104,7,104,8],[107,3,107,5],[106,3,106,5],[105,3,105,5],[104,3,104,5],[105,7,105,8],[106,7,106,8],[79,5,79,6],[80,5,80,6],[69,0,69,8],[0,6,0,8],[70,5,70,6],[71,5,71,6],[72,5,72,6],[73,5,73,6],[74,5,74,6],[75,5,75,6],[76,5,76,6],[77,5,77,6],[78,5,78,6],[76,1,76,2],[77,1,77,2],[78,1,78,2],[79,1,79,2],[80,1,80,2],[70,3,70,4],[71,3,71,4],[72,3,72,4],[73,3,73,4],[74,3,74,4],[75,3,75,4]]}
[null,"HVAC INCENTIVES",null,null,null,null,"See spec sheets at the bottom of the page!",null,null,null,null,"USE THIS SECTION TO REPLACE THE TABLE IN THE SPECS WORKSHEET"]
["Applicant: fill in gray fields at bottom","See instructions to complete this worksheet at the bottom of the page"]
["HVAC Units"]
["Equipment Type",null,null,"Size Category",null,null,"Qualifying Efficiency*","Incentive \n(per ton)","Efficiency Bonus","New Qualifying Efficiency*",null,"Equipment Type","Size Category",null,null,"Qualifying Efficiency*","Incentive \n(per ton)","Efficiency Bonus"]
["Unitary and Split Air Conditioning Systems",null,null,"< 65,000 Btu/h (5.4 tons)",null,null,"15.0 SEER",25,15,"15.0 SEER",null,"Unitary and Split Air Conditioning Systems","< 65,000 Btu/h (5.4 tons)",null,null,{"$f":"J5","v":"15.0 SEER"},25,15]
[null,null,null,"≥ 65,000 Btu/h and \n< 135,000 Btu/h (5.4-11.25 tons)",null,null,"13.7 IEER**",null,null,"11.8 EER**",null,null,"≥ 65,000 Btu/h and \n< 135,000 Btu/h (5.4-11.25 tons)",null,null,"11.8 EER**"]
[]
[null,null,null,"≥ 135,000 Btu/h and < 240,000 Btu/h (11.25-20 tons)",null,null,"13.3 IEER**",null,null,"11.6 EER**",null,null,"≥ 135,000 Btu/h and < 240,000 Btu/h (11.25-20 tons)",null,null,"11.6 EER**"]
[]
[null,null,null,"≥ 240,000 Btu/h and < 760,000 Btu/h (20-63 Tons)",null,null,"12.4 IEER**",null,null,"10.5 EER**",null,null,"≥ 240,000 Btu/h and < 760,000 Btu/h (20-63 Tons)",null,null,"10.5 EER**"]
[]
[null,null,null,"≥ 760,000 Btu/h (> 63 tons)",null,null,"12.0 IEER**",null,null,"10.2 EER**",null,null,"≥ 760,000 Btu/h (> 63 tons)",null,null,"10.2 EER**"]
[]
["Air Source Heat Pumps",null,null,"< 65,000 Btu/h (5.4 tons)",null,null,"15 SEER and 8.6 HSPF",40,15,"15 SEER and 8.6 HSPF",null,"Air Source Heat Pumps","< 65,000 Btu/h (5.4 tons)",null,null,"15 SEER and 8.6 HSPF",40,15]
[null,null,null,"≥ 65,000 Btu/h and \n< 135,000 Btu/h (5.4-11.25 tons)",null,null,"12.9 IEER** and 3.5 COP",null,null,"11.6 EER** and 3.5 COP",null,null,"≥ 65,000 Btu/h and \n< 135,000 Btu/h (5.4-11.25 tons)",null,null,"11.6 EER** and 3.5 COP"]
[]
[null,null,null,"≥ 135,000 Btu/h and < 240,000 Btu/h (11.25-20 tons)",null,null,"12.4 IEER** and 3.4 COP",null,null,"11.1 EER** and 3.4 COP",null,null,"≥ 135,000 Btu/h and < 240,000 Btu/h (11.25-20 tons)",null,null,"11.1 EER** and 3.4 COP"]
[]
[null,null,null,"≥ 240,000 Btu/h and < 760,000 Btu/h (20-63 Tons)",null,null,"11.4 IEER** and 3.4 COP",null,null,"10.0 EER** and 3.4 COP",null,null,"≥ 240,000 Btu/h and < 760,000 Btu/h (20-63 Tons)",null,null,"10.0 EER** and 3.4 COP"]
[]
["Chillers: Water-Cooled, Centrifugal***",null,null,"≤ 150 tons",null,null,"0.495 kW/ton-IPLV",20,20,"0.495 kW/ton-IPLV",null,"Chillers: Water-Cooled, Centrifugal","≤ 150 tons",null,null,"0.495 kW/ton-IPLV",20,20]
[null,null,null,">150 tons and ≤ 300 tons",null,null,"0.495 kW/ton-IPLV",null,null,"0.495 kW/ton-IPLV",null,null,">150 tons and ≤ 300 tons",null,null,"0.495 kW/ton-IPLV"]
[null,null,null,"> 300 tons to ≤ 400 tons",null,null,"0.468 kW/ton-IPLV",null,null,"0.468 kW/ton-IPLV",null,null,"> 300 tons to ≤ 400 tons",null,null,"0.468 kW/ton-IPLV"]
[null,null,null,"> 400 tons to ≤ 600 tons",null,null,"0.450 kW/ton-IPLV",null,null,"0.450 kW/ton-IPLV",null,null,"> 400 tons to ≤ 600 tons",null,null,"0.450 kW/ton-IPLV"]
[null,null,null,"> 600",null,null,"0.450 kW/ton-IPLV",null,null,"0.450 kW/ton-IPLV",null,null,"> 600",null,null,"0.450 kW/ton-IPLV"]
["Chillers: Water Cooled Scroll, Helical-Rotary or Reciprocating***",null,null,"≤ 75 tons",null,null,"0.54 kW/ton-IPLV",null,null,"0.54 kW/ton-IPLV",null,"Chillers: Water Cooled Scroll, Helical-Rotary or Reciprocating***","≤ 75 tons",null,null,"0.54 kW/ton-IPLV"]
[null,null,null,"> 75 tons and ≤ 150 tons",null,null,"0.504 kW/ton-IPLV",null,null,"0.504 kW/ton-IPLV",null,null,"> 75 tons and ≤ 150 tons",null,null,"0.504 kW/ton-IPLV"]
[null,null,null,">150 tons and ≤ 300 tons",null,null,"0.486 kW/ton-IPLV",null,null,"0.486 kW/ton-IPLV",null,null,">150 tons and ≤ 300 tons",null,null,"0.486 kW/ton-IPLV"]
[null,null,null,"> 300 tons and ≤ 600 tons",null,null,"0.468 kW/ton-IPLV",null,null,"0.468 kW/ton-IPLV",null,null,"> 300 tons and ≤ 600 tons",null,null,"0.468 kW/ton-IPLV"]
[null,null,null,"> 600 tons",null,null,"0.540 kW/ton-IPLV",null,null,"0.540 kW/ton-IPLV",null,null,"> 600 tons",null,null,"0.540 kW/ton-IPLV"]
["Chillers: Air-Cooled",null,null,"≤ 150",null,null,"0.788 kW/ton-IPLV",40,20,"0.788 kW/ton-IPLV",null,"Chillers: Air-Cooled","≤ 150",null,null,"0.788 kW/ton-IPLV"]
[null,null,null,"> 150",null,null,"0.771 kW/ton-IPLV",null,null,"0.771 kW/ton-IPLV",null,null,"> 150",null,null,"0.771 kW/ton-IPLV",40,20]
["Packaged Terminal AC",null,null,"ALL",null,null,"14.5-(0.300 x Btu/h/1000) EER",50,0,"14.5-(0.300 x Btu/h/1000) EER",null,"Packaged Terminal AC","ALL",null,null,"14.5-(0.300 x Btu/h/1000) EER",50,0]
["Packaged Terminal HP",null,null,"ALL",null,null,"14.5-(0.300 x Btu/h/1000) EER",100,null,"14.5-(0.300 x Btu/h/1000) EER",null,"Packaged Terminal HP","ALL",null,null,"14.5-(0.300 x Btu/h/1000) EER",100]
["Variable Refrigerant Flow HP",null,null,"< 65,000 Btu/h (5.4 tons)",null,null,"13.9 SEER and 8.3 HSPF",40,20,"13.9 SEER and 8.3 HSPF",null,"Variable Refrigerant Flow HP","< 65,000 Btu/h (5.4 tons)",null,null,"13.9 SEER and 8.3 HSPF",40,20]
[null,null,null,"≥ 65,000 Btu/h and \n< 135,000 Btu/h (5.4-11.25 tons)",null,null,"15.4 IEER and 3.5 COP",40,25,"15.4 IEER and 3.5 COP",null,null,"≥ 65,000 Btu/h and \n< 135,000 Btu/h (5.4-11.25 tons)",null,null,"15.4 IEER and 3.5 COP",40,25]
[null,null,null,"≥ 135,000 Btu/h and < 240,000 Btu/h (11.25-20 tons)",null,null,"14.7 IEER and 3.4 COP",null,null,"14.7 IEER and 3.4 COP",null,null,"≥ 135,000 Btu/h and < 240,000 Btu/h (11.25-20 tons)",null,null,"14.7 IEER and 3.4 COP"]
[null,null,null,"≥ 240,000 Btu/h (20 Tons)",null,null,"13.4 IEER and 3.4 COP",null,null,"13.4 IEER and 3.4 COP",null,null,"≥ 240,000 Btu/h (20 Tons)",null,null,"13.4 IEER and 3.4 COP"]
["Equipment Model","Tons","Efficiency Rating","Quantity","Equipment Type",null,"Size Category",null,"Incentive"]
[null,null,null,null,null,null,null,null,{"$f":"IF(E40=\"\",\"\",IF(LEFT(E40,1)<>\"C\",B40*D40*IF(VLOOKUP(CONCATENATE(E40,G40),$V$114:$Y$144,2,FALSE)>C40,0,VLOOKUP(CONCATENATE(E40,G40),$V$114:$Y$144,3,FALSE)+(C40-(VLOOKUP(CONCATENATE(E40,G40),$V$114:$Y$144,2,FALSE)))*(VLOOKUP(CONCATENATE(E40,G40),$V$114:$Y$144,4,FALSE))),B40*D40*IF(VLOOKUP(CONCATENATE(E40,G40),$V$114:$Y$144,2,FALSE)<C40,0,VLOOKUP(CONCATENATE(E40,G40),$V$114:$Y$144,3,FALSE)+((VLOOKUP(CONCATENATE(E40,G40),$V$114:$Y$144,2,FALSE))-C40)*(VLOOKUP(CONCATENATE(E40,G40),$V$114:$Y$144,4,FALSE))/0.1)))","v":""}]
[null,null,null,null,null,null,null,null,""]
[null,null,null,null,null,null,null,null,""]
[null,null,null,null,null,null,null,null,""]
[null,null,null,null,null,null,null,null,""]
[null,null,null,null,null,null,null,null,""]
[null,null,null,null,null,null,null,null,"",null,null,null,null,"Cooling Only",null,null,null,"Heating and Cooling"]
[null,null,null,null,null,null,null,null,"",null,null,"Thermostats - System Description","Rated Cooling Capacity","Incentive","$/kWh","EUL, years","IMC","Incentive","$/kWh","EUL, years","IMC"]
[null,null,null,null,null,null,null,null,"",null,null,"Air Conditioning (Refrigerated Air)",12000,15,0.16557978398206641,10,175,55,0.14069936079734763,10,175]
[null,null,null,null,null,null,null,null,"",null,null,"Heat Pump",18000,25,0.18397753775785161,10,175,75,0.12790850981577059,10,175]
[null,null,null,null,null,null,null,null,"",null,null,"Electric Baseboard / Furnace",24000,35,0.19317641464574414,10,175,95,0.12151308432498205,10,175]
[null,null,null,null,null,null,null,null,"",null,null,null,30000,45,0.19869574077847976,10,175,115,0.11767582903050894,10,175]
[null,null,null,null,null,null,null,null,"",null,null,null,36000,55,0.20237529153363679,10,175,135,0.11511765883419353,10,175]
[null,null,null,null,null,null,null,null,""]
[{"$f":"IF('Applicant Info'!$P$13=TRUE,\"Income Qualifier Bonus\",\"HVAC Units Incentive\")","v":"HVAC Units Incentive"},null,null,null,null,null,null,null,{"$f":"IF('Applicant Info'!$P$13=TRUE,SUM(I40:I53)*0.1,SUM(I40:I53))","v":0}]
["HVAC Units Incentive",null,null,null,null,null,null,null,{"$f":"SUM(I40:I54)","v":0}]
["* Use SEER for Unitary and Split Units less than 5.4 tons and IEER for units larger than 5.4 tons; values available from CEE 2012 Tier 2; Use IEER for VRF Units; IPLV values based on ASHRAE 90.1 2016; see specifications page for complete list. Attach AHRI Rating Sheet. \n** Units with electric resistance heating must have IEER values 0.2 higher than the efficiencies listed.\n*** Unit efficiency for chillers should be provided in kW per ton – IPLV where IPLV = Integrated Part Load Value; values based on ASHRAE 90.1-2016. Attach manufacturer's rating sheet for credit."]
[]
[]
[]
[]
["INSTRUCTIONS TO COMPLETE THIS WORKSHEET:"]
["Equipment Model:","Enter the equipment model as shown on the invoice; provide the specification sheet(s) that accompany the model"]
["Tons:","Enter the equipment tonnage from the AHRI or manufacturer specification sheet"]
["Efficiency Rating:","Enter the equipment efficiency rating from the AHRI or manufacturer specification sheet; for chillers, kW/ton = 12/IPLV EER"]
["Quantity:","Enter the number of units that fit this size and efficiency rating"]
["Equipment Type:","Enter the equipment type from the drop-down menu"]
["Size Category:","Enter the equipment size from the drop-down menu"]
["Note: The reference standard in IECC 2018 is ASHRAE 90.1 2016"]
[]
["Variable Speed Drives on Fan and Pump Applications (when adding VSDs where none existed before)",null,null,null,null,null,null,null,null,null,"VSDs"]
["VSD Application Description","VSD Size (HP)\n(Must be less than 200 HP)",null,"Incentive\nUnit",null,"Incentive/ Unit*",null,"Quantity","Incentive",null,"Equipment Type","Incentive"]
[null,null,null,"per HP",null,{"$f":"_xlfn.XLOOKUP(A72,$K$72:$K$77,$L$72:$L$77,\"\",0)","v":""},null,null,{"$f":"IF($A72=\"\",\"\",$B72*$H72*$F72)","v":""},null,"Supply Fans",200]
[null,null,null,"per HP",null,{"$f":"_xlfn.XLOOKUP(A73,$K$72:$K$77,$L$72:$L$77,\"\",0)","v":""},null,null,"",null,"Return Fans",175]
[null,null,null,"per HP",null,"",null,null,"",null,"Cooling Water Pumps",200]
[null,null,null,"per HP",null,"",null,null,"",null,"Hot Water Pumps",150]
[null,null,null,"per HP",null,"",null,null,"",null,"WSHP Circulation Pumps",250]
[null,null,null,"per HP",null,"",null,null,"",null,"Cooling Tower Fan",100]
[null,null,null,"per HP",null,"",null,null,""]
[null,null,null,"per HP",null,"",null,null,""]
[null,null,null,"per HP",null,"",null,null,""]
[null,null,null,"per HP",null,"",null,null,""]
[{"$f":"IF('Applicant Info'!$P$13=TRUE,\"Income Qualifier Bonus\",\"VSD Incentive\")","v":"VSD Incentive"},null,null,null,null,null,null,null,{"$f":"IF('Applicant Info'!$P$13=TRUE,SUM(I72:I81)*0.1,SUM(I72:I81))","v":0}]
["VSD Incentive",null,null,null,null,null,null,null,{"$f":"SUM(I72:I82)","v":0}]
["*The variable speed drive incentive is calculated based on the horsepower (HP) that is actually being controlled, not necessarily the size of the VSD. This section for HVAC only; for VSD's on non-HVAC "]
["equipment, use the Custom tab.",null,null,null,null,null,null,null,null,null,"Unitary and Split Air Conditioning Systems"]
["Smart/Programmable Thermostats (when replacing Manual or Programmable Thermostats, pre-inspection required)",null,null,null,null,null,null,null,null,null,"Air Source Heat Pumps"]
["Equipment Type","Incentive/Unit",null,"Quantity",null,null,"Incentive",null,null,null,"Chillers: Water-Cooled: Centrifugal"]
["Smart Thermostats",95,null,null,null,null,{"$f":"IF(ISBLANK(D88),\"\",B88*D88)","v":""},null,null,null,"Chillers: Water-Cooled: Scroll, Screw or Reciprocating"]
["Programmable Thermostats",20,null,null,null,null,{"$f":"IF(ISBLANK(D89),\"\",B89*D89)","v":""},null,null,null,"Chillers: Air-Cooled"]
[{"$f":"IF('Applicant Info'!$P$13=TRUE,\"Income Qualifier Bonus\",\"Thermostats Incentive\")","v":"Thermostats Incentive"},null,null,null,null,null,{"$f":"IF('Applicant Info'!$P$13=TRUE,SUM(G88:I89)*0.1,SUM(G88:I89))","v":0},null,null,null,"Packaged Terminal AC"]
["Thermostats Incentive",null,null,null,null,null,{"$f":"SUM(G88:I89)+G90","v":0},null,null,null,"Packaged Terminal HP"]
[null,null,null,null,null,null,null,null,null,null,"Variable Refrigerant Flow HP"]
["Guest Room Energy Management System"]
["Type/Description","Incentive Unit",null,"Incentive/Unit","Unit Size (Tons)",null,"Quantity","Incentive"]
["Multi-family Guest Room Occupancy Sensor","Per Ton per Room",null,75,null,null,null,{"$f":"IF(D95*E95*G95=0,\"\",D95*E95*G95)","v":""}]
["Multi-family Guest Room Occupancy Sensor","Per Ton per Room",null,75,null,null,null,{"$f":"IF(D96*E96*G96=0,\"\",D96*E96*G96)","v":""}]
["Multi-family Guest Room Occupancy Sensor","Per Ton per Room",null,75,null,null,null,"",null,null,"< 65,000 Btu/h (5.4 tons)"]
[{"$f":"IF('Applicant Info'!$P$13=TRUE,\"Income Qualifier Bonus\",\"GREM Incentive\")","v":"GREM Incentive"},null,null,null,null,null,null,{"$f":"IF('Applicant Info'!$P$13=TRUE,SUM(H95:H97)*0.1,SUM(H95:H97))","v":0},null,null,"≥ 65,000 Btu/h and < 135,000 Btu/h (5.4-11.25 tons)"]
["GREM Incentive",null,null,null,null,null,null,{"$f":"SUM(H95:H97)+H98","v":0},null,null,"≥ 135,000 Btu/h and < 240,000 Btu/h (11.25-20 tons)"]
[null,null,null,null,null,null,null,null,null,null,"≥ 240,000 Btu/h and < 760,000 Btu/h (20-63 Tons)"]
["ENERGY STAR® Exhaust Fans",null,null,null,null,null,null,null,null,null,"≥ 760,000 Btu/h (> 63 tons)"]
["Efficiency Level","Standard Usage (10 - 89 CFM)",null,null,"Standard Usage (90 - 200 CFM)",null,null,"Continuous",null,null,"≤ 75 tons"]
["ENERGY STAR® Certified",10,null,null,10,null,null,20,null,null,"> 150 tons"]
["ENERGY STAR® Most Efficient",15,null,null,15,null,null,30,null,null,"≤ 150 tons"]
["Type/Description","Incentive Unit",null,"Efficiency Level",null,null,"Quantity","Incentive",null,null,">150 tons and ≤ 300 tons"]
["Standard Usage (10 - 89 CFM)","Unit",null,null,null,null,null,{"$f":"IF(OR(D106 = \"\",G106=\"\"),\"\",IF(D106 = \"ENERGY STAR® Certified\",10,IF(D106 = \"ENERGY STAR® Most Efficient\",15))*G106)","v":""},null,null,">300 tons and ≤ 400 tons"]
["Standard Usage (90 - 200 CFM)","Unit",null,null,null,null,null,{"$f":"IF(OR(D107 = \"\",G107=\"\"),\"\",IF(D107 = \"ENERGY STAR® Certified\",10,IF(D107 = \"ENERGY STAR® Most Efficient\",15))*G107)","v":""},null,null,"> 400 tons and ≤ 600 tons"]
["Continuous - Standard","Unit",null,null,null,null,null,{"$f":"IF(OR(D108 = \"\",G108=\"\"),\"\",IF(D108 = \"ENERGY STAR® Certified\",20,IF(D108 = \"ENERGY STAR® Most Efficient\",30))*G108)","v":""},null,null,">600"]
[{"$f":"IF('Applicant Info'!$P$13=TRUE,\"Income Qualifier Bonus\",\"Exhaust Fans Incentive\")","v":"Exhaust Fans Incentive"},null,null,null,null,null,null,{"$f":"IF('Applicant Info'!$P$13=TRUE,SUM(H106:I108)*0.1,SUM(H106:I108))","v":0},null,null,"ALL"]
["Exhaust Fans Incentive",null,null,null,null,null,null,{"$f":"SUM(H106:I108)+H109","v":0}]
[]
["Total HVAC Incentives",null,null,null,null,null,null,null,{"$f":"IF('Applicant Info'!$P$13=TRUE,I55+I83+G91+H99+H110,I54+I82+G90+H98+H109)","v":0}]
[]
[null,null,null,null,null,null,null,null,null,null,null,null,null,null,null,null,null,null,"Level Normal (2021 V2)","2021 V2 Rounded","Level Normal (2021 V1)",null,"Level Normal","Incentive","Bonus","Level 2","Level 3","Level 4","Min","Max"]
[]
[null,null,null,null,null,null,null,null,null,null,null,null,null,null,null,null,null,null,15.000020000000001,{"$f":"ROUND(S116,1)","v":15},14,"Unitary and Split Air Conditioning Systems< 65,000 Btu/h (5.4 tons)",{"$f":"T116","v":15},25,15,{"$f":"W116+1","v":16},{"$f":"Z116+1","v":17},18,0,5.4]
[null,null,null,null,null,null,null,null,null,null,null,null,null,null,null,null,null,null,13.714304000000002,13.7,12,"Unitary and Split Air Conditioning Systems≥ 65,000 Btu/h and < 135,000 Btu/h (5.4-11.25 tons)",13.7,25,15,{"$f":"W117+1","v":14.7},15.7,16.7]
[null,null,null,null,null,null,null,null,null,null,null,null,null,null,null,null,null,null,13.285732000000001,13.3,12,"Unitary and Split Air Conditioning Systems≥ 135,000 Btu/h and < 240,000 Btu/h (11.25-20 tons)",13.3,25,15,{"$f":"W118+1","v":14.3},15.3,16.3,11.25,20]
[null,null,null,null,null,null,null,null,null,null,null,null,null,null,null,null,null,null,12.428588000000001,12.4,10.8,"Unitary and Split Air Conditioning Systems≥ 240,000 Btu/h and < 760,000 Btu/h (20-63 Tons)",12.4,25,15,{"$f":"W116+1","v":16},{"$f":"Z116+1","v":17},{"$f":"AA116+1","v":18},20,63]
[null,null,null,null,null,null,null,null,null,null,null,null,null,null,null,null,null,null,12.000016,12,10.199999999999999,"Unitary and Split Air Conditioning Systems≥ 760,000 Btu/h (> 63 tons)",12,25,15,{"$f":"W120+1","v":13},14,15,63,100000]
[null,null,null,null,null,null,null,null,null,null,null,null,null,null,null,null,null,null,15.000020000000001,15,14,"Air Source Heat Pumps< 65,000 Btu/h (5.4 tons)",15,40,15,{"$f":"W121+1","v":16},17,18,0,5.4]
[null,null,null,null,null,null,null,null,null,null,null,null,null,null,null,null,null,null,12.85716,12.9,11.6,"Air Source Heat Pumps≥ 65,000 Btu/h and < 135,000 Btu/h (5.4-11.25 tons)",12.9,40,15,{"$f":"W122+1","v":13.9},14.9,15.9,5.4,11.25]
[null,null,null,null,null,null,null,null,null,null,null,null,null,null,null,null,null,null,12.428588000000001,12.4,11.2,"Air Source Heat Pumps≥ 135,000 Btu/h and < 240,000 Btu/h (11.25-20 tons)",12.4,40,15,{"$f":"W123+1","v":13.4},14.4,15.4,11.25,20]
[null,null,null,null,null,null,null,null,null,null,null,null,null,null,null,null,null,null,11.357158,11.4,10,"Air Source Heat Pumps≥ 240,000 Btu/h and < 760,000 Btu/h (20-63 Tons)",11.4,40,15,{"$f":"W121+1","v":16},{"$f":"Z121+1","v":17},{"$f":"AA121+1","v":18},20,63]
[null,null,null,null,null,null,null,null,null,null,null,null,null,null,null,null,null,null,9.9642990000000022,10,10,"Air Source Heat Pumps≥ 760,000 Btu/h (> 63 tons)",10,40,15,{"$f":"W125+1","v":11},{"$f":"Z125+1","v":12},{"$f":"AA125+1","v":13},63,100000]
[null,null,null,null,null,null,null,null,null,null,null,null,null,null,null,null,null,null,0.49500000000000005,{"$f":"S126","v":0.49500000000000005},0.56899999999999995,"Chillers: Water-Cooled: Centrifugal ≤ 150 tons",0.49500000000000005,20,20,0.54,{"$f":"ROUNDUP(W126/0.9*0.7,2)","v":0.39},{"$f":"ROUNDUP(W126/0.9*0.6,2)","v":0.33},0,150]
[null,null,null,null,null,null,null,null,null,null,null,null,null,null,null,null,null,null,0.49500000000000005,{"$f":"S127","v":0.49500000000000005},0.50700000000000001,"Chillers: Water-Cooled: Centrifugal>150 tons and ≤ 300 tons",0.49500000000000005,20,20,0.54,0.39,0.33,150,300]
[null,null,null,null,null,null,null,null,null,null,null,null,null,null,null,null,null,null,0.46800000000000003,{"$f":"S128","v":0.46800000000000003},0.46700000000000003,"Chillers: Water-Cooled: Centrifugal>300 tons and ≤ 400 tons",0.46800000000000003,20,20,0.48,0.37,0.32,300,400]
[null,null,null,null,null,null,null,null,null,null,null,null,null,null,null,null,null,null,0.45,{"$f":"S129","v":0.45},"New Size category","Chillers: Water-Cooled: Centrifugal> 400 tons and ≤ 600 tons",0.45,20,20,0.44,0.35,0.3,400,600]
[null,null,null,null,null,null,null,null,null,null,null,null,null,null,null,null,null,null,0.45,{"$f":"S130","v":0.45},"New Size Category","Chillers: Water-Cooled: Centrifugal > 600",0.45,20,20,0.42,0.35,0.3,600,10000]
[null,null,null,null,null,null,null,null,null,null,null,null,null,null,null,null,null,null,0.54,0.54,0.59199999999999997,"Chillers: Water-Cooled: ReciprocatingALL",0.54,20,20,0.54,0.42,0.36,0,75]
[null,null,null,null,null,null,null,null,null,null,null,null,null,null,null,null,null,null,0.54,0.54,"New Size Category","Chillers: Water-Cooled: Scroll, Screw or Reciprocating≤ 75 tons",0.54,20,20,0.54,0.42,0.36,0,75]
[null,null,null,null,null,null,null,null,null,null,null,null,null,null,null,null,null,null,0.504,0.504,0.57499999999999996,"Chillers: Water-Cooled: Scroll, Screw or Reciprocating>75 tons and ≤ 150 tons",0.504,20,20,0.54,0.4,0.34,75,150]
[null,null,null,null,null,null,null,null,null,null,null,null,null,null,null,null,null,null,0.48599999999999999,0.48599999999999999,0.53400000000000003,"Chillers: Water-Cooled: Scroll, Screw or Reciprocating>150 tons and ≤ 300 tons",0.48599999999999999,20,20,0.5,0.38,0.33,150,300]
[null,null,null,null,null,null,null,null,null,null,null,null,null,null,null,null,null,null,0.46800000000000003,0.46800000000000003,0.48599999999999999,"Chillers: Water-Cooled: Scroll, Screw or ReciprocatingScroll, Screw or Reciprocating> 300 tons and ≤ 600 tons",0.46800000000000003,20,20,0.46,0.37,0.32,300,600]
[null,null,null,null,null,null,null,null,null,null,null,null,null,null,null,null,null,null,0.45,0.45,"New Size Category","Chillers: Water-Cooled: Scroll, Screw or Reciprocating > 600 tons",0.45,20,20,0.42,0.35,0.3,600,10000]
[null,null,null,null,null,null,null,null,null,null,null,null,null,null,null,null,null,null,0.78800000000000003,0.78800000000000003,0.86699999999999999,"Chillers: Air-Cooled≤ 150 tons",0.78800000000000003,40,20,{"$f":"ROUND(W137/0.9*0.8,2)","v":0.7},0.62,0.53,0,150]
[null,null,null,null,null,null,null,null,null,null,null,null,null,null,null,null,null,null,0.77100000000000002,0.77100000000000002,0.86699999999999999,"Chillers: Air-Cooled> 150 tons",0.77100000000000002,40,20,{"$f":"ROUND(W138/0.9*0.8,2)","v":0.69},0.6,0.52,150,100000,null,null,null,null,null,null,null,null,null,null,null,"Chillers: Air-Cooled","Unitary and Split Air Conditioning Systems","Chillers: Water Cooled Scroll, Helical-Rotary or Reciprocating***","Chillers: Water-Cooled, Centrifugal***","Air Source Heat Pumps","Variable Refrigerant Flow HP","Packaged Terminal AC","Packaged Terminal HP"]
[null,null,null,null,null,null,null,null,null,null,null,null,null,null,null,null,null,null,{"$f":"14.5-(0.3*_xlfn.IFNA(INDEX($A$40:$I$53,MATCH(\"Packaged Terminal AC\",$E$40:$E$53,0),2),0)*12000/1000)","v":14.5},{"$f":"S139","v":14.5},{"$f":"12.5-(0.213*B40*12000/1000)","v":12.5},"Packaged Terminal ACALL",14.5,50,0,{"$f":"W139+1","v":15.5},{"$f":"Z139+1","v":16.5},17.5,0,100000,null,null,null,null,null,null,null,null,null,null,null,"≤ 150","< 65,000 Btu/h (5.4 tons)","≤ 75 tons","≤ 150 tons","< 65,000 Btu/h (5.4 tons)","< 65,000 Btu/h (5.4 tons)","ALL","ALL"]
[null,null,null,null,null,null,null,null,null,null,null,null,null,null,null,null,null,null,{"$f":"14.5-(0.3*_xlfn.IFNA(INDEX($A$40:$I$53,MATCH(\"Packaged Terminal HP\",$E$40:$E$53,0),2),0)*12000/1000)","v":14.5},{"$f":"S140","v":14.5},{"$f":"12.3-(0.213*B41*12000/1000)","v":12.3},"Packaged Terminal HPALL",14.5,100,0,15.5,16.5,17.5,0,100000,null,null,null,null,null,null,null,null,null,null,null,"> 150","≥ 65,000 Btu/h and \n< 135,000 Btu/h (5.4-11.25 tons)","> 75 tons and ≤ 150 tons",">150 tons and ≤ 300 tons","≥ 65,000 Btu/h and \n< 135,000 Btu/h (5.4-11.25 tons)","≥ 65,000 Btu/h and \n< 135,000 Btu/h (5.4-11.25 tons)"]
[null,null,null,null,null,null,null,null,null,null,null,null,null,null,null,null,null,null,15.428592000000002,{"$f":"ROUND(S141,1)","v":15.4},14.8,"Variable Refrigerant Flow HP≥ 65,000 Btu/h and < 135,000 Btu/h (5.4-11.25 tons)",15.4,40,25,16.399999999999999,17.399999999999999,18.399999999999999,5.4,11.25,null,null,null,null,null,null,null,null,null,null,null,null,"≥ 135,000 Btu/h and < 240,000 Btu/h (11.25-20 tons)",">150 tons and ≤ 300 tons","> 300 tons to ≤ 400 tons","≥ 135,000 Btu/h and < 240,000 Btu/h (11.25-20 tons)","≥ 135,000 Btu/h and < 240,000 Btu/h (11.25-20 tons)"]
[null,null,null,null,null,null,null,null,null,null,null,null,null,null,null,null,null,null,14.678591000000001,{"$f":"ROUND(S142,1)","v":14.7},14.2,"Variable Refrigerant Flow HP≥ 135,000 Btu/h and < 240,000 Btu/h (11.25-20 tons)",14.7,40,25,15.7,16.7,17.7,11.25,20,null,null,null,null,null,null,null,null,null,null,null,null,"≥ 240,000 Btu/h and < 760,000 Btu/h (20-63 Tons)","> 300 tons and ≤ 600 tons","> 400 tons to ≤ 600 tons","≥ 240,000 Btu/h and < 760,000 Btu/h (20-63 Tons)","≥ 240,000 Btu/h (20 Tons)"]
[null,null,null,null,null,null,null,null,null,null,null,null,null,null,null,null,null,null,13.392875000000002,{"$f":"ROUND(S143,1)","v":13.4},12.7,"Variable Refrigerant Flow HP≥ 240,000 Btu/h and < 760,000 Btu/h (20-63 Tons)",13.4,40,25,14.4,15.4,16.399999999999999,20,63,null,null,null,null,null,null,null,null,null,null,null,null,"≥ 760,000 Btu/h (> 63 tons)","> 600 tons","> 600"]
[null,null,null,null,null,null,null,null,null,null,null,null,null,null,null,null,null,null,13.928590000000002,{"$f":"ROUND(S144,1)","v":13.9},15.6,"Variable Refrigerant Flow HP< 65,000 Btu/h (5.4 tons)",13.9,40,25,14.9,15.9,16.899999999999999,63,100000]
[]
[null,null,null,null,null,null,null,null,null,null,null,null,null,null,null,null,null,null,null,null,null,null,null,null,null,"**used stated values for Level 2, if available.  Else was rounded up to the  10s of watts"]
[]
[]
[]
[null,null,null,null,null,null,null,null,null,null,null,null,null,null,null,null,null,null,null,null,null,null,null,null,null,null,null,null,null,null,null,null,null,null,null,null,null,"Categories","Column1","Column2"]
[null,null,null,null,null,null,null,null,null,null,null,null,null,null,null,null,null,null,null,null,null,null,null,null,null,null,null,null,null,null,null,null,null,null,null,null,null,"Unitary and Split Air Conditioning Systems","UnitarySplit",1]
[null,null,null,null,null,null,null,null,null,null,null,null,null,null,null,null,null,null,null,null,null,null,null,null,null,null,null,null,null,null,null,null,null,null,null,null,null,"Air Source Heat Pumps","AirSourceHP",2]
[null,null,null,null,null,null,null,null,null,null,null,null,null,null,null,null,null,null,null,null,null,null,null,null,null,null,null,null,null,null,null,null,null,null,null,null,null,"Variable Refrigerant Flow HP","VRF",3]
[null,null,null,null,null,null,null,null,null,null,null,null,null,null,null,null,null,null,null,null,null,null,null,null,null,null,null,null,null,null,null,null,null,null,null,null,null,"Chillers: Water Cooled Scroll, Helical-Rotary or Reciprocating***","ChillerHelical",4]
[null,null,null,null,null,null,null,null,null,null,null,null,null,null,null,null,null,null,null,null,null,null,null,null,null,null,null,null,null,null,null,null,null,null,null,null,null,"Chillers: Water-Cooled, Centrifugal***","ChillerCent",5]
[null,null,null,null,null,null,null,null,null,null,null,null,null,null,null,null,null,null,null,null,null,null,null,null,null,null,null,null,null,null,null,null,null,null,null,null,null,"Chillers: Air-Cooled","ChillerAir",6]
[null,null,null,null,null,null,null,null,null,null,null,null,null,null,null,null,null,null,null,null,null,null,null,null,null,null,null,null,null,null,null,null,null,null,null,null,null,"Packaged Terminal AC","PTAC",7]
[null,null,null,null,null,null,null,null,null,null,null,null,null,null,null,null,null,null,null,null,null,null,null,null,null,null,null,null,null,null,null,null,null,null,null,null,null,"Packaged Terminal HP","PTHP",8]

{"sheet":"Food Service","index":9,"n_rows":47,"n_cols":14,"rows_kept":47,"cut":false,"hidden":false,"merged":[[3,0,3,4],[41,0,41,4],[40,0,40,4],[39,0,39,4],[38,0,38,4],[37,0,37,4],[36,0,36,4],[35,0,35,4],[30,0,30,4],[10,0,10,8],[0,1,0,10],[45,9,45,10],[45,0,45,8],[11,0,11,8],[11,9,11,10],[24,9,24,10],[24,0,24,8],[32,0,32,8],[32,9,32,10],[43,9,43,10],[27,0,27,4],[29,0,29,4],[28,0,28,4],[22,0,22,4],[21,0,21,4],[36,9,36,10],[43,0,43,8],[20,0,20,4],[19,0,19,4],[41,9,41,10],[40,9,40,10],[39,9,39,10],[38,9,38,10],[37,9,37,10],[41,6,41,7],[40,6,40,7],[35,9,35,10],[30,9,30,10],[29,9,29,10],[28,9,28,10],[22,6,22,7],[20,9,20,10],[38,6,38,7],[37,6,37,7],[21,6,21,7],[36,6,36,7],[35,6,35,7],[30,6,30,7],[29,6,29,7],[28,6,28,7],[27,6,27,7],[46,0,47,7],[46,8,47,10],[4,9,4,10],[3,9,3,10],[8,9,8,10],[7,9,7,10],[6,9,6,10],[5,9,5,10],[27,9,27,10],[17,0,17,4],[16,0,16,4],[9,9,9,10],[14,9,14,10],[16,9,16,10],[15,9,15,10],[16,6,16,7],[44,0,44,8],[44,9,44,10],[8,6,8,7],[14,0,14,4],[9,6,9,7],[15,6,15,7],[15,0,15,4],[17,9,17,10],[20,6,20,7],[19,6,19,7],[18,6,18,7],[17,6,17,7],[22,9,22,10],[21,9,21,10],[19,9,19,10],[18,9,18,10],[42,0,42,8],[42,9,42,10],[1,6,1,10],[10,9,10,10],[23,0,23,8],[23,9,23,10],[31,0,31,8],[31,9,31,10],[14,6,14,7],[18,0,18,4],[7,6,7,7],[6,6,6,7],[5,6,5,7],[3,6,3,7],[4,6,4,7],[39,6,39,7]]}
[null,"FOOD SERVICE INCENTIVES"]
["Applicant: fill in gray fields",null,null,null,null,null,"See spec sheets at the bottom of the page!"]
["ENERGY STAR® Ovens & Fryers"]
["Equipment Type",null,null,null,null,"Incentive Unit","Incentive/Unit",null,"# of Units","Incentive",null,null,"kWh/Unit","kWh Savings"]
["Combination Oven - Full Size",null,null,null,null,"Unit",800,null,null,{"$f":"IF(ISBLANK(I5),\"\",I5*G5)","v":""},null,null,6368,{"$f":"M5*I5","v":0}]
["Convection Oven - Half Size",null,null,null,null,"Unit",100,null,null,"",null,null,3043,0]
["Convection Oven - Full Size < 5 pans",null,null,null,null,"Unit",300,null,null,"",null,null,4633,0]
["Convection Oven - Full size ≥ 5 pans",null,null,null,null,"Unit",350,null,null,"",null,null,244,0]
["Commercial Vat Fryer - Standard",null,null,null,null,"Unit",250,null,null,"",null,null,3272,0]
["Commercial Vat Fryer - Large",null,null,null,null,"Unit",300,null,null,"",null,null,2696,0]
[{"$f":"IF('Applicant Info'!$P$13=TRUE,\"Income Qualifier Bonus\",\"Ovens & Fryers Incentive\")","v":"Ovens & Fryers Incentive"},null,null,null,null,null,null,null,null,{"$f":"IF('Applicant Info'!$P$13=TRUE,SUM(J5:K10)*0.1,SUM(J5:K10))","v":0}]
["Ovens & Fryers Incentive",null,null,null,null,null,null,null,null,{"$f":"SUM(J5:K11)","v":0}]
[]
["ENERGY STAR® Steam Cookers"]
["Equipment Type",null,null,null,null,"Incentive Unit","Incentive/Unit",null,"# of Units","Incentive"]
["Boiler Based - 3 Pan",null,null,null,null,"Unit",1200,null,null,{"$f":"IF(ISBLANK(I16),\"\",I16*G16)","v":""},null,null,11784,{"$f":"M16*I16","v":0}]
["Boiler Based - 4 Pan",null,null,null,null,"Unit",1400,null,null,"",null,null,14553,0]
["Boiler Based - 5 Pan",null,null,null,null,"Unit",1600,null,null,"",null,null,17268,0]
["Boiler Based - ≥6 Pan",null,null,null,null,"Unit",1800,null,null,"",null,null,19990,0]
["Steam Generator - 3 Pan",null,null,null,null,"Unit",800,null,null,"",null,null,9967,0]
["Steam Generator - 4 Pan",null,null,null,null,"Unit",900,null,null,"",null,null,12107,0]
["Steam Generator - 5 Pan",null,null,null,null,"Unit",1000,null,null,"",null,null,14186,0]
["Steam Generator - ≥6 Pan",null,null,null,null,"Unit",1200,null,null,"",null,null,16270,0]
[{"$f":"IF('Applicant Info'!$P$13=TRUE,\"Income Qualifier Bonus\",\"Steam Cookers Incentive\")","v":"Steam Cookers Incentive"},null,null,null,null,null,null,null,null,{"$f":"IF('Applicant Info'!$P$13=TRUE,SUM(J16:K23)*0.1,SUM(J16:K23))","v":0}]
["Steam Cookers Incentive",null,null,null,null,null,null,null,null,{"$f":"SUM(J16:K24)","v":0}]
[]
["ENERGY STAR® Hot Food Holding Cabinet"]
["Equipment Type",null,null,null,null,"Incentive Unit","Incentive/Unit",null,"# of Units","Incentive"]
["Half size",null,null,null,null,"Unit",125,null,null,{"$f":"IF(ISBLANK(I29),\"\",I29*G29)","v":""},null,null,1215,{"$f":"M29*I29","v":0}]
["Three-quarter size",null,null,null,null,"Unit",300,null,null,{"$f":"IF(ISBLANK(I30),\"\",I30*G30)","v":""},null,null,2770,{"$f":"M30*I30","v":0}]
["Full-size",null,null,null,null,"Unit",500,null,null,{"$f":"IF(ISBLANK(I31),\"\",I31*G31)","v":""},null,null,4832,{"$f":"M31*I31","v":0}]
[{"$f":"IF('Applicant Info'!$P$13=TRUE,\"Income Qualifier Bonus\",\"Hot Food Holding Cabinets Incentive\")","v":"Hot Food Holding Cabinets Incentive"},null,null,null,null,null,null,null,null,{"$f":"IF('Applicant Info'!$P$13=TRUE,SUM(J29:K31)*0.1,SUM(J29:K31))","v":0}]
["Hot Food Holding Cabinets Incentive",null,null,null,null,null,null,null,null,{"$f":"SUM(J29:K32)","v":0}]
[]
["ENERGY STAR® High Efficiency Ice Makers"]
["Equipment Type",null,null,null,null,"Installed kWk/100 lbs","Incentive/Unit",null,"# of Units","Incentive"]
["150 lb/24 hours",null,null,null,null,"Unit",100,null,null,{"$f":"IF(ISBLANK(I37),\"\",I37*G37)","v":""},null,null,401,{"$f":"M37*I37","v":0}]
["250 lb/24 hours",null,null,null,null,"Unit",125,null,null,"",null,null,469,0]
["350 lb/24 hours",null,null,null,null,"Unit",150,null,null,"",null,null,357,0]
["450 lb/24 hours",null,null,null,null,"Unit",150,null,null,"",null,null,440,0]
["750 lb/24 hours",null,null,null,null,"Unit",200,null,null,"",null,null,850,0]
["1500 lb/24 hours",null,null,null,null,"Unit",250,null,null,"",null,null,1436,0]
[{"$f":"IF('Applicant Info'!$P$13=TRUE,\"Income Qualifier Bonus\",\"High Efficiency Ice Makers Incentive\")","v":"High Efficiency Ice Makers Incentive"},null,null,null,null,null,null,null,null,{"$f":"IF('Applicant Info'!$P$13=TRUE,SUM(J37:K42)*0.1,SUM(J37:K42))","v":0}]
["High Efficiency Ice Makers Incentive",null,null,null,null,null,null,null,null,{"$f":"SUM(J37:K43)","v":0}]
["Income Qualifier Bonus:",null,null,null,null,null,null,null,null,{"$f":"IF('Applicant Info'!$P$13=TRUE,SUM(J5:K10,J16:K23,J29:K31,J37:K42)*0.1,0)","v":0}]
["Total Food Service Equipment Incentives",null,null,null,null,null,null,null,null,{"$f":"SUM(J5:K10,J16:K23,J29:K31,J37:K42,J45)","v":0}]
["I certify that I have not already received an 'at the counter' rebate from a participating distributor for the equipment listed above. I understand that if I have already received a rebate that this application will be cancelled."]

{"sheet":"Appliances","index":10,"n_rows":56,"n_cols":6,"rows_kept":56,"cut":false,"hidden":false,"merged":[[18,0,18,1],[19,0,19,1],[20,0,20,1],[9,0,9,1],[14,0,14,1],[15,0,15,1],[16,0,16,1],[17,0,17,1],[24,0,24,5],[29,0,29,4],[0,0,0,5],[2,0,2,5],[11,0,11,4],[22,0,22,4],[13,0,13,5],[28,0,28,4],[21,0,21,4],[10,0,10,4],[3,0,3,1],[4,0,4,1],[5,0,5,1],[6,0,6,1],[7,0,7,1],[8,0,8,1],[1,3,1,5],[47,0,47,5],[57,0,57,5],[44,0,44,4],[31,0,31,5],[39,0,39,5],[55,0,55,4],[37,0,37,4],[45,0,45,4],[36,0,36,4],[48,0,48,1],[49,0,49,1],[50,0,50,1],[51,0,51,1],[53,0,53,4],[52,0,52,4]]}
["APPLIANCES INCENTIVES"]
["Applicant: fill in grey fields below",null,null,"See spec sheets at the bottom of the page!"]
["Low-flow Showerheads (w/Electric Water Heaters)"]
["Flow (GPM)",null,"Incentive Unit","Incentive/Unit","# of Units","Incentive"]
[null,null,"Unit",6,null,{"$f":"IF(ISBLANK(E5),\"\",D5*E5)","v":""}]
[null,null,"Unit",6,null,{"$f":"IF(ISBLANK(E6),\"\",D6*E6)","v":""}]
[null,null,"Unit",6,null,""]
[null,null,"Unit",6,null,""]
[null,null,"Unit",6,null,""]
[null,null,"Unit",6,null,""]
[{"$f":"IF('Applicant Info'!$P$13=TRUE,\"Income Qualifier Bonus\",\"Low-flow Showerheads Incentive\")","v":"Low-flow Showerheads Incentive"},null,null,null,null,{"$f":"IF('Applicant Info'!$P$13=TRUE,SUM(F5:F10)*0.1,SUM(F5:F10))","v":0}]
["Low-flow Showerheads Incentive",null,null,null,null,{"$f":"SUM(F5:F11)","v":0}]
[]
["Low-flow Faucets Aerators (w/Electric Water Heaters)"]
["Flow (GPM)",null,"Incentive Unit","Incentive/Unit","# of Units","Incentive"]
[null,null,"Unit",5,null,{"$f":"IF(ISBLANK(E16),\"\",D16*E16)","v":""}]
[null,null,"Unit",5,null,{"$f":"IF(ISBLANK(E17),\"\",D17*E17)","v":""}]
[null,null,"Unit",5,null,""]
[null,null,"Unit",5,null,""]
[null,null,"Unit",5,null,""]
[null,null,"Unit",5,null,""]
[{"$f":"IF('Applicant Info'!$P$13=TRUE,\"Income Qualifier Bonus\",\"Low-flow Faucets Incentive\")","v":"Low-flow Faucets Incentive"},null,null,null,null,{"$f":"IF('Applicant Info'!$P$13=TRUE,SUM(F16:F21)*0.1,SUM(F16:F21))","v":0}]
["Low-flow Faucets incentive",null,null,null,null,{"$f":"SUM(F16:F22)","v":0}]
[]
["ENERGY STAR® Dishwashers"]
["Equipment Type","Domestic Hot Water Source","Incentive Unit","Incentive/Unit","# of Units","Incentive"]
["Standard",null,"Unit",10,null,{"$f":"IF(ISBLANK(E27),\"\",D27*E27)","v":""}]
["Compact",null,"Unit",5,null,{"$f":"IF(ISBLANK(E28),\"\",D28*E28)","v":""}]
[{"$f":"IF('Applicant Info'!$P$13=TRUE,\"Income Qualifier Bonus\",\"Dishwashers Incentive\")","v":"Dishwashers Incentive"},null,null,null,null,{"$f":"IF('Applicant Info'!$P$13=TRUE,SUM(F27:F28)*0.1,SUM(F27:F28))","v":0}]
["Dishwashers Incentive",null,null,null,null,{"$f":"SUM(F27:F29)","v":0}]
[]
["ENERGY STAR® Washers"]
["Equipment Type","Application Type","Incentive Unit","Incentive/Unit","# of Units","Incentive"]
["Top Loading (≥ 2.5 cu. ft.)",null,"Unit",25,null,{"$f":"IF(ISBLANK(E34),\"\",D34*E34)","v":""}]
["Front Loading (≥ 2.5 cu. ft.)",null,"Unit",25,null,{"$f":"IF(ISBLANK(E35),\"\",D35*E35)","v":""}]
["< 2.5 cu. ft.",null,"Unit",25,null,{"$f":"IF(ISBLANK(E36),\"\",D36*E36)","v":""}]
[{"$f":"IF('Applicant Info'!$P$13=TRUE,\"Income Qualifier Bonus\",\"Washers Incentive\")","v":"Washers Incentive"},null,null,null,null,{"$f":"IF('Applicant Info'!$P$13=TRUE,SUM(F34:F36)*0.1,SUM(F34:F36))","v":0}]
["Washers Incentive",null,null,null,null,{"$f":"SUM(F34:F37)","v":0}]
[]
["ENERGY STAR® Dryers"]
["Equipment Type","Application Type","Incentive Unit","Incentive/Unit","# of Units","Incentive"]
["Vented Electric - Standard\n(≥4.4 cu. ft.)",null,"Unit",25,null,{"$f":"IF(ISBLANK(E42),\"\",D42*E42)","v":""}]
["Vented Electric - Compact\n(<4.4 cu. ft.)",null,"Unit",25,null,""]
["Ventless Electric, Combination Washer-Dryer",null,"Unit",50,null,{"$f":"IF(ISBLANK(E44),\"\",D44*E44)","v":""}]
[{"$f":"IF('Applicant Info'!$P$13=TRUE,\"Income Qualifier Bonus\",\"Dryers Incentive\")","v":"Dryers Incentive"},null,null,null,null,{"$f":"IF('Applicant Info'!$P$13=TRUE,SUM(F42:F44)*0.1,SUM(F42:F44))","v":0}]
["Dryers Incentive",null,null,null,null,{"$f":"SUM(F42:F45)","v":0}]
[]
["Refrigerators-Freezer Incentive (MUST satisfy EnergyStar® Criteria)"]
["Volume (cubic feet)",null,"ENERGY STAR®","Incentive/Unit","# of Units","Incentive"]
["≥ 13 and <20",null,null,150,null,{"$f":"IF(OR(C50=\"\",E50=\"\"),\"\",IF(C50=\"Yes\",$D50*$E50,IF(C50=\"No\",\"DNQ\",\"\")))","v":""}]
["≥ 20 and < 25",null,null,160,null,{"$f":"IF(OR(C51=\"\",E51=\"\"),\"\",IF(C51=\"Yes\",$D51*$E51,IF(C51=\"No\",\"DNQ\",\"\")))","v":""}]
["≥ 25",null,null,170,null,""]
[{"$f":"IF('Applicant Info'!$P$13=TRUE,\"Income Qualifier Bonus\",\"Refrigerator-Freezer Incentive\")","v":"Refrigerator-Freezer Incentive"},null,null,null,null,{"$f":"IF('Applicant Info'!$P$13=TRUE,SUM(F50:F52)*0.1,SUM(F50:F52))","v":0}]
["Refrigerator-Freezer Incentive",null,null,null,null,{"$f":"SUM(F50:F53)","v":0}]
[]
["Total Appliances Incentives",null,null,null,null,{"$f":"IF('Applicant Info'!$P$13=TRUE,SUM(F12,F23,F30,F38,F46,F54),SUM(F11,F22,F29,F37,F45,F53))","v":0}]

{"sheet":"Heat Pump Water Heaters","index":11,"n_rows":34,"n_cols":24,"rows_kept":34,"cut":false,"hidden":false,"merged":[[18,0,18,8],[18,9,18,10],[17,0,17,1],[17,2,17,4],[17,5,17,6],[17,7,17,8],[17,9,17,10],[15,9,15,10],[16,0,16,1],[16,2,16,4],[16,5,16,6],[16,7,16,8],[16,9,16,10],[15,0,15,1],[15,2,15,4],[15,5,15,6],[15,7,15,8],[12,5,12,6],[12,7,12,8],[12,9,12,10],[14,0,14,1],[14,2,14,4],[14,5,14,6],[14,7,14,8],[14,9,14,10],[13,0,13,1],[13,2,13,4],[13,5,13,6],[13,7,13,8],[13,9,13,10],[0,1,0,8],[0,9,0,10],[1,0,1,3],[2,0,3,10],[6,1,6,4],[6,5,6,8],[5,1,5,4],[5,5,5,8],[1,6,1,10],[32,0,32,4],[19,0,19,8],[19,9,19,10],[7,1,7,4],[7,5,7,8],[8,1,8,4],[8,5,8,8],[9,1,9,4],[9,5,9,8],[11,0,11,1],[11,2,11,4],[11,5,11,6],[11,7,11,8],[11,9,11,10],[12,0,12,1],[12,2,12,4]]}
[null,"HEAT PUMP WATER HEATERS INCENTIVES"]
["Applicant: Fill in grey fields",null,null,null,null,null,"See spec sheets at the bottom of the page!",null,null,null,null,null,null,"25 or less",20,12,{"$f":"O2*P2","v":240}]
["Electric Hybrid Heat Pump Water Heaters must be EnergyStar certified with a 3.30 Uniform Energy Factor (UEF) or greater and 55 gallons or less of storage capacity.",null,null,null,null,null,null,null,null,null,null,null,null,"26 to 35",30,12,{"$f":"O3*P3","v":360}]
[null,null,null,null,null,null,null,null,null,null,null,null,null,"36 to 45",40,12,{"$f":"O4*P4","v":480}]
[null,null,null,null,null,null,null,null,null,null,null,null,null,"46 to 55",50,12,{"$f":"O5*P5","v":600}]
[null,"Size Category (gallons)",null,null,null,"Rebate/unit"]
[null,"25 or less",null,null,null,240]
[null,"26 to 35",null,null,null,360]
[null,"36 to 45",null,null,null,480]
[null,"46 to 55",null,null,null,600]
[]
["Size (gallons)",null,"EnergyStar Certified?",null,null,"Incentive/unit",null,"Quantity",null,"Incentive"]
[null,null,null,null,null,{"$f":"IF(A13=\"\",\"\",VLOOKUP($A13,$N$2:$Q$5,4,FALSE))","v":""},null,null,null,{"$f":"X14","v":""},null,null,null,null,null,null,null,null,"Size category","size","EnergyStar Certified?","Incentive/gallon","Quanity","Rebate"]
[null,null,null,null,null,{"$f":"IF(A14=\"\",\"\",VLOOKUP($A14,$N$2:$Q$5,4,FALSE))","v":""},null,null,null,"",null,null,null,null,null,null,null,null,"25 or less",20,"Yes",12,"Input7",{"$f":"IF(OR(A13=\"\",C13=\"\",H13=\"\"),\"\",IF(C13=\"No\",\"Does Not Quality\",VLOOKUP($A13,$S$14:$T$17,2,FALSE)*VLOOKUP($A13,$S$14:$V$17,4,FALSE)*H13))","v":""}]
[null,null,null,null,null,"",null,null,null,"",null,null,null,null,null,null,null,null,"26 to 35",30,"No",12,"Input8",""]
[null,null,null,null,null,"",null,null,null,"",null,null,null,null,null,null,null,null,"36 to 45",40,null,12,"Input9",""]
[null,null,null,null,null,"",null,null,null,"",null,null,null,null,null,null,null,null,"46 to 55",50,null,12,"Input10",""]
[null,null,null,null,null,"",null,null,null,"",null,null,null,null,null,null,null,null,null,null,null,12,"Input11",""]
[{"$f":"IF('Applicant Info'!$P$13=TRUE,\"Income Qualifier Bonus\",\"Hot Pump Water Heaters Incentive\")","v":"Hot Pump Water Heaters Incentive"},null,null,null,null,null,null,null,null,{"$f":"IF('Applicant Info'!$P$13=TRUE,SUM(J13:K18)*0.1,SUM(J13:K18))","v":0},null,null,null,null,null,null,null,null,null,null,null,12,"Input12",""]
["Hot Pump Water Heaters Incentive",null,null,null,null,null,null,null,null,{"$f":"SUM(J13:J19)","v":0}]
[]
[null,null,null,null,null,null,null,null,null,null,null,null,false]
[]
[null,null,null,null,null,null,null,null,null,null,null,null,null,null,null,null,null,null,null,null,45]
[]
[]
[]
[]
[]
[]
[]
[]
[]
[null,null,null,null,null,null,null,null,null,null,null,null,false]

{"sheet":"Windows","index":12,"n_rows":26,"n_cols":39,"rows_kept":26,"cut":false,"hidden":false,"merged":[[0,0,0,9],[2,0,2,9],[3,14,3,17],[16,0,16,8],[15,28,15,31],[5,17,5,20],[4,16,4,21],[5,23,6,23],[5,24,6,24],[5,25,6,25],[5,26,6,26],[5,27,6,27],[4,23,4,25],[17,0,17,8],[1,0,1,1],[25,11,25,12],[24,11,24,12],[23,11,23,12],[22,11,22,12],[1,5,1,9]]}
["WINDOW REPLACEMENT INCENTIVES"]
["Applicant: fill in gray fields",null,null,null,null,"See spec sheets at the bottom of the page!"]
["Window Incentive (MUST satisfy EnergyStar® Criteria; please see specs below)",null,null,null,null,null,null,null,null,null,null,{"$f":"IF(AND(M5=\"\",N5=\"\"),\"\",IF(OR(C5=\"\",D5=\"\"),\"\",IF(A5=\"Santa Fe\",IF(AND(C5<=M5,D5>=N5),\"Qualified Product\",\"Do Not Qualify\"),IF(AND(C5<=M5,D5<=N5),\"Qualified Product\",\"Do Not Qualify\"))))","v":""},null,"`"]
["Weather Region*","Shading Type    (Old Windows)","U-Factor [Btu/(h sq.ft.°F)]","Solar Heat Gain Coefficient (SHGC)","Area of Window [ft2]","Incentive/ft2","ENERGY STAR® ","Cooling Type ","Heating Type","Incentive","$/kWh","ES Requirement","Base U-Factor","Base SHGC",null,null,null,null,null,null,null,null,null,null,null,null,null,null,null,null,null,null,null,null,null,null,null,null,"Region"]
[null,null,null,null,null,{"$f":"_xlfn.IFNA(IF($B5=\"Single-pane\",VLOOKUP($A5,$P$8:$Q$10,2,FALSE),IF(OR($A5=\"\",$B5=\"\"),\"\",VLOOKUP($A5,$P$16:$Q$18,2,FALSE))),\"\")","v":""},{"$f":"IF(OR(A5=\"\",B5=\"\",C5=\"\",D5=\"\"),\"\",L5)","v":""},null,null,{"$f":"IF(OR($C5=\"\",$D5=\"\",$E5=\"\",$G5=\"\",$H5=\"\",$I5=\"\"),\"\",IF(OR($L5=\"Do Not Qualify\",$H5=\"NO COOLING\"),\"DNQ\",$F5*$E5))","v":""},{"$f":"IFERROR(J5/AI5,\"\")","v":""},{"$f":"IF(AND(M5=\"\",N5=\"\"),\"\",IF(OR(C5=\"\",D5=\"\"),\"\",IF(A5=\"Santa Fe\",IF(AND(C5<=M5,D5>=N5),\"Qualified Product\",\"Do Not Qualify\"),IF(AND(C5<=M5,D5<=N5),\"Qualified Product\",\"Do Not Qualify\"))))","v":""},{"$f":"IF($A5=\"Santa Fe\",IF($C5<=0.27,Y$9,IF(AND($C5>0.27,$C5<=0.28),Y$10,IF(AND($C5>0.28,$C5<=0.29),Y$11,IF($C5>0.29,Y$12)))),_xlfn.IFNA(VLOOKUP($A5,$X$8:$Z$13,2,FALSE),\"\"))","v":""},{"$f":"IF($A5=\"Santa Fe\",IF($C5<=0.27,Z$9,IF(AND($C5>0.27,$C5<=0.28),Z$10,IF(AND($C5>0.28,$C5<=0.29),Z$11,IF($C5>0.29,Z$12)))),_xlfn.IFNA(VLOOKUP($A5,$X$8:$Z$13,3,FALSE),\"\"))","v":""},null,null,"Annual kWh Savings: Energy Star Windows Replacing Single-pane Windows",null,null,null,null,null,null,"Windows MUST satisfy ENERGY STAR criteria Below",null,null,null,null,null,null,null,null,null,null,null,null,null,null,"North -NM"]
[null,null,null,null,null,"",{"$f":"IF(OR(A6=\"\",B6=\"\",C6=\"\",D6=\"\"),\"\",L6)","v":""},null,null,"","",{"$f":"IF(AND(M6=\"\",N6=\"\"),\"\",IF(OR(C6=\"\",D6=\"\"),\"\",IF(A6=\"Santa Fe\",IF(AND(C6<=M6,D6>=N6),\"Qualified Product\",\"Do Not Qualify\"),IF(AND(C6<=M6,D6<=N6),\"Qualified Product\",\"Do Not Qualify\"))))","v":""},{"$f":"IF($A6=\"Santa Fe\",IF($C6<=0.27,Y$9,IF(AND($C6>0.27,$C6<=0.28),Y$10,IF(AND($C6>0.28,$C6<=0.29),Y$11,IF($C6>0.29,Y$12)))),_xlfn.IFNA(VLOOKUP($A6,$X$8:$Z$13,2,FALSE),\"\"))","v":""},{"$f":"IF($A6=\"Santa Fe\",IF($C6<=0.27,Z$9,IF(AND($C6>0.27,$C6<=0.28),Z$10,IF(AND($C6>0.28,$C6<=0.29),Z$11,IF($C6>0.29,Z$12)))),_xlfn.IFNA(VLOOKUP($A6,$X$8:$Z$13,3,FALSE),\"\"))","v":""},null,null,null,"$/kWh",null,null,null,null,null,"Climate Zone","U-Factor Btu/(h sq.ft. F)","Solar Heat Gain Coefficient (SHGC)",null,null,null,null,null,null,null,null,null,null,null,null,"Central -NM"]
[null,null,null,null,null,"","",null,null,{"$f":"IF(OR($C7=\"\",$D7=\"\",$E7=\"\",$G7=\"\",$H7=\"\",$I7=\"\"),\"\",IF(OR($L7=\"Do Not Qualify\",$H7=\"NO COOLING\"),\"DNQ\",$F7*$E7))","v":""},"","","","",null,"Climate Zone","Incentive per Sq. Ft.","Refrigerated Air","Evap Cooling","Electric Resistance + Evap","Heat Pump",null,null,null,null,null,null,null,null,null,null,null,null,null,null,null,null,null,"South -NM"]
[null,null,null,null,null,"","",null,null,"","","","","",null,"Albuquerque",1,0.17574692442882248,0.52356020942408377,0.31948881789137379,0.1529051987767584,null,null,"Albuquerque",0.3,0.4]
[null,null,null,null,null,"","",null,null,"","","","","",null,"Santa Fe",1,0.47846889952153115,1.4285714285714286,0.3012048192771084,0.25510204081632654,null,null,"Santa Fe",0.27]
[null,null,null,null,null,"","",null,null,"","","","","",null,"Las Cruces",1,0.17921146953405018,0.53475935828876997,0.32467532467532467,0.1557632398753894,null,null,"Santa Fe",0.28000000000000003,0.32]
[null,null,null,null,null,"","",null,null,"","","","","",null,null,null,null,null,null,null,null,null,"Santa Fe",0.28999999999999998,0.37]
[null,null,null,null,null,"","",null,null,"","","","","",null,null,null,null,null,null,null,null,null,"Santa Fe",0.3,0.42]
[null,null,null,null,null,"","",null,null,"","","","","",null,null,"Annual kWh Savings: Energy Star Windows Replacing Double-pane Windows",null,null,null,null,null,null,"Las Cruces",0.3,0.25]
[null,null,null,null,null,"","",null,null,"",{"$f":"IFERROR(J14/AI14,\"\")","v":""},"","","",null,null,null,"$/kWh"]
[null,null,null,null,null,"","",null,null,"",{"$f":"IFERROR(J15/AI15,\"\")","v":""},"","","",null,"Climate Zone","Incentive per Sq. Ft.","Refrigerated Air","Evap Cooling","Electric Resistance + Evap","Heat Pump"]
[null,null,null,null,null,"","",null,null,"",{"$f":"IFERROR(J16/AI16,\"\")","v":""},"","","",null,"Albuquerque",0.5,0.11737089201877934,0.3401360544217687,0.4,0.11210762331838565,null,"Energy Star?","Shading Coefficient","Region","Cooling Type","Heating Type"]
[{"$f":"IF('Applicant Info'!$P$13=TRUE,\"Income Qualifier Bonus\",\"Window Replacement Incentive\")","v":"Window Replacement Incentive"},null,null,null,null,null,null,null,null,{"$f":"IF('Applicant Info'!$P$13=TRUE,SUM(J5:J16)*0.1,SUM(J5:J16))","v":0},null,null,null,null,null,"Santa Fe",0.5,0.32051282051282048,0.92592592592592582,8.3333333333333268,0.25252525252525254,null,"Yes","Single-pane","Albuquerque","Refrigerated Air","Gas Heat"]
["Window Replacement Incentive",null,null,null,null,null,null,null,null,{"$f":"SUM(J5:J17)","v":0},null,null,null,null,null,"Las Cruces",0.5,0.11961722488038279,0.38167938931297707,0.4587155963302752,0.11415525114155252,null,"No","Double-pane","Santa Fe","Evap Cooling","Electric Resistance"]
[null,null,null,null,null,null,null,null,null,null,null,null,null,null,null,null,null,null,null,null,null,null,null,null,"Las Cruces","NO COOLING","Heat Pump"]
[]
[]
[]
[null,null,null,null,null,null,null,null,null,null,null,"old Incentive"]
[null,null,null,null,null,null,null,null,null,null,null,70]
[null,null,null,null,null,null,null,null,null,null,null,80]
[null,null,null,null,null,null,null,null,null,null,null,100]

{"sheet":"Pool Pumps","index":13,"n_rows":18,"n_cols":30,"rows_kept":18,"cut":false,"hidden":false,"merged":[[11,17,11,24],[13,18,17,18],[13,19,17,19],[2,0,2,9],[8,0,8,8],[9,0,9,8],[10,0,10,9],[3,6,3,7],[5,6,5,7],[6,6,6,7],[7,6,7,7],[4,6,4,7],[1,0,1,2],[0,0,0,9],[7,0,7,4],[6,0,6,4],[5,0,5,4],[4,0,4,4],[3,0,3,4],[1,7,1,9]]}
["POOL PUMP INCENTIVES"]
["Applicant: fill in gray fields at bottom",null,null,null,null,null,null,"See specs at the bottom of the page!"]
["Pool Pumps"]
["Pump Type",null,null,null,null,"Incentive Unit","Incentive/Unit",null,"Quantity","Incentive"]
["Energy Star Pump - In-ground",null,null,null,null,"Unit",100,null,null,{"$f":"IF(ISBLANK(I5),\"\",G5*I5)","v":""}]
["CEE Tier 1* Pump - In-ground",null,null,null,null,"Unit",100,100,null,{"$f":"IF(ISBLANK(I6),\"\",G6*I6)","v":""}]
["Energy Star Pump - Above Ground",null,null,null,null,"Unit",100,100,null,""]
["CEE Tier 1* Pump - Above Ground",null,null,null,null,"Unit",100,null,null,""]
[{"$f":"IF('Applicant Info'!$P$13=TRUE,\"Income Qualifier Bonus\",\"Pool Pumps Incentive\")","v":"Pool Pumps Incentive"},null,null,null,null,null,null,null,null,{"$f":"IF('Applicant Info'!$P$13=TRUE,SUM(J5:J8)*0.1,SUM(J5:J8))","v":0}]
["Pool Pumps Incentive",null,null,null,null,null,null,null,null,{"$f":"SUM(J5:J9)","v":0}]
["* If BOTH Energy Star and CEE Tier 1 certified, use the CEE Tier 1 line item(s)."]
[null,null,null,null,null,null,null,null,null,null,null,null,null,null,null,null,null,"ENERGYSTAR Pool Pump Assumptions",null,null,null,null,null,null,null,null,"Incentive","$/kWh",null,"ES"]
[null,null,null,null,null,null,null,null,null,null,null,null,null,null,null,null,null,"Rated Hp","Hours, HighSpeed","Hours, LowSpeed","PFR, HighSpeed","EF, HighSpeed","PFR, LowSpeed","EF, LowSpeed","kWh, ENERGYSTAR",null,null,null,null,"Yes"]
[null,null,null,null,null,null,null,null,null,null,null,null,null,null,null,null,null,"<1.25",4.3,9.6999999999999993,56,2.3980000000000001,31,5.407,{"$f":"+((U14*60*#REF!*365)/(V14*1000))+((W14*60*#REF!*365)/(X14*1000))","v":{"$error":"#REF!"}},null,120,{"$f":"+AA14/X14","v":22.193452931385242},null,"No"]
[null,null,null,null,null,null,null,null,null,null,null,null,null,null,null,null,null,"1.25 < HP <1.75",null,0.20849999999999999,61,2.2669999999999999,31.9,5.4329999999999998,{"$f":"+((U15*60*#REF!*365)/(V15*1000))+((W15*60*#REF!*365)/(X15*1000))","v":{"$error":"#REF!"}},null,{"$f":"+AA14+20","v":140},{"$f":"+AA15/X15","v":25.768452052273148}]
[null,null,null,null,null,null,null,null,null,null,null,null,null,null,null,null,null,"1.75 < HP <2.25",null,0.25159999999999999,66.400000000000006,1.9510000000000001,33.299999999999997,5.2210000000000001,{"$f":"+((U16*60*#REF!*365)/(V16*1000))+((W16*60*#REF!*365)/(X16*1000))","v":{"$error":"#REF!"}},null,{"$f":"+AA15+20","v":160},{"$f":"+AA16/X16","v":30.645470216433633}]
[null,null,null,null,null,null,null,null,null,null,null,null,null,null,null,null,null,"2.25 < HP <2.75",null,0.30809999999999998,66,2.024,34,4.7960000000000003,{"$f":"+((U17*60*#REF!*365)/(V17*1000))+((W17*60*#REF!*365)/(X17*1000))","v":{"$error":"#REF!"}},null,{"$f":"+AA16+20","v":180},{"$f":"+AA17/X17","v":37.531276063386152}]
[null,null,null,null,null,null,null,null,null,null,null,null,null,null,null,null,null,"2.75 < HP <3.00",null,0.3639,74,1.617,37,4.7640000000000002,{"$f":"+((U18*60*#REF!*365)/(V18*1000))+((W18*60*#REF!*365)/(X18*1000))","v":{"$error":"#REF!"}},null,{"$f":"+AA17+20","v":200},{"$f":"+AA18/X18","v":41.981528127623847}]

{"sheet":"Custom","index":14,"n_rows":60,"n_cols":9,"rows_kept":60,"cut":false,"hidden":false,"merged":[[0,3,0,5],[1,0,1,2],[20,4,20,5],[16,7,24,7],[13,0,13,9],[15,0,15,3],[15,4,15,6],[14,0,14,9],[15,8,15,9],[23,4,23,6],[24,4,24,5],[16,0,24,3],[12,4,12,5],[4,8,12,9],[2,0,2,9],[3,0,3,3],[50,0,50,7],[50,8,50,9],[4,0,12,3],[16,8,24,9],[17,4,17,6],[22,4,22,5],[28,4,28,5],[19,4,19,6],[21,4,21,6],[16,4,16,5],[18,4,18,5],[40,0,48,3],[36,4,36,5],[25,0,25,9],[31,4,31,6],[33,4,33,6],[3,4,3,6],[3,8,3,9],[4,7,12,7],[9,4,9,6],[5,4,5,6],[7,4,7,6],[4,4,4,5],[6,4,6,5],[8,4,8,5],[10,4,10,5],[11,4,11,6],[27,0,27,3],[27,4,27,6],[27,8,27,9],[26,0,26,9],[30,4,30,5],[28,8,36,9],[29,4,29,6],[32,4,32,5],[28,7,36,7],[40,7,48,7],[40,8,48,9],[42,4,42,5],[44,4,44,5],[28,0,36,3],[34,4,34,5],[35,4,35,6],[0,6,0,9],[59,0,60,9],[39,0,39,3],[39,4,39,6],[39,8,39,9],[37,0,37,9],[38,0,38,9],[51,8,51,9],[41,4,41,6],[43,4,43,6],[45,4,45,6],[48,4,48,5],[46,4,46,5],[47,4,47,6],[51,0,51,7],[40,4,40,5]]}
[null,null,null,"CUSTOM INCENTIVES",null,null,"See specs at the bottom of the page!"]
["Applicant: fill in gray fields",null,null,"*Please attach supporting documentation as described in the specifications*"]
["Item 1"]
["Description",null,null,null,null,null,null,"$/kWh","Subtotal"]
[null,null,null,null,"Annual kWh Savings",null,null,0.08,{"$f":"IF(AND(G5>0,G11>0,G13>0),MIN(G5*H5,G11,0.5*G13),0)","v":0}]
[]
[null,null,null,null,"kW Savings"]
[]
[null,null,null,null,"Annual Operating Hours"]
[]
[null,null,null,null,"Incremental Measure Cost"]
[]
[null,null,null,null,"Total Project Cost"]
[]
["Item 2"]
["Description",null,null,null,null,null,null,"$/kWh","Subtotal"]
[null,null,null,null,"Annual kWh Savings",null,null,0.08,{"$f":"IF(AND(G17>0,G23>0,G25>0),MIN(G17*H17,G23,0.5*G25),0)","v":0}]
[]
[null,null,null,null,"kW Savings"]
[]
[null,null,null,null,"Annual Operating Hours"]
[]
[null,null,null,null,"Incremental Measure Cost"]
[]
[null,null,null,null,"Total Project Cost"]
[]
["Item 3"]
["Description",null,null,null,null,null,null,"$/kWh","Subtotal"]
[null,null,null,null,"Annual kWh Savings",null,null,0.08,{"$f":"IF(AND(G29>0,G35>0,G37>0),MIN(G29*H29,G35,0.5*G37),0)","v":0}]
[]
[null,null,null,null,"kW Savings"]
[]
[null,null,null,null,"Annual Operating Hours"]
[]
[null,null,null,null,"Incremental Measure Cost"]
[]
[null,null,null,null,"Total Project Cost"]
[]
["Item 4"]
["Description",null,null,null,null,null,null,"$/kWh","Subtotal"]
[null,null,null,null,"Annual kWh Savings",null,null,0.08,{"$f":"IF(AND(G41>0,G47>0,G49>0),MIN(G41*H41,G47,0.5*G49),0)","v":0}]
[]
[null,null,null,null,"kW Savings"]
[]
[null,null,null,null,"Annual Operating Hours"]
[]
[null,null,null,null,"Incremental Measure Cost"]
[]
[null,null,null,null,"Total Project Cost"]
[]
[{"$f":"IF('Applicant Info'!$P$13=TRUE,\"Income Qualifier Bonus\",\"Total Custom Incentives\")","v":"Total Custom Incentives"},null,null,null,null,null,null,null,{"$f":"IF('Applicant Info'!$P$13=TRUE,SUM(I5,I17,I29,I41)*0.1,SUM(I5,I17,I29,I41))","v":0}]
["Total Custom Incentives",null,null,null,null,null,null,null,{"$f":"SUM(I5,I17,I29,I41,I51)","v":0}]
[]
["Incremental measure cost (IMC) is the difference between the cost of an energy-efficient piece of equipment and a new"]
["standard-efficiency piece of equipment. The IMC of energy-efficient equipment installed before an old piece of equipment"]
["reaches the end of its life (such as lighting equipment) generally is equal to the total cost of the energy-efficient equipment,"]
["including labor. The IMC of energy-efficient equipment installed at or near the end of life of an old piece of equipment (such as"]
["chillers, motors, air-conditioning units) generally is equal to the difference in cost between the energy-efficient equipment and"]
["the new standard-efficiency piece of equipment, not including labor."]
["The rebate will be shown as 100% of the Incremental Measure Cost or 50% of the Total Project Cost. All Custom measures subject to approval using the Utility Cost Test (UCT). Submit calculations and costs for assistance."]